Workbook

Sheet Hovedrapport
A1: Hovedpublikation
A3: Figur 2, side 8 | C3: Bruttoenergiforbrug
A6: PJ | B6: Grundforløb | C6: Følsomhed - lav | D6: Følsomhed - høj | E6: Følsomhed - spænd | F6: 2015 linje
A7: 2000 | B7: 838.88657 | C7: 838.88657 | D7: 838.88657 | E7: 0 | F7: -1500
A8: 2001 | B8: 836.82757 | C8: 836.82757 | D8: 836.82757 | E8: 0 | F8: -1500
A9: 2002 | B9: 826.88715 | C9: 826.88715 | D9: 826.88715 | E9: 0 | F9: -1500
A10: 2003 | B10: 832.88975 | C10: 832.88975 | D10: 832.88975 | E10: 0 | F10: -1500
A11: 2004 | B11: 839.52053 | C11: 839.52053 | D11: 839.52053 | E11: 0 | F11: -1500
A12: 2005 | B12: 850.24986 | C12: 850.24986 | D12: 850.24986 | E12: 0 | F12: -1500
A13: 2006 | B13: 863.48396 | C13: 863.48396 | D13: 863.48396 | E13: 0 | F13: -1500
A14: 2007 | B14: 873.34539 | C14: 873.34539 | D14: 873.34539 | E14: 0 | F14: -1500
A15: 2008 | B15: 862.85784 | C15: 862.85784 | D15: 862.85784 | E15: 0 | F15: -1500
A16: 2009 | B16: 812.88477 | C16: 812.88477 | D16: 812.88477 | E16: 0 | F16: -1500
A17: 2010 | B17: 814.3626 | C17: 814.3626 | D17: 814.3626 | E17: 0 | F17: -1500
A18: 2011 | B18: 805.54542 | C18: 805.54542 | D18: 805.54542 | E18: 0 | F18: -1500
A19: 2012 | B19: 783.74933 | C19: 783.74933 | D19: 783.74933 | E19: 0 | F19: -1500
A20: 2013 | B20: 765.37178 | C20: 765.37178 | D20: 765.37178 | E20: 0 | F20: -1500
A21: 2014 | B21: 753.4307 | C21: 753.4307 | D21: 753.4307 | E21: 0 | F21: -1500
A22: 2015 | B22: 755.81564 | C22: 755.81564 | D22: 755.81564 | E22: 0 | F22: -1
A23: 2016 | B23: 753.2389202 | C23: 750.295136 | D23: 755.9098817 | E23: 5.614745714 | F23: -1500
A24: 2017 | B24: 734.6049465 | C24: 728.7173782 | D24: 739.9468696 | E24: 11.22949143 | F24: -1500
A25: 2018 | B25: 731.7221115 | C25: 722.890759 | D25: 739.7349962 | E25: 16.84423714 | F25: -1500
A26: 2019 | B26: 734.2764472 | C26: 722.5013107 | D26: 744.9602935 | E26: 22.45898286 | F26: -1500
A27: 2020 | B27: 730.1728905 | C27: 715.4539698 | D27: 743.5276984 | E27: 28.07372857 | F27: -1500
A28: 2021 | B28: 734.6094229 | C28: 714.8721666 | D28: 753.3410027 | E28: 38.46883612 | F28: -1500
A29: 2022 | B29: 747.3999701 | C29: 722.6443781 | D29: 771.5083218 | E29: 48.86394367 | F29: -1500
A30: 2023 | B30: 759.3489943 | C30: 729.5750666 | D30: 788.8341179 | E30: 59.25905122 | F30: -1500
A31: 2024 | B31: 767.69925 | C31: 732.9069868 | D31: 802.5611455 | E31: 69.65415877 | F31: -1500
A32: 2025 | B32: 777.3760327 | C32: 737.5654339 | D32: 817.6147002 | E32: 80.04926632 | F32: -1500
A33: 2026 | B33: 781.7509875 | C33: 736.5872695 | D33: 827.4054156 | E33: 90.81814615 | F33: -1500
A34: 2027 | B34: 789.0083478 | C34: 738.4915107 | D34: 840.0785367 | E34: 101.587026 | F34: -1500
A35: 2028 | B35: 797.5634086 | C35: 741.6934523 | D35: 854.0493582 | E35: 112.3559058 | F35: -1500
A36: 2029 | B36: 802.7455397 | C36: 741.5224644 | D36: 864.64725 | E36: 123.1247857 | F36: -1500
A37: 2030 | B37: 803.5143748 | C37: 736.9381803 | D37: 870.8318458 | E37: 133.8936655 | F37: -1500
A39: Figur 3, side 9 | C39: Samlet forbrug af VE (PJ)
A42: PJ | B42: Grundforløb | C42: Alternativt forløb | D42: Følsomhed - høj | E42: Følsomhed - lav | F42: Følsomhed - spænd | G42: 2015 linje
A43: 2000 | B43: 80.64422 | C43: 80.64422 | D43: 80.64422 | E43: 80.64422 | F43: 0 | G43: -1500
A44: 2001 | B44: 85.01058 | C44: 85.01058 | D44: 85.01058 | E44: 85.01058 | F44: 0 | G44: -1500
A45: 2002 | B45: 92.4733 | C45: 92.4733 | D45: 92.4733 | E45: 92.4733 | F45: 0 | G45: -1500
A46: 2003 | B46: 104.78479 | C46: 104.78479 | D46: 104.78479 | E46: 104.78479 | F46: 0 | G46: -1500
A47: 2004 | B47: 115.51129 | C47: 115.51129 | D47: 115.51129 | E47: 115.51129 | F47: 0 | G47: -1500
A48: 2005 | B48: 123.08497 | C48: 123.08497 | D48: 123.08497 | E48: 123.08497 | F48: 0 | G48: -1500
A49: 2006 | B49: 126.47143 | C49: 126.47143 | D49: 126.47143 | E49: 126.47143 | F49: 0 | G49: -1500
A50: 2007 | B50: 140.87898 | C50: 140.87898 | D50: 140.87898 | E50: 140.87898 | F50: 0 | G50: -1500
A51: 2008 | B51: 141.75798 | C51: 141.75798 | D51: 141.75798 | E51: 141.75798 | F51: 0 | G51: -1500
A52: 2009 | B52: 142.43584 | C52: 142.43584 | D52: 142.43584 | E52: 142.43584 | F52: 0 | G52: -1500
A53: 2010 | B53: 162.91091 | C53: 162.91091 | D53: 162.91091 | E53: 162.91091 | F53: 0 | G53: -1500
A54: 2011 | B54: 175.02323 | C54: 175.02323 | D54: 175.02323 | E54: 175.02323 | F54: 0 | G54: -1500
A55: 2012 | B55: 179.90367 | C55: 179.90367 | D55: 179.90367 | E55: 179.90367 | F55: 0 | G55: -1500
A56: 2013 | B56: 186.32611 | C56: 186.32611 | D56: 186.32611 | E56: 186.32611 | F56: 0 | G56: -1500
A57: 2014 | B57: 196.49325 | C57: 196.49325 | D57: 196.49325 | E57: 196.49325 | F57: 0 | G57: -1500
A58: 2015 | B58: 205.8262557 | C58: 205.8262557 | D58: 205.8262557 | E58: 205.8262557 | F58: 0 | G58: -1
A59: 2016 | B59: 223.2491939 | C59: 223.9489234 | D59: 223.9679145 | E59: 220.6624727 | F59: 3.305441814 | G59: -1500
A60: 2017 | B60: 262.5409005 | C60: 263.1094976 | D60: 263.9783418 | E60: 257.3674582 | F60: 6.610883628 | G60: -1500
A61: 2018 | B61: 270.4947592 | C61: 271.1501571 | D61: 272.6509212 | E61: 262.7345957 | F61: 9.916325442 | G61: -1500
A62: 2019 | B62: 277.4145039 | C62: 278.0678391 | D62: 280.2893865 | E62: 267.0676193 | F62: 13.22176726 | G62: -1500
A63: 2020 | B63: 275.3757223 | C63: 275.9046821 | D63: 278.9693256 | E63: 262.4421165 | F63: 16.52720907 | G63: -1500
A64: 2021 | B64: 273.697881 | C64: 282.6004496 | D64: 280.686413 | E64: 259.8412477 | F64: 20.84516529 | G64: -1500
A65: 2022 | B65: 278.6454261 | C65: 287.607237 | D65: 289.0288868 | E65: 263.8657653 | F65: 25.16312151 | G65: -1500
A66: 2023 | B66: 280.5568681 | C66: 291.9278514 | D66: 294.3352575 | E66: 264.8541798 | F66: 29.48107772 | G66: -1500
A67: 2024 | B67: 283.4752985 | C67: 297.2592365 | D67: 300.6486166 | E67: 266.8495827 | F67: 33.79903394 | G67: -1500
A68: 2025 | B68: 279.2149805 | C68: 293.0863238 | D68: 299.7832273 | E68: 261.6662371 | F68: 38.11699016 | G68: -1500
A69: 2026 | B69: 278.6091747 | C69: 292.5663472 | D69: 304.5305406 | E69: 258.857667 | F69: 45.6728736 | G69: -1500
A70: 2027 | B70: 280.9211735 | C70: 295.5510116 | D70: 309.6267192 | E70: 258.9669015 | F70: 50.6598177 | G70: -1500
A71: 2028 | B71: 279.4544661 | C71: 294.296694 | D71: 310.9441916 | E71: 255.2974298 | F71: 55.64676179 | G71: -1500
A72: 2029 | B72: 279.2365269 | C72: 295.0294712 | D72: 313.5104321 | E72: 252.8767262 | F72: 60.63370589 | G72: -1500
A73: 2030 | B73: 281.3566089 | C73: 298.3110339 | D73: 315.8457545 | E73: 252.7940438 | F73: 63.05171063 | G73: -1500
A75: Figur 4, side 10 | C75: VE-andel (EU-metode)
A78: År | B78: VE-andel - Grundforløb | C78: VE-andel - Alternativt forløb | D78: Følsomhed | E78: Følsomhed - høj | F78: Følsomhed - spænd | H78: EU-mål for VE-andel | I78: Regeringsmål for VE-andel
A79: 2000 | B79: 0.1098 | C79: 0.1098 | D79: 0.1098 | E79: 0.1098 | F79: 0
A80: 2001 | B80: 0.1173 | C80: 0.1173 | D80: 0.1173 | E80: 0.1173 | F80: 0
A81: 2002 | B81: 0.1264 | C81: 0.1264 | D81: 0.1264 | E81: 0.1264 | F81: 0
A82: 2003 | B82: 0.1395 | C82: 0.1395 | D82: 0.1395 | E82: 0.1395 | F82: 0
A83: 2004 | B83: 0.149 | C83: 0.149 | D83: 0.149 | E83: 0.149 | F83: 0
A84: 2005 | B84: 0.16 | C84: 0.16 | D84: 0.16 | E84: 0.16 | F84: 0
A85: 2006 | B85: 0.164 | C85: 0.164 | D85: 0.164 | E85: 0.164 | F85: 0
A86: 2007 | B86: 0.178 | C86: 0.178 | D86: 0.178 | E86: 0.178 | F86: 0
A87: 2008 | B87: 0.186 | C87: 0.186 | D87: 0.186 | E87: 0.186 | F87: 0
A88: 2009 | B88: 0.2 | C88: 0.2 | D88: 0.2 | E88: 0.2 | F88: 0
A89: 2010 | B89: 0.22 | C89: 0.22 | D89: 0.22 | E89: 0.22 | F89: 0
A90: 2011 | B90: 0.231 | C90: 0.231 | D90: 0.231 | E90: 0.231 | F90: 0 | H90: 0.196
A91: 2012 | B91: 0.258 | C91: 0.258 | D91: 0.258 | E91: 0.258 | F91: 0 | H91: 0.196
A92: 2013 | B92: 0.272 | C92: 0.272 | D92: 0.272 | E92: 0.272 | F92: 0 | H92: 0.209
A93: 2014 | B93: 0.292 | C93: 0.292 | D93: 0.292 | E93: 0.292 | F93: 0 | H93: 0.209
A94: 2015 | B94: 0.3 | C94: 0.3 | D94: 0.3 | E94: 0.3 | F94: 0 | H94: 0.2285
A95: 2016 | B95: 0.3207677929 | C95: 0.3207689992 | D95: 0.316649602 | E95: 0.3210472907 | F95: 0.004397688693 | H95: 0.2285
A96: 2017 | B96: 0.3770025357 | C96: 0.3770036941 | D96: 0.3687661539 | E96: 0.3775615312 | F96: 0.008795377386 | H96: 0.2545
A97: 2018 | B97: 0.3900589045 | C97: 0.390060284 | D97: 0.3777043318 | E97: 0.3908973979 | F97: 0.01319306608 | H97: 0.2545
A98: 2019 | B98: 0.3991546983 | C98: 0.3991561002 | D98: 0.3826819347 | E98: 0.4002726895 | F98: 0.01759075477 | H98: 0
A99: 2020 | B99: 0.4017133731 | C99: 0.4017145125 | D99: 0.3811224186 | E99: 0.403110862 | F99: 0.02198844346 | H99: 0.3
A100: 2021 | B100: 0.4029557475 | C100: 0.4160769091 | D100: 0.3811375975 | E100: 0.4093051952 | F100: 0.02816759762
A101: 2022 | B101: 0.4053557582 | C101: 0.4184486454 | D101: 0.3823104127 | E101: 0.4166571645 | F101: 0.03434675178
A102: 2023 | B102: 0.4034489133 | C102: 0.4247430788 | D102: 0.3791763723 | E102: 0.4197022782 | F102: 0.04052590593
A103: 2024 | B103: 0.4032277884 | C103: 0.4271916161 | D103: 0.3777280519 | E103: 0.424433112 | F103: 0.04670506009
A104: 2025 | B104: 0.400105649 | C104: 0.4263504069 | D104: 0.373378717 | E104: 0.4262629312 | F104: 0.05288421424
A105: 2026 | B105: 0.397678152 | C105: 0.423756212 | D105: 0.3672123949 | E105: 0.4268153595 | F105: 0.05960296458
A106: 2027 | B106: 0.3973313038 | C106: 0.4238931607 | D106: 0.3631267215 | E106: 0.4294484364 | F106: 0.06632171493
A107: 2028 | B107: 0.3927116962 | C107: 0.4193984442 | D107: 0.3547682888 | E107: 0.4278087541 | F107: 0.07304046527
A108: 2029 | B108: 0.3905430229 | C108: 0.4176367757 | D108: 0.3488607904 | E108: 0.428620006 | F108: 0.07975921561
A109: 2030 | B109: 0.3910351421 | C109: 0.4185284438 | D109: 0.3456140845 | E109: 0.4320920504 | F109: 0.08647796596 | I109: 0.5
A111: Figur 5, side 11 | C111: Kul, olie og naturgas (indeks, 2015=100
G113: Indeks
A114: PJ | B114: Kul - Grundforløb | C114: Kul - Alternativt forløb | D114: Olie | E114: Naturgas | G114: =B114 -> Kul - Grundforløb | H114: =C114 -> Kul - Alternativt forløb | I114: =D114 -> Olie | J114: =E114 -> Naturgas
A115: 2015 | B115: 107.6182219 | C115: 107.6182219 | D115: 280.2052038 | E115: 131.610309 | G115: 100 | H115: 100 | I115: 100 | J115: 100
A116: 2016 | B116: 102.9035143 | C116: 102.9035143 | D116: 285.1227013 | E116: 124.6792192 | G116: 95.61904345 | H116: 95.61904345 | I116: 101.7549629 | J116: 94.73362701
A117: 2017 | B117: 62.98938533 | C117: 62.98938533 | D117: 281.4387502 | E117: 110.4079477 | G117: 58.53040892 | H117: 58.53040892 | I117: 100.4402297 | J117: 83.89004524
A118: 2018 | B118: 65.39376258 | C118: 65.39376258 | D118: 279.6643653 | E118: 99.16016146 | G118: 60.76458193 | H118: 60.76458193 | I118: 99.80698484 | J118: 75.34376467
A119: 2019 | B119: 64.23153056 | C119: 64.23153056 | D119: 279.5737235 | E119: 96.04760023 | G119: 59.68462352 | H119: 59.68462352 | I119: 99.7746365 | J119: 72.97878182
A120: 2020 | B120: 71.91166668 | C120: 71.91166668 | D120: 278.1535689 | E120: 87.53593331 | G120: 66.82108795 | H120: 66.82108795 | I120: 99.26780985 | J120: 66.51145643
A121: 2021 | B121: 76.80353491 | C121: 58.18261197 | D121: 278.5233621 | E121: 88.45028426 | G121: 71.36666411 | H121: 54.06390383 | I121: 99.39978212 | J121: 67.20619757
A122: 2022 | B122: 81.03929313 | C122: 62.14910133 | D122: 278.9128023 | E122: 91.73342948 | G122: 75.30257584 | H122: 57.74960806 | I122: 99.53876606 | J122: 69.70079335
A123: 2023 | B123: 90.26039202 | C123: 40.58940761 | D123: 279.6962421 | E123: 91.84945271 | G123: 83.87091931 | H123: 37.71611063 | I123: 99.81836109 | J123: 69.78894999
A124: 2024 | B124: 95.40318059 | C124: 45.55096547 | D124: 279.7584871 | E124: 92.06492425 | G124: 88.64965333 | H124: 42.32644313 | I124: 99.84057515 | J124: 69.95266934
A125: 2025 | B125: 109.1314933 | C125: 32.04685552 | D125: 280.3795169 | E125: 91.5636892 | G125: 101.406148 | H125: 29.77828008 | I125: 100.0622091 | J125: 69.57182148
A126: 2026 | B126: 112.6888018 | C126: 35.83516511 | D126: 280.8485971 | E126: 92.48301265 | G126: 104.7116369 | H126: 33.29841777 | I126: 100.229615 | J126: 70.27034081
A127: 2027 | B127: 118.0181054 | C127: 41.21700257 | D127: 280.0504816 | E127: 92.89563646 | G127: 109.6636828 | H127: 38.29927856 | I127: 99.94478254 | J127: 70.58386018
A128: 2028 | B128: 126.0097511 | C128: 47.80026524 | D128: 280.6570474 | E128: 94.31736413 | G128: 117.0896053 | H128: 44.41651648 | I128: 100.1612545 | J128: 71.66411573
A129: 2029 | B129: 130.328361 | C129: 52.19654732 | D129: 280.8263906 | E129: 95.21143965 | G129: 121.1025036 | H129: 48.5015887 | I129: 100.22169 | J129: 72.34345121
A130: 2030 | B130: 132.504867 | C130: 54.60642028 | D130: 280.7567675 | E130: 91.77640024 | G130: 123.1249362 | H130: 50.74086836 | I130: 100.1968428 | J130: 69.73344335
A134: Figur 6, side 12
A136: mio t CO2e | C136: 1990 | D136: 1991 | E136: 1992 | F136: 1993 | G136: 1994 | H136: 1995 | I136: 1996 | J136: 1997 | K136: 1998 | L136: 1999 | M136: 2000 | N136: 2001 | O136: 2002 | P136: 2003 | Q136: 2004 | R136: 2005 | S136: 2006 | T136: 2007 | U136: 2008 | V136: 2009 | W136: 2010 | X136: 2011 | Y136: 2012 | Z136: 2013 | AA136: 2014 | AB136: 2015 | AC136: 2016 | AD136: 2017 | AE136: 2018 | AF136: 2019 | AG136: 2020 | AH136: 2021 | AI136: 2022 | AJ136: 2023 | AK136: 2024 | AL136: 2025 | AM136: 2026 | AN136: 2027 | AO136: 2028 | AP136: 2029 | AQ136: 2030
A137: Udledning total | C137: 76.53929303 | D137: 79.45199514 | E137: 77.92492252 | F137: 78.39561482 | G137: 77.445226 | H137: 77.52807375 | I137: 78.23985523 | J137: 75.80868342 | K137: 74.01401083 | L137: 73.25556249 | M137: 71.37918175 | N137: 71.94428705 | O137: 70.27956107 | P137: 70.02890408 | Q137: 68.52939255 | R137: 67.4517706 | S137: 68.40169935 | T137: 68.60859073 | U137: 66.92331771 | V137: 63.14246885 | W137: 62.28271983 | X137: 59.01916247 | Y137: 57.31370926 | Z137: 55.64584918 | AA137: 52.50876816 | AB137: 51.90116605 | AC137: 50.94549583 | AD137: 45.97147471 | AE137: 45.25413119 | AF137: 44.85929846 | AG137: 44.77623677 | AH137: 45.35944587 | AI137: 46.02638656 | AJ137: 46.90834504 | AK137: 47.38961643 | AL137: 48.70846018 | AM137: 49.13060713 | AN137: 49.5937263 | AO137: 50.48207312 | AP137: 50.96627127 | AQ137: 50.90754935
A138: Følsomhed | B138: Højere | C138: 0 | D138: 0 | E138: 0 | F138: 0 | G138: 0 | H138: 0 | I138: 0 | J138: 0 | K138: 0 | L138: 0 | M138: 0 | N138: 0 | O138: 0 | P138: 0 | Q138: 0 | R138: 0 | S138: 0 | T138: 0 | U138: 0 | V138: 0 | W138: 0 | X138: 0 | Y138: 0 | Z138: 0 | AA138: 0 | AB138: 0 | AC138: 0 | AD138: 0.5162081767 | AE138: 1.037715046 | AF138: 1.534590955 | AG138: 2.037886627 | AH138: 2.455605184 | AI138: 2.863266142 | AJ138: 3.280953058 | AK138: 3.687942292 | AL138: 4.09805739 | AM138: 4.721802906 | AN138: 5.344353102 | AO138: 5.965533053 | AP138: 6.58528892 | AQ138: 7.20344374
B139: lavere | C139: 0 | D139: 0 | E139: 0 | F139: 0 | G139: 0 | H139: 0 | I139: 0 | J139: 0 | K139: 0 | L139: 0 | M139: 0 | N139: 0 | O139: 0 | P139: 0 | Q139: 0 | R139: 0 | S139: 0 | T139: 0 | U139: 0 | V139: 0 | W139: 0 | X139: 0 | Y139: 0 | Z139: 0 | AA139: 0 | AB139: 0 | AC139: 0 | AD139: -0.3550589079 | AE139: -0.703425835 | AF139: -1.074939701 | AG139: -1.436709344 | AH139: -2.016667938 | AI139: -2.606858262 | AJ139: -3.187284033 | AK139: -3.778623211 | AL139: -4.367050258 | AM139: -4.947744809 | AN139: -5.529948495 | AO139: -6.113829726 | AP139: -6.699385772 | AQ139: -7.286790936
B140: Samlet følsomhed | C140: 0 | D140: 0 | E140: 0 | F140: 0 | G140: 0 | H140: 0 | I140: 0 | J140: 0 | K140: 0 | L140: 0 | M140: 0 | N140: 0 | O140: 0 | P140: 0 | Q140: 0 | R140: 0 | S140: 0 | T140: 0 | U140: 0 | V140: 0 | W140: 0 | X140: 0 | Y140: 0 | Z140: 0 | AA140: 0 | AB140: 0 | AC140: 0 | AD140: 0.8712670846 | AE140: 1.741140881 | AF140: 2.609530656 | AG140: 3.474595971 | AH140: 4.472273122 | AI140: 5.470124404 | AJ140: 6.468237091 | AK140: 7.466565502 | AL140: 8.465107648 | AM140: 9.669547715 | AN140: 10.8743016 | AO140: 12.07936278 | AP140: 13.28467469 | AQ140: 14.49023468
B141: Højere | C141: 76.53929303 | D141: 79.45199514 | E141: 77.92492252 | F141: 78.39561482 | G141: 77.445226 | H141: 77.52807375 | I141: 78.23985523 | J141: 75.80868342 | K141: 74.01401083 | L141: 73.25556249 | M141: 71.37918175 | N141: 71.94428705 | O141: 70.27956107 | P141: 70.02890408 | Q141: 68.52939255 | R141: 67.4517706 | S141: 68.40169935 | T141: 68.60859073 | U141: 66.92331771 | V141: 63.14246885 | W141: 62.28271983 | X141: 59.01916247 | Y141: 57.31370926 | Z141: 55.64584918 | AA141: 52.50876816 | AB141: 51.90116605 | AC141: 50.94549583 | AD141: 46.48768289 | AE141: 46.29184623 | AF141: 46.39388941 | AG141: 46.81412339 | AH141: 47.81505105 | AI141: 48.8896527 | AJ141: 50.1892981 | AK141: 51.07755872 | AL141: 52.80651757 | AM141: 53.85241004 | AN141: 54.9380794 | AO141: 56.44760617 | AP141: 57.55156019 | AQ141: 58.11099309
B142: Laveste forløb | C142: 76.53929303 | D142: 79.45199514 | E142: 77.92492252 | F142: 78.39561482 | G142: 77.445226 | H142: 77.52807375 | I142: 78.23985523 | J142: 75.80868342 | K142: 74.01401083 | L142: 73.25556249 | M142: 71.37918175 | N142: 71.94428705 | O142: 70.27956107 | P142: 70.02890408 | Q142: 68.52939255 | R142: 67.4517706 | S142: 68.40169935 | T142: 68.60859073 | U142: 66.92331771 | V142: 63.14246885 | W142: 62.28271983 | X142: 59.01916247 | Y142: 57.31370926 | Z142: 55.64584918 | AA142: 52.50876816 | AB142: 51.90116605 | AC142: 50.94549583 | AD142: 45.6164158 | AE142: 44.55070535 | AF142: 43.78435876 | AG142: 43.33952742 | AH142: 43.34277793 | AI142: 43.4195283 | AJ142: 43.72106101 | AK142: 43.61099322 | AL142: 44.34140992 | AM142: 44.18286232 | AN142: 44.0637778 | AO142: 44.36824339 | AP142: 44.2668855 | AQ142: 43.62075841
A143: Alternativt forløb | C143: 76.53929303 | D143: 79.45199514 | E143: 77.92492252 | F143: 78.39561482 | G143: 77.445226 | H143: 77.52807375 | I143: 78.23985523 | J143: 75.80868342 | K143: 74.01401083 | L143: 73.25556249 | M143: 71.37918175 | N143: 71.94428705 | O143: 70.27956107 | P143: 70.02890408 | Q143: 68.52939255 | R143: 67.4517706 | S143: 68.40169935 | T143: 68.60859073 | U143: 66.92331771 | V143: 63.14246885 | W143: 62.28271983 | X143: 59.01916247 | Y143: 57.31370926 | Z143: 55.64584918 | AA143: 52.50876816 | AB143: 51.90116605 | AC143: 50.94550315 | AD143: 45.97148751 | AE143: 45.25414906 | AF143: 44.85931852 | AG143: 44.77625711 | AH143: 43.56813617 | AI143: 44.21296982 | AJ143: 42.16368802 | AK143: 42.55806241 | AL143: 41.22822149 | AM143: 41.67778591 | AN143: 42.15740105 | AO143: 42.91203889 | AP143: 43.41528271 | AQ143: 43.39763527
A145: Energiaftale 2008-2012 | U145: 90 | V145: 90 | W145: 90 | X145: 90 | Y145: 90
A146: Energiaftale 2013-2020 | Z146: 90 | AA146: 90 | AB146: 90 | AC146: 90 | AD146: 90 | AE146: 90 | AF146: 90 | AG146: 90
A147: Basisår | C147: 70.80191
A149: Grundforløb
A164: Figur 7, side 13
A166: mio t CO2e | C166: 2005 | D166: 2006 | E166: 2007 | F166: 2008 | G166: 2009 | H166: 2010 | I166: 2011 | J166: 2012 | K166: 2013 | L166: 2014 | M166: 2015 | N166: 2016 | O166: 2017 | P166: 2018 | Q166: 2019 | R166: 2020 | S166: 2021 | T166: 2022 | U166: 2023 | V166: 2024 | W166: 2025 | X166: 2026 | Y166: 2027 | Z166: 2028 | AA166: 2029 | AB166: 2030
A167: Udledning non-ETS | C167: 39.84073201 | D167: 39.78110687 | E167: 39.93704493 | F167: 39.19490962 | G167: 37.4117789 | H167: 37.92959939 | I167: 36.4929129 | J167: 34.92743242 | K167: 33.22802953 | L167: 33.2050642 | M167: 33.39041118 | N167: 33.16595959 | O167: 32.41134764 | P167: 31.84013461 | Q167: 31.51082203 | R167: 31.16883825 | S167: 31.06944993 | T167: 31.01209081 | U167: 30.91985921 | V167: 30.84177265 | W167: 30.79808435 | X167: 30.7790111 | Y167: 30.65508133 | Z167: 30.64679384 | AA167: 30.62171453 | AB167: 30.50385013
A168: Følsomhed | B168: Højere | O168: 0.1551685652 | P168: 0.3156358232 | Q168: 0.4514721205 | R168: 0.5937281813 | S168: 0.6772701171 | T168: 0.7507544549 | U168: 0.8342647501 | V168: 0.9070773636 | W168: 0.9830158417 | X168: 1.062314211 | Y168: 1.140417259 | Z168: 1.217150064 | AA168: 1.292458784 | AB168: 1.366166457
B169: lavere | O169: -0.1154222775 | P169: -0.2241525742 | Q169: -0.3560298094 | R169: -0.4781628224 | S169: -0.5112179797 | T169: -0.5545048663 | U169: -0.5880272007 | V169: -0.6324629411 | W169: -0.6739865518 | X169: -0.737070953 | Y169: -0.8016644888 | Z169: -0.8679355707 | AA169: -0.9358814671 | AB169: -1.005676481
A170: Total inkl. følsomhed | B170: Højere | O170: 32.5665162 | P170: 32.15577043 | Q170: 31.96229415 | R170: 31.76256643 | S170: 31.74672004 | T170: 31.76284526 | U170: 31.75412396 | V170: 31.74885001 | W170: 31.78110019 | X170: 31.84132531 | Y170: 31.79549859 | Z170: 31.8639439 | AA170: 31.91417332 | AB170: 31.87001659
B171: lavere | C171: 39.84073201 | D171: 39.78110687 | E171: 39.93704493 | F171: 39.19490962 | G171: 37.4117789 | H171: 37.92959939 | I171: 36.4929129 | J171: 34.92743242 | K171: 33.22802953 | L171: 33.2050642 | M171: 33.39041118 | N171: 33.16595959 | O171: 32.29592536 | P171: 31.61598203 | Q171: 31.15479222 | R171: 30.69067542 | S171: 30.55823195 | T171: 30.45758594 | U171: 30.331832 | V171: 30.20930971 | W171: 30.1240978 | X171: 30.04194015 | Y171: 29.85341684 | Z171: 29.77885827 | AA171: 29.68583307 | AB171: 29.49817365
A172: Total følsomhed | O172: 0.2705908428 | P172: 0.5397883974 | Q172: 0.80750193 | R172: 1.071891004 | S172: 1.188488097 | T172: 1.305259321 | U172: 1.422291951 | V172: 1.539540305 | W172: 1.657002393 | X172: 1.799385164 | Y172: 1.942081748 | Z172: 2.085085634 | AA172: 2.228340251 | AB172: 2.371842937
A173: Mulig reduktionssti 2021-2030 | S173: 32.47248061 | T173: 31.56474349 | U173: 30.65700637 | V173: 29.74926925 | W173: 28.84153213 | X173: 27.93379501 | Y173: 27.02605789 | Z173: 26.11832077 | AA173: 25.21058365 | AB173: 24.30284653
A174: 2015 linje | C174: -1500 | D174: -1500 | E174: -1500 | F174: -1500 | G174: -1500 | H174: -1500 | I174: -1500 | J174: -1500 | K174: -1500 | L174: -1500 | M174: -1 | N174: -1500 | O174: -1500 | P174: -1500 | Q174: -1500 | R174: -1500 | S174: -1500 | T174: -1500 | U174: -1500 | V174: -1500 | W174: -1500 | X174: -1500 | Y174: -1500 | Z174: -1500 | AA174: -1500 | AB174: -1500
A198: Figur 8, side 15
A201: PJ | B201: Elapparater | C201: Opvarmning (inkl. plæneklippere etc.) | D201: 2015 linje
A202: 2000 | B202: 30.18082 | C202: 159.0938195 | D202: -1500
A203: 2001 | B203: 29.74189 | C203: 157.8711662 | D203: -1500
A204: 2002 | B204: 30.51409 | C204: 160.5619449 | D204: -1500
A205: 2003 | B205: 30.34635 | C205: 161.0664061 | D205: -1500
A206: 2004 | B206: 31.0793 | C206: 160.8811099 | D206: -1500
A207: 2005 | B207: 31.72424 | C207: 163.0045165 | D207: -1500
A208: 2006 | B208: 32.4576 | C208: 166.603642 | D208: -1500
A209: 2007 | B209: 32.53687 | C209: 168.5124361 | D209: -1500
A210: 2008 | B210: 32.19698 | C210: 166.0172114 | D210: -1500
A211: 2009 | B211: 31.22914 | C211: 160.3879928 | D211: -1500
A212: 2010 | B212: 31.07158 | C212: 160.513129 | D212: -1500
A213: 2011 | B213: 31.18074 | C213: 163.9139037 | D213: -1500
A214: 2012 | B214: 30.57589 | C214: 154.0585707 | D214: -1500
A215: 2013 | B215: 31.50072 | C215: 155.514367 | D215: -1500
A216: 2014 | B216: 31.38627 | C216: 156.1166806 | D216: -1500
A217: 2015 | B217: 31.34839 | C217: 159.2634368 | D217: -1
A218: 2016 | B218: 30.87745989 | C218: 158.299885 | D218: -1500
A219: 2017 | B219: 30.7200898 | C219: 157.3132934 | D219: -1500
A220: 2018 | B220: 30.46758616 | C220: 156.2977758 | D220: -1500
A221: 2019 | B221: 30.57609109 | C221: 155.2822581 | D221: -1500
A222: 2020 | B222: 30.58847555 | C222: 154.2667405 | D222: -1500
A223: 2021 | B223: 31.07824761 | C223: 153.2073545 | D223: -1500
A224: 2022 | B224: 31.45156423 | C224: 152.1479684 | D224: -1500
A225: 2023 | B225: 31.6972724 | C225: 151.0885824 | D225: -1500
A226: 2024 | B226: 31.95235014 | C226: 150.0291963 | D226: -1500
A227: 2025 | B227: 31.92543409 | C227: 148.9698103 | D227: -1500
A228: 2026 | B228: 32.00225161 | C228: 147.9064277 | D228: -1500
A229: 2027 | B229: 32.00491078 | C229: 146.8430452 | D229: -1500
A230: 2028 | B230: 31.97136272 | C230: 145.7796626 | D230: -1500
A231: 2029 | B231: 31.90643635 | C231: 144.7162801 | D231: -1500
A232: 2030 | B232: 31.91810952 | C232: 143.6528975 | D232: -1500
A235: Figur 9, side 16
A238: Index: 2015 = 100 | B238: Nettovarmebehov | C238: Opvarmet areal
A239: 2015 | B239: 100 | C239: 100
A240: 2016 | B240: 99.55488863 | C240: 100.7343188
A241: 2017 | B241: 99.10977727 | C241: 101.4686375
A242: 2018 | B242: 98.6646659 | C242: 102.2029563
A243: 2019 | B243: 98.21955453 | C243: 102.937275
A244: 2020 | B244: 97.77444317 | C244: 103.6715938
A245: 2021 | B245: 97.23931075 | C245: 104.2231205
A246: 2022 | B246: 96.70417834 | C246: 104.7746472
A247: 2023 | B247: 96.16904593 | C247: 105.3261738
A248: 2024 | B248: 95.63391351 | C248: 105.8777005
A249: 2025 | B249: 95.0987811 | C249: 106.4292272
A250: 2026 | B250: 94.51064566 | C250: 106.8696022
A251: 2027 | B251: 93.92251022 | C251: 107.3099772
A252: 2028 | B252: 93.33437478 | C252: 107.7503521
A253: 2029 | B253: 92.74623934 | C253: 108.1907271
A254: 2030 | B254: 92.1581039 | C254: 108.6311021
A257: Figur 10, side 17
A260: PJ | B260: Olie | C260: Gas + bygas | D260: Biomasse og sol | E260: Elpaneler | F260: Elvarmepumper (omg. varme og el) | G260: Fjernvarme
A261: 2010 | B261: 13.85066 | C261: 24.03341 | D261: 24.51213 | E261: 3.456604836 | F261: 5.46700375 | G261: 65.18094
A262: 2015 | B262: 7.95915 | C262: 22.14882 | D262: 29.58129 | E262: 2.059172019 | F262: 9.137021533 | G262: 65.00229
A263: 2020 | B263: 5.28290332 | C263: 18.49746544 | D263: 29.25542963 | E263: 1.83914154 | F263: 13.02428598 | G263: 65.48781217
A264: 2025 | B264: 3.594016163 | C264: 16.62296882 | D264: 28.17958545 | E264: 2.28910471 | F264: 16.91579539 | G264: 62.14967075
A265: 2030 | B265: 2.596745186 | C265: 15.01165391 | D265: 27.49752555 | E265: 2.238291508 | F265: 19.3927976 | G265: 59.01810762
... 243 more rows

Sheet Baggrund 3 - Priser
A1: 3 - Brændsels- og kvotepriser
A3: Tabel 2 | C3: Priser på fossile brændsler i IEA’s New Policies-scenarie.
C5: Faste priser (USD 2015) | D5: Enhed | E5: 2015 | F5: 2020 | G5: 2030 | H5: 2040 | N5: Faste priser (USD 2015) | O5: Enhed | P5: 2015 | Q5: 2020 | R5: 2030 | S5: 2040 | W5: Omregning fra øvre til nedre brændværdi | X5: Faktor
C6: Kul, OECD steam coal imports | D6: USD/ton | E6: 57 | F6: 63 | G6: 74 | H6: 77 | N6: Naturgas, Europe imports | O6: USD/MBtu, øvre brændværdi | P6: 7 | Q6: 7.1 | R6: 10.3 | S6: 11.5 | W6: Faktor, der ganges på prisen angivet i øvre brændværdi | X6: =43.818/39.635 -> 1.105538035
C7: Råolie, IEA crude oil imports | D7: USD/tønde | E7: 51 | F7: 79 | G7: 111 | H7: 124 | N7: Naturgas, Europe imports | O7: USD/MBtu, nedre brændværdi | P7: =P6*$X$6 -> 7.738766242 | Q7: =Q6*$X$6 -> 7.849320045 | R7: =R6*$X$6 -> 11.38704176 | S7: =S6*$X$6 -> 12.7136874
C8: Naturgas, Europe imports* | D8: USD/MBtu | E8: =P7 -> 7.738766242 | F8: =Q7 -> 7.849320045 | G8: =R7 -> 11.38704176 | H8: =S7 -> 12.7136874
C9: * IEA angiver naturgasprisen ift. øvre brændværdi, men i tabellen er naturgasprisen angivet ift. nedre brændværdi, svarende til 11 kWh/Nm, da dette er standard i Danmark.
A12: Tabel 3 | C12: Gennemsnitlig prisforskel for 2000-2014 mellem danske basispriser og IEA-priser for kul og naturgas.
C14: 2016 DKK/GJ | D14: Prisforskel til IEA
C15: Kul | D15: 0.3111542108
C16: Naturgas* | D16: -13.16463615
C17: * I modelberegningerne bag Basisfremskrivningen 2016 anvendes prisforskellen -11,6 DKK/GJ for naturgas som resultat af foreløbige beregninger med unøjagtigheder. Der er så lille effekt på importpriser og priser an forbrugssted (< 2 pct.), at forskellen ikke vurderes at have betydning for basisfremskrivningens resultater.
A20: Tabel 4 | C20: Forwardpriser for kul og naturgas for 2016-2020/2022.
C22: Forwardpriser | D22: Enhed | E22: 2016 | F22: 2017 | G22: 2018 | H22: 2019 | I22: 2020 | J22: 2021 | K22: 2022 | N22: Forwardpriser | O22: Enhed | P22: 2016 | Q22: 2017 | R22: 2018 | S22: 2019 | T22: 2020
C23: Kul | D23: USD/ton | E23: 64.63222222 | F23: 67.74 | G23: 61 | H23: 60 | I23: 60.3 | J23: 60.55 | K23: 60.8 | N23: Naturgas | O23: EUR/MWh, øvre brændværdi | P23: 14.10506849 | Q23: 16.624 | R23: 16.986 | S23: 17.199 | T23: 17.246
C24: Naturgas* | D24: EUR/MWh | E24: 15.5936897 | F24: 18.37846429 | G24: 18.77866906 | H24: 19.01414866 | I24: 19.06610894 | J24: - | K24: - | N24: Naturgas | O24: EUR/MWh, nedre brændværdi | P24: 15.5936897 | Q24: 18.37846429 | R24: 18.77866906 | S24: 19.01414866 | T24: 19.06610894
C25: * Naturgasprisen er angivet ift. nedre brændværdi, svarende til 11 kWh/Nm, da dette er standard i Danmark.
A28: Tabel 5 | C28: Vægtning mellem IEA-priser og forwardpriser i konvergensforløbet.
C30: Vægtning IEA priser | D30: 2016 | E30: 2017 | F30: 2018 | G30: 2019 | H30: 2020
C31: Kul og naturgas | D31: 0 | E31: 0 | F31: 0 | G31: =F31+(H31-E31)/2 -> 0.25 | H31: 0.5
A34: Tabel 6 | C34: Fremskrevne importpriser for kul, råolie og naturgas for perioden 2016-2030.
C36: 2016 DKK/GJ | D36: 2016 | E36: 2017 | F36: 2018 | G36: 2019 | H36: 2020 | I36: 2021 | J36: 2022 | K36: 2023 | L36: 2024 | M36: 2025 | N36: 2026 | O36: 2027 | P36: 2028 | Q36: 2029 | R36: 2030
C37: FM olie | D37: 49.4806523 | E37: 58.86551059 | F37: 66.63175846 | G37: 72.30625825 | H37: 77.25773167 | I37: 82.25522799 | J37: 84.48761139 | K37: 86.41014933 | L37: 88.05539336 | M37: 89.34784233 | N37: 91.93555236 | O37: 94.36998837 | P37: 96.67699988 | Q37: 98.89007339 | R37: 101.0187182
C38: Kul | D38: 15.42438214 | E38: 18.30476088 | F38: 15.86870249 | G38: 15.50071672 | H38: 15.77019755 | I38: 16.12849651 | J38: 16.47938885 | K38: 16.79948307 | L38: 17.09350806 | M38: 17.34551577 | N38: 17.61322451 | O38: 17.86056019 | P38: 18.09217154 | Q38: 18.31392367 | R38: 18.52715834
C39: Naturgas | D39: 32.24428503 | E39: 37.30299126 | F39: 37.37012093 | G39: 37.26875158 | H39: 37.14740745 | I39: 40.42416824 | J39: 43.61999877 | K39: 46.66262353 | L39: 49.56665358 | M39: 52.27706857 | N39: 54.99308497 | O39: 57.59378574 | P39: 60.09662895 | Q39: 62.52448813 | R39: 64.88438998
A42: Tabel 7 | C42: Fremskrevne importpriser for naturgas anvendt i Basisfremskrivningen 2016.
C44: 2016 DKK/GJ | D44: 2016 | E44: 2017 | F44: 2018 | G44: 2019 | H44: 2020 | I44: 2021 | J44: 2022 | K44: 2023 | L44: 2024 | M44: 2025 | N44: 2026 | O44: 2027 | P44: 2028 | Q44: 2029 | R44: 2030
C45: Naturgas | D45: 32.24428503 | E45: 37.30299126 | F45: 37.37012093 | G45: 37.59073108 | H45: 37.75111901 | I45: 40.90091569 | J45: 43.97100193 | K45: 46.89019163 | L45: 49.67287559 | M45: 52.26486279 | N45: 54.86236696 | O45: 57.34629363 | P45: 59.73383769 | Q45: 62.04752794 | R45: 64.29428515
A48: Figur 2 | C48: Fremskrevne importpriser for kul, råolie og naturgas for perioden 2016-2030
A68: Tabel 8 | C68: Oversigt over tillæg til importpriserne.
C70: DKK2016/GJ | E70: Transportomkostninger | K70: Tillæg i alt
C71: Kul | D71: an kraftværk | E71: 0.35 | K71: 0.35
C73: Olieprodukter | E73: Raffinerings-omkostninger | F73: Raffinerings-margen | G73: Produktpræmie | H73: Distributions-omkostninger | I73: Salgsmargen | J73: Tillæg ifm. biobrændsler | K73: Tillæg i alt
C74: Benzin | D74: an forbruger | E74: 8.546743611 | F74: 4.228954359 | G74: 5.685460499 | H74: 16.4000913 | I74: 20.05411105 | J74: 3.284931507 | K74: =SUM(E74:J74) -> 58.20029232
C75: Diesel | D75: an forbruger | E75: 8.546743611 | F75: 4.228954359 | G75: 7.38219062 | H75: 15.05920333 | I75: 14.60377913 | J75: 3.840749415 | K75: 53.66162046
C76: Fyringsolie | D76: an forbruger | E76: 8.546743611 | F76: 4.228954359 | G76: 7.38219062 | H76: 5.054116185 | I76: 24.60886627 | J76: - | K76: 49.82087105
C77: Gasolie | D77: an værk | E77: 8.546743611 | F77: 4.228954359 | G77: 7.38219062 | H77: 3.300647305 | I77: 11.10557476 | J77: - | K77: 34.56411065
C78: Gasolie | D78: an kraftværk | E78: 8.546743611 | F78: 4.228954359 | G78: 7.38219062 | H78: 2.166049794 | I78: - | J78: - | K78: 22.32393838
C79: Fuelolie | D79: an kraftværk | E79: 8.546743611 | F79: 4.228954359 | G79: -30.14020683 | H79: 2.166049794 | I79: - | J79: - | K79: -15.19845906
C80: JP1 | D80: an lufthavn | E80: 8.546743611 | F80: 4.228954359 | G80: 3.168230537 | H80: 2.166049794 | I80: - | J80: - | K80: 18.1099783
C82: Naturgas | E82: Transmissionstarif | G82: Distributionstarif | I82: Salgsmargen | K82: Tillæg i alt
D83: an forbruger | E83: 2.481079261 | G83: 22.40911549 | I83: 10.31452283 | K83: =SUM(E83:J83) -> 35.20471758
D84: an værk | E84: 2.572061903 | G84: 5.872441389 | I84: 0.8251618262 | K84: =SUM(E84:J84) -> 9.269665118
D85: an kraftværk | E85: 2.572061903 | G85: - | I85: - | K85: =SUM(E85:J85) -> 2.572061903
A88: Tabel 9 | C88: Oversigt over priser på fossile brændsler an forbrugssted.
C90: Kr./GJ (faste 2016-priser) | D90: 2016 | E90: 2017 | F90: 2018 | G90: 2019 | H90: 2020 | I90: 2021 | J90: 2022 | K90: 2023 | L90: 2024 | M90: 2025 | N90: 2026 | O90: 2027 | P90: 2028 | Q90: 2029 | R90: 2030
C91: An kraftværk
C92: Kul | D92: 15.77690123 | E92: 18.65727997 | F92: 16.22122158 | G92: 15.8532358 | H92: 16.12271664 | I92: 16.4810156 | J92: 16.83190794 | K92: 17.15200216 | L92: 17.44602715 | M92: 17.69803486 | N92: 17.96574359 | O92: 18.21307927 | P92: 18.44469063 | Q92: 18.66644276 | R92: 18.87967743
C93: Fuelolie | D93: 34.28219324 | E93: 43.66705153 | F93: 51.4332994 | G93: 57.10779919 | H93: 62.05927261 | I93: 67.05676893 | J93: 69.28915232 | K93: 71.21169026 | L93: 72.85693429 | M93: 74.14938327 | N93: 76.73709329 | O93: 79.17152931 | P93: 81.47854082 | Q93: 83.69161433 | R93: 85.82025914
C94: Gasolie | D94: 71.80459068 | E94: 81.18944897 | F94: 88.95569684 | G94: 94.63019664 | H94: 99.58167006 | I94: 104.5791664 | J94: 106.8115498 | K94: 108.7340877 | L94: 110.3793317 | M94: 111.6717807 | N94: 114.2594907 | O94: 116.6939268 | P94: 119.0009383 | Q94: 121.2140118 | R94: 123.3426566
C95: Naturgas* | D95: 34.81634694 | E95: 39.87505317 | F95: 39.94218283 | G95: 39.84081348 | H95: 39.71946935 | I95: 42.99623015 | J95: 46.19206067 | K95: 49.23468544 | L95: 52.13871548 | M95: 54.84913047 | N95: 57.56514687 | O95: 60.16584765 | P95: 62.66869085 | Q95: 65.09655004 | R95: 67.45645189
C97: An fjernvarmeværk
C98: Gasolie | D98: 84.04476295 | E98: 93.42962124 | F98: 101.1958691 | G98: 106.8703689 | H98: 111.8218423 | I98: 116.8193386 | J98: 119.051722 | K98: 120.97426 | L98: 122.619504 | M98: 123.911953 | N98: 126.499663 | O98: 128.934099 | P98: 131.2411105 | Q98: 133.454184 | R98: 135.5828289
C99: Naturgas* | D99: 41.51395015 | E99: 46.57265638 | F99: 46.63978605 | G99: 46.5384167 | H99: 46.41707257 | I99: 49.69383336 | J99: 52.88966389 | K99: 55.93228865 | L99: 58.8363187 | M99: 61.54673369 | N99: 64.26275008 | O99: 66.86345086 | P99: 69.36629407 | Q99: 71.79415325 | R99: 74.1540551
C101: An forbruger
C102: Benzin | D102: 107.6809446 | E102: 117.0658029 | F102: 124.8320508 | G102: 130.5065506 | H102: 135.458024 | I102: 140.4555203 | J102: 142.6879037 | K102: 144.6104417 | L102: 146.2556857 | M102: 147.5481347 | N102: 150.1358447 | O102: 152.5702807 | P102: 154.8772922 | Q102: 157.0903657 | R102: 159.2190105
C103: Diesel | D103: 103.1422728 | E103: 112.5271311 | F103: 120.2933789 | G103: 125.9678787 | H103: 130.9193521 | I103: 135.9168485 | J103: 138.1492318 | K103: 140.0717698 | L103: 141.7170138 | M103: 143.0094628 | N103: 145.5971728 | O103: 148.0316088 | P103: 150.3386203 | Q103: 152.5516939 | R103: 154.6803387
C104: Fyringsolie | D104: 99.30152335 | E104: 108.6863816 | F104: 116.4526295 | G104: 122.1271293 | H104: 127.0786027 | I104: 132.076099 | J104: 134.3084824 | K104: 136.2310204 | L104: 137.8762644 | M104: 139.1687134 | N104: 141.7564234 | O104: 144.1908594 | P104: 146.4978709 | Q104: 148.7109444 | R104: 150.8395892
C105: JP1 | D105: 67.5906306 | E105: 76.97548889 | F105: 84.74173676 | G105: 90.41623656 | H105: 95.36770998 | I105: 100.3652063 | J105: 102.5975897 | K105: 104.5201276 | L105: 106.1653717 | M105: 107.4578206 | N105: 110.0455307 | O105: 112.4799667 | P105: 114.7869782 | Q105: 117.0000517 | R105: 119.1286965
C106: Naturgas* | D106: 67.44900261 | E106: 72.50770884 | F106: 72.57483851 | G106: 72.47346916 | H106: 72.35212503 | I106: 75.62888582 | J106: 78.82471635 | K106: 81.86734111 | L106: 84.77137116 | M106: 87.48178615 | N106: 90.19780255 | O106: 92.79850332 | P106: 95.30134653 | Q106: 97.72920571 | R106: 100.0891076
C107: * Priserne an forbrugssted for naturgas anvendt i Basisfremskrivningen 2016 afviger en smule fra priserne an forbrugssted angivet i tabellen på grund af en foreløbig beregning med unøjagtigheder (se tabel 2). Afvigelsen er dog mindre end 2 pct. og vurderes ikke at have betydning for basisfremskrivningens resultater. Priser an forbrugssted for naturgas anvendt i Basisfremskrivningen 2016 ses i tabel 7.1.
A110: Tabel 10 | C110: Priser an forbrugssted for naturgas anvendt i Basisfremskrivningen 2016.
C112: Kr./GJ (faste 2016-priser) | D112: 2016 | E112: 2017 | F112: 2018 | G112: 2019 | H112: 2020 | I112: 2021 | J112: 2022 | K112: 2023 | L112: 2024 | M112: 2025 | N112: 2026 | O112: 2027 | P112: 2028 | Q112: 2029 | R112: 2030
C113: An kraftværk
C114: Naturgas (forbrugerpris) | D114: 34.81634694 | E114: 39.87505317 | F114: 39.94218283 | G114: 40.16279298 | H114: 40.32318091 | I114: 43.47297759 | J114: 46.54306383 | K114: 49.46225353 | L114: 52.24493749 | M114: 54.83692469 | N114: 57.43442886 | O114: 59.91835553 | P114: 62.3058996 | Q114: 64.61958984 | R114: 66.86634706
C116: An fjernvarmeværk
C117: Naturgas (forbrugerpris) | D117: 41.51395015 | E117: 46.57265638 | F117: 46.63978605 | G117: 46.8603962 | H117: 47.02078413 | I117: 50.17058081 | J117: 53.24066705 | K117: 56.15985674 | L117: 58.94254071 | M117: 61.5345279 | N117: 64.13203208 | O117: 66.61595874 | P117: 69.00350281 | Q117: 71.31719306 | R117: 73.56395027
C119: An forbruger
C120: Naturgas (forbrugerpris) | D120: 67.44900261 | E120: 72.50770884 | F120: 72.57483851 | G120: 72.79544866 | H120: 72.95583659 | I120: 76.10563327 | J120: 79.17571951 | K120: 82.09490921 | L120: 84.87759317 | M120: 87.46958037 | N120: 90.06708454 | O120: 92.55101121 | P120: 94.93855527 | Q120: 97.25224552 | R120: 99.49900273
A123: Tabel 11 | C123: Følsomheder med høje og lave prisniveauer for importpriser for fossile brændsler.
C125: 2016 DKK/GJ | D125: 2016 | E125: 2017 | F125: 2018 | G125: 2019 | H125: 2020 | I125: 2021 | J125: 2022 | K125: 2023 | L125: 2024 | M125: 2025 | N125: 2026 | O125: 2027 | P125: 2028 | Q125: 2029 | R125: 2030
C126: Følsomhed Lave priser
C127: Kul - Lav | D127: 15.42438214 | E127: 18.30476088 | F127: 15.86870249 | G127: 14.97938799 | H127: 14.42022694 | I127: 14.19538471 | J127: 13.9847453 | K127: 13.9847453 | L127: 13.9847453 | M127: 13.9847453 | N127: 13.9847453 | O127: 13.9847453 | P127: 13.9847453 | Q127: 13.9847453 | R127: 13.9847453
C128: Råolie - Lav | D128: 49.7083847 | E128: 58.30982057 | F128: 58.99068989 | G128: 58.17880583 | H128: 57.12977692 | I128: 57.44832996 | J128: 57.74898864 | K128: 57.74898864 | L128: 57.74898864 | M128: 57.74898864 | N128: 57.74898864 | O128: 57.74898864 | P128: 57.74898864 | Q128: 57.74898864 | R128: 57.74898864
C129: Naturgas - Lav | D129: 32.24428503 | E129: 37.30299126 | F129: 37.37012093 | G129: 37.05340525 | H129: 36.33004507 | I129: 36.33004507 | J129: 36.33004507 | K129: 36.33004507 | L129: 36.33004507 | M129: 36.33004507 | N129: 36.33004507 | O129: 36.33004507 | P129: 36.33004507 | Q129: 36.33004507 | R129: 36.33004507
C130: Følsomhed Høje priser
C131: Kul - Høj | D131: 15.42438214 | E131: 17.07798988 | F131: 17.30790735 | G131: 17.50128812 | H131: 17.65378765 | I131: 18.17189405 | J131: 18.67729244 | K131: 19.14366515 | L131: 19.57633261 | M131: 19.95691884 | N131: 20.35193595 | O131: 20.72008457 | P131: 21.06682818 | Q131: 21.3991237 | R131: 21.71869785
C132: Råolie - Høj | D132: 49.4806523 | E132: 78.6676731 | F132: 84.78115614 | G132: 90.52319966 | H132: 95.85985332 | I132: 101.9995941 | J132: 107.9431243 | K132: 113.5499664 | L132: 118.8485189 | M132: 123.7279916 | N132: 128.5895847 | O132: 133.1919413 | P132: 137.5710677 | Q132: 141.7746071 | R132: 145.8181481
C133: Naturgas - Høj* | D133: 32.24428503 | E133: 38.19095578 | F133: 38.64006933 | G133: 39.01730495 | H133: 39.31232609 | I133: 43.14886331 | J133: 46.88479912 | K133: 50.44377215 | L133: 53.84121933 | M133: 57.0175161 | N133: 60.18857073 | O133: 63.22417157 | P133: 66.14356835 | Q133: 68.97216345 | R133: 71.71813004
C134: * Følsomheden med det høje prisniveau for naturgas anvendt i Basisfremskrivningen 2016 afviger en smule fra priserne angivet i tabellen på grund af en foreløbig beregning med unøjagtigheder (se tabel 2). Afvigelsen er dog mindre end 4 pct. og vurderes ikke at have betydning for basisfremskrivningens resultater. Følsomheden med det høje prisniveau for naturgas anvendt i Basisfremskrivningen 2016 ses i tabel 8.1.
A137: Tabel 12 | C137: Følsomhed med højt prisniveau for importprisen på naturgas anvendt i Basisfremskrivningen 2016.
C139: 2016 DKK/GJ | D139: 2016 | E139: 2017 | F139: 2018 | G139: 2019 | H139: 2020 | I139: 2021 | J139: 2022 | K139: 2023 | L139: 2024 | M139: 2025 | N139: 2026 | O139: 2027 | P139: 2028 | Q139: 2029 | R139: 2030
C140: Følsomhed Høje priser
C141: Naturgas - Høj | D141: 32.24428503 | E141: 39.63986352 | F141: 40.0084822 | G141: 40.30522294 | H141: 40.5197492 | I141: 44.27579155 | J141: 47.93123249 | K141: 51.40971064 | L141: 54.72666294 | M141: 57.82246485 | N141: 60.9130246 | O141: 63.86813056 | P141: 66.70703247 | Q141: 69.4551327 | R141: 72.12060441
A144: Figur 3
A167: Tabel 13 | C167: Vægtning mellem langsigtede ligevægtspriser og forwardpriser i konvergensforløbet for biomassepriser.
C169: Vægtning af langsigtede ligevægtspriser | D169: 2016 | E169: 2017 | F169: 2018 | G169: 2019 | H169: 2020
C170: Træpiller | D170: 0 | E170: 0 | F170: 0 | G170: 0.25 | H170: 0.5
C171: Træflis | D171: 1 | E171: 1 | F171: 1 | G171: 1 | H171: 1
A174: Tabel 14 | C174: Oversigt over fremskrevne priser på biomasse, både CIF-priser og priser an forbrugssted.
B176: Titler til graf | C176: Kr./GJ (faste 2016-priser) | D176: 2016 | E176: 2017 | F176: 2018 | G176: 2019 | H176: 2020 | I176: 2021 | J176: 2022 | K176: 2023 | L176: 2024 | M176: 2025 | N176: 2026 | O176: 2027 | P176: 2028 | Q176: 2029 | R176: 2030
C177: Træflis
B178: Træflis (CIF) | C178: CIF | D178: 45.38257968 | E178: 46.62817296 | F178: 47.02626798 | G178: 47.40939929 | H178: 47.78221121 | I178: 48.2309297 | J178: 48.68189037 | K178: 49.13503025 | L178: 49.59028695 | M178: 50.04759861 | N178: 50.43476631 | O178: 50.8227869 | P178: 51.21165067 | Q178: 51.60134806 | R178: 51.99186958
B179: Træflis (an kraftværk) | C179: Kraftværk | D179: 47.83805093 | E179: 49.09261836 | F179: 49.49869433 | G179: 49.88923455 | H179: 50.26905457 | I179: 50.71811389 | J179: 51.16938098 | K179: 51.62279287 | L179: 52.07828716 | M179: 52.53580201 | N179: 52.9270766 | O179: 53.31919547 | P179: 53.71214893 | Q179: 54.10592741 | R179: 54.5005214
B180: Træflis (an værk) | C180: Decentralt værk | D180: 47.66641758 | E180: 48.04725518 | F180: 48.33416404 | G180: 48.61422911 | H180: 48.88947648 | I180: 49.20207931 | J180: 49.51477021 | K180: 49.82754287 | L180: 50.14039106 | M180: 50.45330859 | N180: 50.74947442 | O180: 51.04559198 | P180: 51.34166027 | Q180: 51.63767836 | R180: 51.93364528
C182: Træpiller (industri)
B183: Træpiller - industri (CIF) | C183: CIF | D183: 47.05907126 | E183: 48.89178758 | F183: 55.37974496 | G183: 57.92964648 | H183: 59.91619899 | I183: 64.06377798 | J183: 64.4421317 | K183: 64.82121939 | L183: 65.20101839 | M183: 65.58150622 | N183: 65.95367133 | O183: 66.32656568 | P183: 66.70016243 | Q183: 67.07443496 | R183: 67.44935691
B184: Træpiller - industri (an kraftværk) | C184: Kraftværk | D184: 49.22413714 | E184: 51.06195479 | F184: 57.55396587 | G184: 60.10730526 | H184: 62.09685617 | I184: 66.24618586 | J184: 66.62626507 | K184: 67.00705305 | L184: 67.38852713 | M184: 67.77066482 | N184: 68.14368521 | O184: 68.51740458 | P184: 68.8917961 | Q184: 69.26683315 | R184: 69.64248936
B185: Træpiller - industri (an værk) | C185: Decentralt værk | D185: 53.66865883 | E185: 55.54936637 | F185: 62.0795205 | G185: 64.66826905 | H185: 66.69131354 | I185: 70.86695605 | J185: 71.27334808 | K185: 71.68044887 | L185: 72.08823576 | M185: 72.49668627 | N185: 72.89601947 | O185: 73.29605166 | P185: 73.69675599 | Q185: 74.09810586 | R185: 74.50007488
C187: Træpiller (husholdninger)
B188: Træpiller - husholdning (slutbruger) | C188: Slutbruger | D188: 85.4612749 | E188: 87.84101758 | F188: 95.54417076 | G188: 98.70121422 | H188: 101.1982528 | I188: 106.1349127 | J188: 106.7369636 | K188: 107.3398586 | L188: 107.9435716 | M188: 108.5480767 | N188: 109.1430107 | O188: 109.7387833 | P188: 110.3353637 | Q188: 110.9327212 | R188: 111.5308256
C190: Halm
B191: Halm (an kraftværk) | C191: Kraftværk | D191: 40.94937159 | E191: 42.02328132 | F191: 42.37088235 | G191: 42.70518478 | H191: 43.03031071 | I191: 43.41470549 | J191: 43.80099012 | K191: 44.1891107 | L191: 44.57901381 | M191: 44.97064652 | N191: 45.30557757 | O191: 45.64123132 | P191: 45.97759949 | Q191: 46.31467386 | R191: 46.65244632
B192: Halm (an værk) | C192: Decentralt værk | D192: 39.31139673 | E192: 40.34235007 | F192: 40.67604705 | G192: 40.99697739 | H192: 41.30909828 | I192: 41.67811727 | J192: 42.04895051 | K192: 42.42154627 | L192: 42.79585326 | M192: 43.17182066 | N192: 43.44155011 | O192: 43.69502673 | P192: 43.9484612 | Q192: 44.20185268 | R192: 44.45520036
A195: Figur 5 | C195: Fremskrevne priser for træflis, træpiller og halm for perioden 2016-2030.
A215: Figur 6 | C215: Fremskrevne priser samt følsomheder for biomassepriser for perioden 2016-2030.
A244: Tabel 15 | C244: Oversigt over følsomhedsforløb med både lave og høje priser på biomasse an forbrugssted.
B246: Titler til graf | C246: Kr./GJ (faste 2016-priser) | D246: 2016 | E246: 2017 | F246: 2018 | G246: 2019 | H246: 2020 | I246: 2021 | J246: 2022 | K246: 2023 | L246: 2024 | M246: 2025 | N246: 2026 | O246: 2027 | P246: 2028 | Q246: 2029 | R246: 2030
C247: Følsomhed - Lave priser
C248: Træflis
B249: Træflis (an kraftværk) Lav | C249: Kraftværk | D249: 47.83805093 | E249: 46.16181623 | F249: 46.24521849 | G249: 46.31102723 | H249: 46.36553493 | I249: 46.61848867 | J249: 46.87055847 | K249: 47.12175102 | L249: 47.37207299 | M249: 47.62153098 | N249: 47.96280804 | O249: 48.30324151 | P249: 48.64283775 | Q249: 48.98160311 | R249: 49.31954386
B250: Træflis (an værk) Lav | C250: Decentralt værk | D250: 47.66641758 | E250: 47.24942069 | F250: 47.25168504 | G250: 47.24689982 | H250: 47.23723882 | I250: 47.53815214 | J250: 47.83884435 | K250: 48.13931612 | L250: 48.43956813 | M250: 48.73960102 | N250: 49.16964579 | O250: 49.59947349 | P250: 50.02908476 | Q250: 50.45848022 | R250: 50.88766051
C251: Træpiller (industri)
B252: Træpiller - industri (an kraftværk) Lav | C252: Kraftværk | D252: 49.22413714 | E252: 45.52049211 | F252: 51.69636388 | G252: 53.93031163 | H252: 55.6003487 | I252: 59.63975412 | J252: 59.90829687 | K252: 60.17596199 | L252: 60.4427524 | M252: 60.70867098 | N252: 61.06339406 | O252: 61.41725446 | P252: 61.77025495 | Q252: 62.12239829 | R252: 62.47368724
B253: Træpiller - industri (an værk) Lav | C253: Decentralt værk | D253: 53.66865883 | E253: 50.00790368 | F253: 56.22191852 | G253: 58.49127542 | H253: 60.19480607 | I253: 64.26052431 | J253: 64.55537987 | K253: 64.84935781 | L253: 65.14246103 | M253: 65.43469243 | N253: 65.81572833 | O253: 66.19590153 | P253: 66.57521484 | Q253: 66.953671 | R253: 67.33127276
C254: Træpiller (husholdninger) | W254: Træpiller (husholdninger) - Løbende priser | X254: 2016 | Y254: 2017 | Z254: 2018 | AA254: 2019 | AB254: 2020 | AC254: 2021 | AD254: 2022 | AE254: 2023 | AF254: 2024 | AG254: 2025 | AH254: 2026 | AI254: 2027 | AJ254: 2028 | AK254: 2029 | AL254: 2030
B255: Træpiller - husholdning (slutbruger) Lav | C255: Slutbruger | D255: =X255/X$260 -> 87.2017806 | E255: 82.97661096 | F255: 87.9002071 | G255: 90.67357413 | H255: 93.55160626 | I255: 98.19251035 | J255: 98.96589589 | K255: 100.0169987 | L255: 100.501843 | M255: 100.9859256 | N255: 101.5589194 | O255: 102.1311539 | P255: 102.70128 | Q255: 103.2706583 | R255: 103.8392877 | W255: Slutbruger lav pris | X255: 87.2017806 | Y255: 84.47599405 | Z255: 91.27298654 | AA255: 96.14828707 | AB255: 101.451726 | AC255: 108.6196299 | AD255: 111.5828766 | AE255: 115.0218712 | AF255: 117.9407881 | AG255: 121.0975249 | AH255: 124.1995299 | AI255: 127.4014578 | AJ255: 130.6742009 | AK255: 133.9814995 | AL255: 137.3172631
C256: Halm | W256: Slutbruger høj pris | X256: 87.2017806 | Y256: 94.70656644 | Z256: 102.2916432 | AA256: 108.0017711 | AB256: 114.1879643 | AC256: 121.8147804 | AD256: 125.2428731 | AE256: 129.1732547 | AF256: 132.6074869 | AG256: 136.3191261 | AH256: 139.8141095 | AI256: 143.4255282 | AJ256: 147.1210106 | AK256: 150.8597029 | AL256: 154.6349178
B257: Halm (an kraftværk) Lav | C257: Kraftværk | D257: 40.94937159 | E257: 39.51451469 | F257: 39.58590703 | G257: 39.64223931 | H257: 39.6888979 | I257: 39.9054263 | J257: 40.12119805 | K257: 40.33621888 | L257: 40.55049448 | M257: 40.76403052 | N257: 41.05616368 | O257: 41.34757473 | P257: 41.63826912 | Q257: 41.92825226 | R257: 42.21752954
B258: Halm (an værk) Lav | C258: Decentralt værk | D258: 39.31139673 | E258: 37.9339341 | F258: 38.00247074 | G258: 38.05654973 | H258: 38.10134198 | I258: 38.30920925 | J258: 38.51635013 | K258: 38.72277012 | L258: 38.9284747 | M258: 39.1334693 | N258: 39.41391713 | O258: 39.69367174 | P258: 39.97273835 | Q258: 40.25112217 | R258: 40.52882836 | X258: 2016 | Y258: 2017 | Z258: 2018 | AA258: 2019 | AB258: 2020 | AC258: 2021 | AD258: 2022 | AE258: 2023 | AF258: 2024 | AG258: 2025 | AH258: 2026 | AI258: 2027 | AJ258: 2028 | AK258: 2029 | AL258: 2030
C259: Følsomhed - Høje priser | W259: PYF (BVT-deflator) | X259: 1.085224948 | Y259: 1.104834907 | Z259: 1.126865628 | AA259: 1.150748945 | AB259: 1.176868559 | AC259: 1.200465613 | AD259: 1.223578287 | AE259: 1.248033892 | AF259: 1.273531725 | AG259: 1.301350206 | AH259: 1.327155006 | AI259: 1.353742077 | AJ259: 1.380809498 | AK259: 1.407951379 | AL259: 1.435103447
C260: Træflis | W260: 2016=1 | X260: =X259/$X$259 -> 1 | Y260: 1.018069949 | Z260: 1.038370552 | AA260: 1.060378263 | AB260: 1.08444665 | AC260: 1.106190579 | AD260: 1.127488167 | AE260: 1.150023223 | AF260: 1.173518659 | AG260: 1.199152497 | AH260: 1.222930794 | AI260: 1.247429927 | AJ260: 1.272371687 | AK260: 1.29738206 | AL260: 1.322401821
B261: Træflis (an kraftværk) Høj | C261: Kraftværk | D261: 47.83805093 | E261: 52.81668717 | F261: 53.55688019 | G261: 54.28659292 | H261: 55.00758072 | I261: 55.62993649 | J261: 56.2575418 | K261: 56.89027368 | L261: 57.52801033 | M261: 58.17063107 | N261: 58.78259264 | O261: 59.3994349 | P261: 60.0210411 | Q261: 60.64729555 | R261: 61.27808365 | W261: Kilde: Grundforløbet til 2025-planen (september 2016)
B262: Træflis (an værk) Høj | C262: Decentralt værk | D262: 47.66641758 | E262: 49.48089953 | F262: 49.99508016 | G262: 50.50292255 | H262: 51.16984253 | I262: 51.74877813 | J262: 52.33259703 | K262: 52.92118482 | L262: 53.51442821 | M262: 54.11221495 | N262: 54.68148152 | O262: 55.25528828 | P262: 55.8335266 | Q262: 56.41608888 | R262: 57.00286852
C263: Træpiller (industri)
B264: Træpiller - industri (an kraftværk) Høj | C264: Kraftværk | D264: 49.22413714 | E264: 55.53746149 | F264: 62.2692287 | G264: 65.06356069 | H264: 67.29278914 | I264: 71.509499 | J264: 71.9582634 | K264: 72.40902283 | L264: 72.86173603 | M264: 73.31636212 | N264: 73.73870041 | O264: 74.16310706 | P264: 74.58954244 | Q264: 75.01796726 | R264: 75.4483426
B265: Træpiller - industri (an værk) Høj | C265: Decentralt værk | D265: 53.66865883 | E265: 60.02487307 | F265: 66.79478333 | G265: 69.62452447 | H265: 71.88724651 | I265: 76.13026919 | J265: 76.6053464 | K265: 77.08241865 | L265: 77.56144467 | M265: 78.04238357 | N265: 78.49103467 | O265: 78.94175414 | P265: 79.39450233 | Q265: 79.84923997 | R265: 80.30592813
C266: Træpiller (husholdninger)
B267: Træpiller - husholdning (slutbruger) Høj | C267: Slutbruger | D267: =X256/X$260 -> 87.2017806 | E267: 93.02559866 | F267: 98.51169512 | G267: 101.8521171 | H267: 105.2960644 | I267: 110.1209708 | J267: 111.0813192 | K267: 112.3223011 | L267: 112.9998964 | M267: 113.6795582 | N267: 114.3270823 | O267: 114.9768216 | P267: 115.6273847 | Q267: 116.2800901 | R267: 116.9348948
C268: Halm
B269: Halm (an kraftværk) Høj | C269: Kraftværk | D269: 40.94937159 | E269: 45.21108422 | F269: 45.84468944 | G269: 46.46932354 | H269: 47.0864891 | I269: 47.61922564 | J269: 48.15645578 | K269: 48.69807427 | L269: 49.24397684 | M269: 49.7940602 | N269: 50.3178993 | O269: 50.84591628 | P269: 51.37801118 | Q269: 51.91408499 | R269: 52.45403961
B270: Halm (an værk) Høj | C270: Decentralt værk | D270: 39.31139673 | E270: 42.38934188 | F270: 42.82277198 | G270: 43.24380567 | H270: 43.80138521 | I270: 44.29695408 | J270: 44.79670305 | K270: 45.30053421 | L270: 45.80835055 | M270: 46.320056 | N270: 46.80734818 | O270: 47.29852677 | P270: 47.79349877 | Q270: 48.29217208 | R270: 48.79445545
A272: Tabel 16 | C272: Tre forløb for CO2-kvoteprisen.
C274: Faste 2016 kr./ton | D274: 2016 | E274: 2017 | F274: 2018 | G274: 2019 | H274: 2020 | I274: 2021 | J274: 2022 | K274: 2023 | L274: 2024 | M274: 2025 | N274: 2026 | O274: 2027 | P274: 2028 | Q274: 2029 | R274: 2030
C275: FM kvotepris | D275: 40.20749848 | E275: 41.06969256 | F275: 41.99420601 | G275: 43.30213324 | H275: 44.75452008 | I275: 46.55116181 | J275: 48.68617902 | K275: 51.0734096 | L275: 53.75461358 | M275: 56.76135731 | N275: 60.05466548 | O275: 63.58522749 | P275: 67.32589684 | Q275: 71.31025853 | R275: 75.55795869
C276: CO2-kvoter Lav pris | D276: 40.20749848 | E276: 40.20749848 | F276: 40.20749848 | G276: 40.20749848 | H276: 40.20749848 | I276: 40.20749848 | J276: 40.20749848 | K276: 40.20749848 | L276: 40.20749848 | M276: 40.20749848 | N276: 40.20749848 | O276: 40.20749848 | P276: 40.20749848 | Q276: 40.20749848 | R276: 40.20749848
C277: CO2-kvoter Høj pris | D277: 69.17806057 | E277: 80.65719617 | F277: 92.13633177 | G277: 103.6154674 | H277: 115.094603 | I277: 126.6040633 | J277: 138.1135236 | K277: 149.6229839 | L277: 161.1324442 | M277: 172.6419045 | N277: 189.5224462 | O277: 206.402988 | P277: 223.2835298 | Q277: 240.1640715 | R277: 257.0446133
A280: Figur 7 | C280: Fremskrivning af CO2-kvoteprisen samt to følsomheder for perioden 2016-2030.

Sheet Baggrund 4 & 5 - El og fjernv.
A1: 4, 5 - El og Fjernvarme
A3: Tabel 19 | C3: Brændsel til elkorrektion
B5: År | C5: Modelberegnet elimport (TWh el) | D5: Totalt brændseslforbrug (TWh/TWh el) | E5: Kul | F5: Fuelolie | G5: Gasolie | H5: Naturgas | I5: Træpiller | J5: Træflis
B6: 2016 | C6: 6.3 | D6: 2.7 | E6: 1.3 | F6: 0.03 | G6: 0.01 | H6: 0.26 | I6: 0.31 | J6: 0.14
B7: 2017 | C7: 4.8 | D7: 2.7 | E7: 0.9 | F7: 0.03 | G7: 0.01 | H7: 0.21 | I7: 0.55 | J7: 0.3
B8: 2018 | C8: 3.9 | D8: 2.7 | E8: 1 | F8: 0.03 | G8: 0.01 | H8: 0.17 | I8: 0.56 | J8: 0.29
B9: 2019 | C9: 3.6 | D9: 2.7 | E9: 1 | F9: 0.03 | G9: 0.01 | H9: 0.16 | I9: 0.56 | J9: 0.31
B10: 2020 | C10: 2.4 | D10: 2.6 | E10: 1.1 | F10: 0.04 | G10: 0.01 | H10: 0.16 | I10: 0.38 | J10: 0.35
B11: 2021 | C11: 0.2 | D11: 2.6 | E11: 1.3 | F11: 0.04 | G11: 0.01 | H11: 0.15 | I11: 0.2 | J11: 0.41
B12: 2022 | C12: 0.7 | D12: 2.6 | E12: 1.3 | F12: 0.04 | G12: 0.01 | H12: 0.14 | I12: 0.2 | J12: 0.4
B13: 2023 | C13: 1.8 | D13: 2.6 | E13: 1.4 | F13: 0.04 | G13: 0.01 | H13: 0.14 | I13: 0.19 | J13: 0.38
B14: 2024 | C14: 2.8 | D14: 2.6 | E14: 1.4 | F14: 0.04 | G14: 0.01 | H14: 0.13 | I14: 0.2 | J14: 0.38
B15: 2025 | C15: -0.2 | D15: 2.6 | E15: 1.6 | F15: 0.05 | G15: 0.01 | H15: 0.11 | I15: 0.16 | J15: 0.31
B16: 2026 | C16: 0.2 | D16: 2.6 | E16: 1.6 | F16: 0.05 | G16: 0.01 | H16: 0.11 | I16: 0.16 | J16: 0.3
B17: 2027 | C17: 1.1 | D17: 2.6 | E17: 1.6 | F17: 0.05 | G17: 0.01 | H17: 0.1 | I17: 0.18 | J17: 0.29
B18: 2028 | C18: 2.3 | D18: 2.7 | E18: 1.6 | F18: 0.05 | G18: 0.01 | H18: 0.1 | I18: 0.18 | J18: 0.29
B19: 2029 | C19: 3.1 | D19: 2.7 | E19: 1.6 | F19: 0.05 | G19: 0.01 | H19: 0.11 | I19: 0.18 | J19: 0.29
B20: 2030 | C20: 3.5 | D20: 2.7 | E20: 1.6 | F20: 0.05 | G20: 0.01 | H20: 0.11 | I20: 0.19 | J20: 0.29
A24: Tabel 20 | C24: Forventet udvikling af termisk kapacitet til elproduktion
C26: Kul | D26: Olie | E26: Naturgas | F26: Biomasse | G26: Affald | H26: Industri | I26: I alt
B27: 2016 | C27: 2418 | D27: 979 | E27: 2013 | F27: 575 | G27: 189 | H27: 452 | I27: 6621
B28: 2020 | C28: 1654 | D28: 710 | E28: 1509 | F28: 1128 | G28: 213 | H28: 452 | I28: 5666
B29: 2025 | C29: 2256 | D29: 728 | E29: 1281 | F29: 1147 | G29: 213 | H29: 452 | I29: 6078
B30: 2030 | C30: 2256 | D30: 728 | E30: 1281 | F30: 1143 | G30: 213 | H30: 452 | I30: 6074
A35: Tabel 21 | C35: Forudsætninger for udvikling i naturgasmotorer
C37: Reduktion i kapacitet ift. 2015 | D37: Elkapacitet til rådighed (MW)
B38: 2016 | C38: 0 | D38: 696
B39: 2017 | C39: 0 | D39: 696
B40: 2018 | C40: 0.1 | D40: 627
B41: 2019 | C41: 0.15 | D41: 592
B42: 2020 | C42: 0.2 | D42: 557
B43: 2021 | C43: 0.26 | D43: 515
B44: 2022 | C44: 0.32 | D44: 474
B45: 2023 | C45: 0.38 | D45: 432
B46: 2024 | C46: 0.44 | D46: 390
B47: 2025 og frem | C47: 0.5 | D47: 348
A52: Figur 10 | C52: Varme fra små decentrale kraftvarmeværk
C55: TJ
B56: Net med biomassekedler | C56: 15415.68727
B57: Net med naturgas | C57: 9921.036628
B58: Øvrige net | C58: 6949.382794
A69: Figur 11 | C69: Naturgaskraftvarme
B71: År | C71: 2017 | D71: 2018 | E71: 2019 | F71: 2020 | G71: 2021 | H71: 2022 | I71: 2023 | J71: 2024 | K71: 2025 | L71: 2026 | M71: 2027 | N71: 2028 | O71: 2029 | P71: 2030
B72: MW | C72: 108.16 | D72: 70.35 | E72: 165.28 | F72: 144.118 | G72: 44.35 | H72: 56.52 | I72: 13.51 | J72: 12.56 | K72: 20.07 | L72: 15.5 | M72: 18.25 | N72: 14.19 | O72: 30.79 | P72: 30.58
A90: Figur 12 | C90: Udvikling for kollektiv solvarme
B93: TJ | C93: 2000 | D93: 2001 | E93: 2002 | F93: 2003 | G93: 2004 | H93: 2005 | I93: 2006 | J93: 2007 | K93: 2008 | L93: 2009 | M93: 2010 | N93: 2011 | O93: 2012 | P93: 2013 | Q93: 2014 | R93: 2015 | S93: 2016 | T93: 2017 | U93: 2018 | V93: 2019 | W93: 2020 | X93: 2021 | Y93: 2022 | Z93: 2023 | AA93: 2024 | AB93: 2025 | AC93: 2026 | AD93: 2027 | AE93: 2028 | AF93: 2029 | AG93: 2030
B94: BioV Små Dec | C94: 10.5696 | D94: 13.0752 | E94: 20.826 | F94: 22.6188 | G94: 20.05452 | H94: 20.8224 | I94: 16.1073 | J94: 28.991736 | K94: 28.30392 | L94: 29.504196 | M94: 28.283616 | N94: 31.21542 | O94: 70.637016 | P94: 137.829384 | Q94: 211.11084 | R94: 215.170224 | S94: 410.8952531 | T94: 461.9202131 | U94: 515.1238355 | V94: 740.3821715 | W94: 816.3351529 | X94: 816.3351529 | Y94: 981.0470185 | Z94: 981.0470185 | AA94: 1004.974001 | AB94: 1004.974001 | AC94: 1004.974001 | AD94: 1004.974001 | AE94: 1004.974001 | AF94: 1004.974001 | AG94: 1004.974001
B95: NG Små Dec | C95: 0.7056 | D95: 0.3276 | E95: 0.3888 | F95: 0.9324 | G95: 0.9288 | H95: 0.3492 | I95: 0.9792 | J95: 1.062 | K95: 13.1688 | L95: 43.272 | M95: 76.68612 | N95: 144.724788 | O95: 191.991456 | P95: 251.3177784 | Q95: 397.245996 | R95: 560.2561508 | S95: 871.1927267 | T95: 961.0460795 | U95: 1057.709462 | V95: 1173.829387 | W95: 1283.648649 | X95: 1315.312891 | Y95: 1322.451571 | Z95: 1332.611854 | AA95: 1348.510463 | AB95: 1348.510463 | AC95: 1379.968127 | AD95: 1392.964991 | AE95: 1405.135871 | AF95: 1455.219561 | AG95: 1457.75772
B96: Total | C96: 24.4692 | D96: 27.5328 | E96: 36.9468 | F96: 50.7204 | G96: 49.90212 | H96: 49.2228 | I96: 47.0457 | J96: 56.124936 | K96: 67.23072 | L96: 99.239796 | M96: 150.791736 | N96: 223.580608 | O96: 332.888272 | P96: 459.4603224 | Q96: 730.442372 | R96: 928.5750472 | S96: 1716.761379 | T96: 1857.639691 | U96: 2007.506696 | V96: 2348.884958 | W96: 2534.657201 | X96: 2566.321442 | Y96: 2738.171988 | Z96: 2748.332271 | AA96: 2788.157863 | AB96: 2788.157863 | AC96: 2819.615527 | AD96: 2832.612391 | AE96: 2844.783271 | AF96: 2894.866961 | AG96: 2897.40512
A120: Tabel 22 | C120: Udvikling for fjernvarmeproduktion i små decentrale net
B123: Parameter | C123: 2017 | D123: 2018 | E123: 2019 | F123: 2020 | G123: 2025 | H123: 2030
B124: Reduktion af decentrale naturgasmotorer (ift. 2015) | C124: 0 | D124: 0.1 | E124: 0.15 | F124: 0.2 | G124: 0.5 | H124: 0.5
B125: Direkte biogas til kraftvarmeproduktion (PJ biogas) | C125: 5.1 | D125: 4,6 | E125: 5 | F125: 5.6 | G125: 7.1 | H125: 7
B126: Ekstra etablering af biomassekedler på barmarksværker (MW varme) | C126: 20 | D126: 20 | E126: 20 | F126: 20 | G126: 0 | H126: 0
B127: Samlet solvarmeproduktion (TJ) | C127: 2362 | D127: 2566 | E127: 2770 | F127: 2974 | G127: 3154 | H127: 3334
B128: Samlet solvarmeudbygning (1000 m2) | C128: 1560 | D128: 1695 | E128: 1830 | F128: 1964 | G128: 2083 | H128: 2202
B129: Etablering af nye varmepumper (MWel) | C129: 3 MWel | D129: 3 MWel | E129: 3 MWel | F129: 3 MWel | G129: 3 MWel | H129: 3 MWel
B130: Nye varmepumper akkumuleret varme ved 5.000 fuldlasttimer og COP på 4 (TJ varme) | C130: 220 | D130: 430 | E130: 650 | F130: 860 | G130: 1940 | H130: 3020
A135: Figur 13 | C135: Eksisterende vindkraft på havet
C139: MW
B140: Horns Rev 1 | C140: 160
B141: Nysted | C141: 165.6
B142: Horns Rev 2 | C142: 209.3
B143: Rødsand 2 | C143: 207
B144: Anholt | C144: 399.6
B145: Øvrig eksisterende | C145: 129.55
A155: Figur 14 | C155: Vindkraft på havet: Kapacitet
B158: MW | C158: 2015 | D158: 2016 | E158: 2017 | F158: 2018 | G158: 2019 | H158: 2020 | I158: 2021 | J158: 2022 | K158: 2023 | L158: 2024 | M158: 2025 | N158: 2026 | O158: 2027 | P158: 2028 | Q158: 2029 | R158: 2030
B159: Eksisterende | C159: 1271.05 | D159: 1271.05 | E159: 1266.1 | F159: 1266.1 | G159: 1266.1 | H159: 1263.15 | I159: 1261.1 | J159: 1261.1 | K159: 1261.1 | L159: 1261.1 | M159: 1260.7 | N159: 1221.1 | O159: 1192.3 | P159: 930.058 | Q159: 847.7 | R159: 847.7
B160: Horns Rev 3 | C160: 0 | D160: 0 | E160: 0 | F160: 101.675 | G160: 406.7 | H160: 406.7 | I160: 406.7 | J160: 406.7 | K160: 406.7 | L160: 406.7 | M160: 406.7 | N160: 406.7 | O160: 406.7 | P160: 406.7 | Q160: 406.7 | R160: 406.7
B161: Kriegers Flak | C161: 0 | D161: 0 | E161: 0 | F161: 0 | G161: 0 | H161: 50 | I161: 500 | J161: 600 | K161: 600 | L161: 600 | M161: 600 | N161: 600 | O161: 600 | P161: 600 | Q161: 600 | R161: 600
B162: Vesterhav Syd+Nord | C162: 0 | D162: 0 | E162: 0 | F162: 0 | G162: 0 | H162: 87.5 | I162: 350 | J162: 350 | K162: 350 | L162: 350 | M162: 350 | N162: 350 | O162: 350 | P162: 350 | Q162: 350 | R162: 350
B163: Forsøgsmøller | C163: 0 | D163: 0 | E163: 14 | F163: 28 | G163: 28 | H163: 28 | I163: 28 | J163: 28 | K163: 28 | L163: 28 | M163: 28 | N163: 28 | O163: 28 | P163: 28 | Q163: 28 | R163: 28
B164: Åben-Dør møller | C164: 0 | D164: 0 | E164: 0 | F164: 0 | G164: 0 | H164: 0 | I164: 0 | J164: 0 | K164: 0 | L164: 0 | M164: 0 | N164: 0 | O164: 0 | P164: 0 | Q164: 0 | R164: 0
B165: I alt | C165: 1271.05 | D165: 1271.05 | E165: 1280.1 | F165: 1395.775 | G165: 1700.8 | H165: 1835.35 | I165: 2545.8 | J165: 2645.8 | K165: 2645.8 | L165: 2645.8 | M165: 2645.4 | N165: 2605.8 | O165: 2577 | P165: 2314.758 | Q165: 2232.4 | R165: 2232.4
A175: Figur 15 | C175: Vindkraft på havet: Produktion
B178: MW | C178: 2015 | D178: 2016 | E178: 2017 | F178: 2018 | G178: 2019 | H178: 2020 | I178: 2021 | J178: 2022 | K178: 2023 | L178: 2024 | M178: 2025 | N178: 2026 | O178: 2027 | P178: 2028 | Q178: 2029 | R178: 2030
B179: Eksisterende | C179: 5.0918675 | D179: 5.0918675 | E179: 5.08271 | F179: 5.08271 | G179: 5.08271 | H179: 5.07445 | I179: 5.06871 | J179: 5.06871 | K179: 5.06871 | L179: 5.06871 | M179: 5.06779 | N179: 4.97671 | O179: 4.86439 | P179: 3.8928958 | Q179: 3.60985 | R179: 3.60985
B180: Horns Rev 3 | C180: 0 | D180: 0 | E180: 0 | F180: 0.43211875 | G180: 1.728475 | H180: 1.728475 | I180: 1.728475 | J180: 1.728475 | K180: 1.728475 | L180: 1.728475 | M180: 1.728475 | N180: 1.728475 | O180: 1.728475 | P180: 1.728475 | Q180: 1.728475 | R180: 1.728475
B181: Kriegers Flak | C181: 0 | D181: 0 | E181: 0 | F181: 0 | G181: 0 | H181: 0.2125 | I181: 2.125 | J181: 2.55 | K181: 2.55 | L181: 2.55 | M181: 2.55 | N181: 2.55 | O181: 2.55 | P181: 2.55 | Q181: 2.55 | R181: 2.55
B182: Vesterhav Syd+Nord | C182: 0 | D182: 0 | E182: 0 | F182: 0 | G182: 0 | H182: 0.3926875 | I182: 1.57075 | J182: 1.57075 | K182: 1.57075 | L182: 1.57075 | M182: 1.57075 | N182: 1.57075 | O182: 1.57075 | P182: 1.57075 | Q182: 1.57075 | R182: 1.57075
B183: Forsøgsmøller | C183: 0 | D183: 0 | E183: 0.063 | F183: 0.126 | G183: 0.126 | H183: 0.126 | I183: 0.126 | J183: 0.126 | K183: 0.126 | L183: 0.126 | M183: 0.126 | N183: 0.126 | O183: 0.126 | P183: 0.126 | Q183: 0.126 | R183: 0.126
B184: Åben-Dør møller | C184: 0 | D184: 0 | E184: 0 | F184: 0 | G184: 0 | H184: 0 | I184: 0 | J184: 0 | K184: 0 | L184: 0 | M184: 0 | N184: 0 | O184: 0 | P184: 0 | Q184: 0 | R184: 0
B185: I alt | C185: 5.0918675 | D185: 5.0918675 | E185: 5.14571 | F185: 5.64082875 | G185: 6.937185 | H185: 7.5341125 | I185: 10.618935 | J185: 11.043935 | K185: 11.043935 | L185: 11.043935 | M185: 11.043015 | N185: 10.951935 | O185: 10.839615 | P185: 9.8681208 | Q185: 9.585075 | R185: 9.585075
A194: Figur 16 | C194: Eksisterende vindkraft på land
B197: MW | C197: Vest-danmark | D197: Øst-danmark
B198: 1978 | C198: 0.4 | D198: 0
B199: 1979 | C199: 0.055 | D199: 0
B200: 1980 | C200: 0.25 | D200: 0.14
B201: 1981 | C201: 0.11 | D201: 0.055
B202: 1982 | C202: 0.209 | D202: 0.175
B203: 1983 | C203: 0.22 | D203: 0.325
B204: 1984 | C204: 0.25 | D204: 0.26
B205: 1985 | C205: 0.441 | D205: 0.4
B206: 1986 | C206: 0.375 | D206: 0.454
B207: 1987 | C207: 2.195 | D207: 0.684
B208: 1988 | C208: 10.465 | D208: 7.05
B209: 1989 | C209: 15.299 | D209: 6.9
B210: 1990 | C210: 19.589 | D210: 3.705
B211: 1991 | C211: 25.39 | D211: 6.075
B212: 1992 | C212: 17.225 | D212: 5.125
B213: 1993 | C213: 12.975 | D213: 9.375
B214: 1994 | C214: 28.805 | D214: 17.85
B215: 1995 | C215: 58.95 | D215: 9.625
B216: 1996 | C216: 157.075 | D216: 41.3
B217: 1997 | C217: 216.17 | D217: 64.925
B218: 1998 | C218: 229.815 | D218: 78.918
B219: 1999 | C219: 267.15 | D219: 52.82
B220: 2000 | C220: 476.29 | D220: 119.889
B221: 2001 | C221: 96.695 | D221: 15.72
B222: 2002 | C222: 298.15 | D222: 28.4
B223: 2003 | C223: 14.7 | D223: 6.75
B224: 2004 | C224: 1.895 | D224: 0.225
B225: 2005 | C225: 22.175 | D225: 0
B226: 2006 | C226: 0 | D226: 11.325
B227: 2007 | C227: 2.25 | D227: 0.255
B228: 2008 | C228: 64.205 | D228: 4.6
B229: 2009 | C229: 96.155 | D229: 10.05
B230: 2010 | C230: 150.275 | D230: 6.655
B231: 2011 | C231: 162.75 | D231: 23.85
B232: 2012 | C232: 135.325 | D232: 36
B233: 2013 | C233: 342.6 | D233: 10.6
B234: 2014 | C234: 77.55 | D234: 27.3
B235: 2015 | C235: 212 | D235: 27
B236: 2016 | C236: 83 | D236: 48
A239: Tabel 23 | C239: Årlig udbygning på længere sigt
B241: MW | C241: Vest-danmark | D241: Øst-danmark
B242: 2021 | C242: 0 | D242: 0
B243: 2022 | C243: 0 | D243: 0
B244: 2023 | C244: 0 | D244: 0
B245: 2024 | C245: 0 | D245: 0
B246: 2025 | C246: 10 | D246: 0
B247: 2026 | C247: 25 | D247: 0
B248: 2027 | C248: 45 | D248: 0
B249: 2028 | C249: 80 | D249: 5
B250: 2029 | C250: 130 | D250: 10
B251: 2030 | C251: 170 | D251: 20
B252: I alt | C252: 460 | D252: 35
A255: Tabel 24 | C255: Konklussion fra Energinet.dk's analyse "Nedtagning af gamle vindmøller"
B257: Kategori | C257: Kapacitet (kW) | D257: Fuldlast-timer (h) | E257: Estimeret levetid (år)
B258: 1 | C258: <600 | D258: <1800 | E258: 25
B259: 2 | C259: <600 | D259: ≥1800 | E259: 27
B260: 3 | C260: ≥600 | D260: <1600 | E260: 27
B261: 4 | C261: ≥600 | D261: ≥1600 | E261: 29
A266: Tabel 25 og 26 | C266: Levetider for opsatte møller
B268: 1978-1985 | C268: 1986-1994 | D268: 1995-2007 | F268: 2008-2020 | G268: 2021-2030 | H268: 2031-
B269: 25 | C269: 26 | D269: 29 | F269: 25 | G269: 27 | H269: 30
A274: Figur 17 | C274: Kommerciel landvindkapacitet på land
B277: MW | C277: 2015 | D277: 2016 | E277: 2017 | F277: 2018 | G277: 2019 | H277: 2020 | I277: 2021 | J277: 2022 | K277: 2023 | L277: 2024 | M277: 2025 | N277: 2026 | O277: 2027 | P277: 2028 | Q277: 2029 | R277: 2030
B278: Før 2016 (eksisterende) | C278: 3631.2755 | D278: 3748.263 | E278: 3707.0275 | F278: 3655.667 | G278: 3636.3045 | H278: 3604.002 | I278: 3580.937 | J278: 3580.937 | K278: 3580.937 | L278: 3548.112 | M278: 3423.212 | N278: 3193.4295 | O278: 2912.0505 | P278: 2611.169 | Q278: 2160.2945 | R278: 1812.0725
B279: 2016-2020 (pipeline) | C279: 0 | D279: 100 | E279: 325 | F279: 450 | G279: 450 | H279: 450 | I279: 450 | J279: 450 | K279: 450 | L279: 450 | M279: 450 | N279: 450 | O279: 450 | P279: 450 | Q279: 450 | R279: 450
B280: 2021 og frem (model) | C280: 0 | D280: 0 | E280: 0 | F280: 0 | G280: 0 | H280: 0 | I280: 0 | J280: 0 | K280: 0 | L280: 0 | M280: 5 | N280: 22.5 | O280: 57.5 | P280: 122.5 | Q280: 235 | R280: 400
A293: Tabel 27 | C293: Årlige fuldlasttimer for eksisterende og nye møller på land
C296: Før 2008 | D296: 2008-2013 | E296: 2014-2020 | F296: 2021-2030 | G296: 2031-
B297: Østdanmark | C297: 1850 | D297: 2650 | E297: 3000 | F297: 3050 | G297: 3100
B298: Vestdanmark | C298: 1950 | D298: 2950 | E298: 3150 | F298: 3350 | G298: 3250
A301: Figur 18 | C301: Hustandsmøllekapacitet frem mod 2030
C304: Kapacitet (MW)
B305: 2016 | C305: 19
B306: 2017 | C306: 20
B307: 2018 | C307: 21
B308: 2019 | C308: 22
B309: 2020 | C309: 23
B310: 2021 | C310: 23.5
B311: 2022 | C311: 24
B312: 2023 | C312: 24.5
B313: 2024 | C313: 25
B314: 2025 | C314: 25.5
B315: 2026 | C315: 26
B316: 2027 | C316: 26.5
B317: 2028 | C317: 27
B318: 2029 | C318: 27.5
B319: 2030 | C319: 28
A325: Figur 19 | C325: Udbygning med ny solcellekapacitet
C328: Eksisterende kapacitet | D328: Grundforløb | E328: Høj udbygning | F328: Lav udbygning | G328: Difference Høj-Lav
B329: 2016 | C329: 845.1 | D329: 845.1 | E329: 845.1 | F329: 845.1 | G329: 0
B330: 2017 | C330: 845.1 | D330: 1049.233064 | E330: 1053.656587 | F330: 1040.915196 | G330: 12.7413916
B331: 2018 | C331: 845.1 | D331: 1174.110574 | E331: 1210.018624 | F331: 1141.455869 | G331: 68.56275442
B332: 2019 | C332: 845.1 | D332: 1279.693401 | E332: 1349.715876 | F332: 1216.465984 | G332: 133.2498924
B333: 2020 | C333: 845.1 | D333: 1363.801258 | E333: 1469.040739 | F333: 1273.060737 | G333: 195.9800021
B334: 2021 | C334: 845.1 | D334: 1469.426976 | E334: 1621.432267 | F334: 1337.607849 | G334: 283.8244181
B335: 2022 | C335: 845.1 | D335: 1533.761478 | E335: 1701.291032 | F335: 1395.199299 | G335: 306.0917331
B336: 2023 | C336: 845.1 | D336: 1590.893623 | E336: 1802.608922 | F336: 1442.53488 | G336: 360.0740422
B337: 2024 | C337: 845.1 | D337: 1644.101019 | E337: 1881.885397 | F337: 1488.460224 | G337: 393.4251736
B338: 2025 | C338: 845.1 | D338: 1818.870889 | E338: 2155.341685 | F338: 1600.334597 | G338: 555.0070879
B339: 2026 | C339: 845.1 | D339: 1956.889558 | E339: 2389.115061 | F339: 1690.925819 | G339: 698.1892421
B340: 2027 | C340: 845.1 | D340: 2107.45785 | E340: 2657.219816 | F340: 1782.53572 | G340: 874.6840966
B341: 2028 | C341: 845.1 | D341: 2372.503895 | E341: 3093.25735 | F341: 1948.082344 | G341: 1145.175006
B342: 2029 | C342: 845.1 | D342: 2660.453009 | E342: 3578.490283 | F342: 2118.705668 | G342: 1459.784615
B343: 2030 | C343: 845.1 | D343: 3078.955248 | E343: 4218.772977 | F343: 2382.017174 | G343: 1836.755803
A348: Figur 20 og 21 | C348: El- og fjernvarme forbrug ab værk
C352: Elforbrug (TWh) | D352: Fjernvarme-forbrug (PJ)
B353: 2016 | C353: 33.50819507 | D353: 130.5506339
B354: 2017 | C354: 33.58043899 | D354: 129.528685
B355: 2018 | C355: 34.35589636 | D355: 128.7910984
B356: 2019 | C356: 35.41341422 | D356: 128.1581226
B357: 2020 | C357: 36.16419648 | D357: 127.5935767
B358: 2021 | C358: 37.48449726 | D358: 127.6124921
B359: 2022 | C359: 38.74601217 | D359: 127.644123
B360: 2023 | C360: 39.96877566 | D360: 127.5758904
... 496 more rows

Sheet Baggrund 6 - Erhverv og hushold
A1: 6 - Erhverv og husholdninger
A3: Tabel 46 | C3: Energirammen fastsat i bygningsreglementet
B6: Energirammen (Etilfmax) | C6: BR10 | D6: BR15 | E6: BR20
C7: kWh/m2 | D7: kWh/m2 | E7: kWh/m2
B8: Energirammen | C8: 52,5 + A/1650 | D8: 30+A/1000 | E8: 20
B9: Enfamilieshus 150 m2 | C9: 64 | D9: 37 | E9: 20
B10: Etageejendom 800 m2 | C10: 54 | D10: 31 | E10: 20
C11: A er bygningens areal
A13: Tabel 47 | C13: Primær energifaktor (PEF)
B15: PEF | C15: Til og med BR10 | D15: BR15 | E15: BR20
B16: Fjernvarme | C16: 1 | D16: 0.8 | E16: 0.6
B17: El | C17: 2.5 | D17: 2.5 | E17: 2.5
B18: Andre | C18: 1 | D18: 1 | E18: 1
A20: Tabel 48 | C20: Effektiviteter af opvarmningsteknologier
B22: Effektivitet (η) | C22: 2010 | D22: 2015 | E22: 2020 | F22: 2030
C23: Pct. | D23: Pct. | E23: Pct. | F23: Pct.
B24: Fjernvarme | C24: 95 | D24: 95 | E24: 95 | F24: 95
B25: Elvarme (direkte) | C25: 97 | D25: 97 | E25: 97 | F25: 97
B26: El varmepumpe | C26: 280 | D26: 330 | E26: 370 | F26: 400
B27: Gasfyr | C27: 99 | D27: 99 | E27: 100 | F27: 100
B28: Træpillefyr | C28: 72 | D28: 72 | E28: 79 | F28: 83
B29: Brændeovn | C29: 65 | D29: 65 | E29: 70 | F29: 75
A31: Tabel 49 | C31: Effektivitet/PEF faktor
B33: η / PEF | C33: 2010-15 | D33: 2016-2020 | E33: Efter 2021
B34: Fjernvarme | C34: 1.1 | D34: 0.8 | E34: 0.6
B35: Elvarme (direkte) | C35: 2.6 | D35: 2.6 | E35: 1.9
B36: El varmepumpe | C36: 0.9 | D36: 0.8 | E36: 0.5
B37: Gasfyr | C37: 1 | D37: 1 | E37: 1
B38: Træpillefyr | C38: 1.4 | D38: 1.4 | E38: 1.3
B39: Brændeovn | C39: 1.5 | D39: 1.5 | E39: 1.4
B40: Antaget vægtet gennemsnit | C40: 1 | D40: 0.85 | E40: 0.7
A43: Tabel 50 | C43: Gennemsnitligt nettovarmeforbrug
B46: Nettovarmeforbrug | C46: 2010-15 | D46: 2016-2020 | E46: Efter 2021
C47: kWh/m2 | D47: kWh/m2 | E47: kWh/m2
B48: Enfamilieshus 150 m2 | C48: 64 | D48: 43 | E48: 29
B49: Etageejendom 800 m2 | C49: 55 | D49: 37 | E49: 29
A52: Tabel 51 | C52: Målt forbrug i forhold til beregnet forbrug på baggrund af energirammen
C54: BR2010-huse | D54: A2015-huse | E54: A2020-huse
B55: Målte forbrug | C55: kWh/m2 | D55: kWh/m2 | E55: kWh/m2
B56: Forbrug 2014 | C56: 63 | D56: 57 | E56: 60
B57: BBR 2015 forbrug | C57: 67
B58: Målt merforbrug i forhold til energirammen | C58: Pct. | D58: Pct. | E58: Pct.
B59: Forbrug 2014 / energiramme for fjernvarme | C59: 0.04 | D59: 0.31 | E59: 0.89
B60: Forbrug 2014 / energiramme for gas | C60: 0 | D60: 0.57 | E60: 2
B61: BBR 2015 forbrug / energiramme for fjernvarme | C61: 0.11
B62: BBR 2015 forbrug / energiramme for gas | C62: 0.07
A65: Tabel 52 | C65: Energibrug tillagt nettoenergiforbruget beregnet ud fra BR energiramme
C67: 2010-2015 | D67: 2016-2020 | E67: 2021-2030 | F67: Efter 2030
B68: Tillæg | C68: 5 pct. | D68: 30 pct. | E68: 60 pct. | F68: 40 pct.
A70: Tabel 53 | C70: Nettoenergiforbrug uden besparelser
E73: Årligt nettoenergiforbrug
B74: Region | C74: Område | D74: Bygningstype | E74: <1972 | F74: 1972-2010 | G74: 2010-2015 | H74: 2016- 2020 | I74: 2021-2030 | J74: >2030
E75: kWh/m2/år | F75: kWh/m2/år | G75: kWh/m2/år | H75: kWh/m2/år | I75: kWh/m2/år | J75: kWh/m2/år
B76: DK-Øst | C76: Central | D76: Enfamilieshus | E76: 144 | F76: 107 | G76: 68 | H76: 57 | I76: 46 | J76: 40
B77: DK-Øst | C77: Central | D77: Etageejendom | E77: 147 | F77: 104 | G77: 56 | H77: 47 | I77: 46 | J77: 40
B78: DK-Øst | C78: Decentral | D78: Enfamilieshus | E78: 151 | F78: 108 | G78: 68 | H78: 57 | I78: 46 | J78: 40
B79: DK-Øst | C79: Decentral | D79: Etageejendom | E79: 138 | F79: 101 | G79: 57 | H79: 48 | I79: 46 | J79: 40
B80: DK-Øst | C80: Individuel | D80: Enfamilieshus | E80: 147 | F80: 100 | G80: 67 | H80: 57 | I80: 46 | J80: 40
B81: DK-Øst | C81: Individuel | D81: Etageejendom | E81: 143 | F81: 90 | G81: 61 | H81: 51 | I81: 46 | J81: 40
B82: DK-Vest | C82: Central | D82: Enfamilieshus | E82: 146 | F82: 106 | G82: 68 | H82: 57 | I82: 46 | J82: 40
B83: DK-Vest | C83: Central | D83: Etageejendom | E83: 144 | F83: 104 | G83: 57 | H83: 48 | I83: 46 | J83: 40
B84: DK-Vest | C84: Decentral | D84: Enfamilieshus | E84: 151 | F84: 108 | G84: 68 | H84: 57 | I84: 46 | J84: 40
B85: DK-Vest | C85: Decentral | D85: Etageejendom | E85: 144 | F85: 97 | G85: 59 | H85: 49 | I85: 46 | J85: 40
B86: DK-Vest | C86: Individuel | D86: Enfamilieshus | E86: 142 | F86: 100 | G86: 67 | H86: 56 | I86: 46 | J86: 40
B87: DK-Vest | C87: Individuel | D87: Etageejendom | E87: 143 | F87: 91 | G87: 62 | H87: 52 | I87: 46 | J87: 40
A90: Tabel 54 | C90: Besparelser i nettovarmebehovet før rebound
B93: Husholdninger – opvarmning | C93: Årlig besparelse 2016-2030 | D93: 2020 | E93: 2025 | F93: 2030
C94: PJ
D95: PJ | E95: PJ | F95: PJ
B96: Bygningsreglement - eks. bygninger | C96: 1.6 | D96: 5.6 | E96: 11.2 | F96: 16.8
A99: Figur 52 | C99: Fremskrevet økonomisk vækst fra Finansministeriets strukturelle fremskrivning ved FFL17
B102: Pct. | C102: BNP | F102: Følsomhed
C103: Vækst | D103: Lav | E103: 3års snit
B104: 2000 | C104: 0.03746875183
B105: 2001 | C105: 0.008231852426
B106: 2002 | C106: 0.004663399786
B107: 2003 | C107: 0.003900766569
B108: 2004 | C108: 0.02635102995
B109: 2005 | C109: 0.02437029516
B110: 2006 | C110: 0.0379668689
B111: 2007 | C111: 0.008245253343
B112: 2008 | C112: -0.007180087848
B113: 2009 | C113: -0.05087936061
B114: 2010 | C114: 0.01625132918
B115: 2011 | C115: 0.01152142525
B116: 2012 | C116: -0.0007332200342
B117: 2013 | C117: -0.002437792829
B118: 2014 | C118: 0.01261905838
B119: 2015 | C119: 0.009880249955 | D119: 0.009880249955 | E119: 0.009880249955 | F119: 0
B120: 2016 | C120: 0.008904480347 | D120: 0.007967929562 | E120: 0.01046792956 | F120: 0.005
B121: 2017 | C121: 0.01516300801 | D121: 0.00881591277 | E121: 0.01131591277 | F121: 0.005
B122: 2018 | C122: 0.01754970212 | D122: 0.01137239682 | E122: 0.01387239682 | F122: 0.005
B123: 2019 | C123: 0.02073914876 | D123: 0.01531728629 | E123: 0.01781728629 | F123: 0.005
B124: 2020 | C124: 0.01931409085 | D124: 0.01670098058 | E124: 0.01920098058 | F124: 0.005
B125: 2021 | C125: 0.01458709219 | D125: 0.01571344393 | E125: 0.01821344393 | F125: 0.005
B126: 2022 | C126: 0.01859643826 | D126: 0.0149992071 | E126: 0.0174992071 | F126: 0.005
B127: 2023 | C127: 0.01350845498 | D127: 0.01306399515 | E127: 0.01556399515 | F127: 0.005
B128: 2024 | C128: 0.01189598639 | D128: 0.01216695988 | E128: 0.01466695988 | F128: 0.005
B129: 2025 | C129: 0.01149999926 | D129: 0.00980148021 | E129: 0.01230148021 | F129: 0.005
B130: 2026 | C130: 0.01079208682 | D130: 0.008896024157 | E130: 0.01139602416 | F130: 0.005
B131: 2027 | C131: 0.01112498429 | D131: 0.008639023456 | E131: 0.01113902346 | F131: 0.005
B132: 2028 | C132: 0.00951770193 | D132: 0.00797825768 | E132: 0.01047825768 | F132: 0.005
B133: 2029 | C133: 0.007609964696 | D133: 0.006917550305 | E133: 0.009417550305 | F133: 0.005
B134: 2030 | C134: 0.01593393156 | D134: 0.008520532728 | E134: 0.01102053273 | F134: 0.005
A137: Figur 53 | C137: Vækst i erhvervenes produktionsværdi fra FM's strukturelle fremskrivning ved FFL17
B140: Pct. | C140: Fremstilling | F140: Følsomhed
C141: Vækst | D141: 3års snit | E141: Lav
B142: 2000 | C142: 0.05192639608
B143: 2001 | C143: 0.02105283425
B144: 2002 | C144: -0.01488880418
B145: 2003 | C145: -0.02506585844
B146: 2004 | C146: 0.01328357364
B147: 2005 | C147: 0.04728158978
B148: 2006 | C148: 0.04044388403
B149: 2007 | C149: 0.02757104447
B150: 2008 | C150: 0.004349654266
B151: 2009 | C151: -0.1347277437
B152: 2010 | C152: -0.01534948183
B153: 2011 | C153: 0.0616312185
B154: 2012 | C154: 0.02470262836
B155: 2013 | C155: -0.001186854146
B156: 2014 | C156: 0.01067804607
B157: 2015 | C157: 0.0173571266 | D157: 0.0173571266 | E157: 0.0173571266 | F157: 0
B158: 2016 | C158: 0.01933879402 | D158: 0.01579132223 | E158: 0.01329132223 | F158: 0.005
B159: 2017 | C159: 0.03105964471 | D159: 0.02258518845 | E159: 0.02008518845 | F159: 0.005
B160: 2018 | C160: 0.04644872072 | D160: 0.03228238648 | E160: 0.02978238648 | F160: 0.005
B161: 2019 | C161: 0.0396103461 | D161: 0.03903957051 | E161: 0.03653957051 | F161: 0.005
B162: 2020 | C162: 0.02985530353 | D162: 0.03863812345 | E162: 0.03613812345 | F162: 0.005
B163: 2021 | C163: 0.01139137603 | D163: 0.02695234189 | E163: 0.02445234189 | F163: 0.005
B164: 2022 | C164: 0.02700235448 | D164: 0.02274967801 | E164: 0.02024967801 | F164: 0.005
B165: 2023 | C165: 0.01831542916 | D165: 0.01890305322 | E165: 0.01640305322 | F165: 0.005
B166: 2024 | C166: 0.01538566616 | D166: 0.02023448327 | E166: 0.01773448327 | F166: 0.005
B167: 2025 | C167: 0.01457301022 | D167: 0.01609136851 | E167: 0.01359136851 | F167: 0.005
B168: 2026 | C168: 0.00116117586 | D168: 0.01037328408 | E168: 0.007873284083 | F168: 0.005
B169: 2027 | C169: 0.01103719257 | D169: 0.008923792884 | E169: 0.006423792884 | F169: 0.005
B170: 2028 | C170: 0.009859066312 | D170: 0.007352478246 | E170: 0.004852478246 | F170: 0.005
B171: 2029 | C171: 0.008469910193 | D171: 0.009788723024 | E171: 0.007288723024 | F171: 0.005
B172: 2030 | C172: 0.01473991062 | D172: 0.01102296238 | E172: 0.008522962376 | F172: 0.005
A175: Figur 54 | C175: Vækst i privat forbrug fra FM's strukturelle fremskrivning ved FFL17
B177: Pct. | C177: Privatforbrug | F177: Følsomhed
C178: Vækst | D178: 3års snit | E178: Lav
B179: 2000 | C179: 0.008865423129
B180: 2001 | C180: 0.002726829315
B181: 2002 | C181: 0.009191602616
B182: 2003 | C182: 0.01944645262
B183: 2004 | C183: 0.03787557797
B184: 2005 | C184: 0.03372455703
B185: 2006 | C185: 0.03126107494
B186: 2007 | C186: 0.02566962002
B187: 2008 | C187: 0.01410856375
B188: 2009 | C188: -0.0281338872
B189: 2010 | C189: 0.002623806444
B190: 2011 | C190: 0.002373025914
B191: 2012 | C191: 0.007066302844
B192: 2013 | C192: -0.0057082049
B193: 2014 | C193: 0.01035953535
B194: 2015 | C194: 0.02845576 | D194: 0.02845576 | E194: 0.02845576 | F194: 0
B195: 2016 | C195: 0.02109609 | D195: 0.01997046178 | E195: 0.01747046178 | F195: 0.005
B196: 2017 | C196: 0.01898624 | D196: 0.02284603 | E196: 0.02034603 | F196: 0.005
B197: 2018 | C197: 0.02537243 | D197: 0.02181825333 | E197: 0.01931825333 | F197: 0.005
B198: 2019 | C198: 0.02505228 | D198: 0.02313698333 | E198: 0.02063698333 | F198: 0.005
B199: 2020 | C199: 0.02555678 | D199: 0.02532716333 | E199: 0.02282716333 | F199: 0.005
B200: 2021 | C200: 0.02051974 | D200: 0.0237096 | E200: 0.0212096 | F200: 0.005
B201: 2022 | C201: 0.01821183 | D201: 0.02142945 | E201: 0.01892945 | F201: 0.005
B202: 2023 | C202: 0.01767302 | D202: 0.01880153 | E202: 0.01630153 | F202: 0.005
B203: 2024 | C203: 0.01572152 | D203: 0.01720212333 | E203: 0.01470212333 | F203: 0.005
B204: 2025 | C204: 0.0149232 | D204: 0.01610591333 | E204: 0.01360591333 | F204: 0.005
B205: 2026 | C205: 0.02099793 | D205: 0.01721421667 | E205: 0.01471421667 | F205: 0.005
B206: 2027 | C206: 0.01080883 | D206: 0.01557665333 | E206: 0.01307665333 | F206: 0.005
B207: 2028 | C207: 0.0123473 | D207: 0.01471802 | E207: 0.01221802 | F207: 0.005
B208: 2029 | C208: 0.01050412 | D208: 0.01122008333 | E208: 0.008720083333 | F208: 0.005
B209: 2030 | C209: 0.02271066 | D209: 0.01518736 | E209: 0.01268736 | F209: 0.005
A212: Tabel 55 | C212: Effekt fra energiselskabernes spareindsats
B215: Akkumulerede besparelser (PJ) | C215: 2020 | D215: 2025 | E215: 2030
B216: Erhvervene i alt | C216: 21.21 | D216: 18.94 | E216: 17.21
B217: - heraf el | C217: 3.76 | D217: 3.3 | E217: 2.91
B218: - heraf øvrig | C218: 17.45 | D218: 15.63 | E218: 14.3
A220: Tabel 56 | C220: Effekt fra bygningsreglementetskrav for nye erhvervsbygninger
B223: Akkumulerede besparelser (PJ) | C223: 2020 | D223: 2025 | E223: 2030
B224: Erhvervene i alt | C224: 1.4 | D224: 3.12 | E224: 4.84
B225: - heraf el | C225: 0.35 | D225: 0.78 | E225: 1.21
B226: - heraf øvrig | C226: 1.05 | D226: 2.34 | E226: 3.63
A229: Tabel 57 | C229: Effekt fra bygningsreglementetskrav for eksisterende erhvervsbygninger
B232: Akkumulerede besparelser (PJ) | C232: 2020 | D232: 2025 | E232: 2030
B233: Erhvervene i alt | C233: 1.2 | D233: 2.4 | E233: 3.61
B234: - heraf el | C234: 0.4 | D234: 0.8 | E234: 1.2
B235: - heraf øvrig | C235: 0.8 | D235: 1.6 | E235: 2.4
A238: Tabel 58 | C238: Effekt af produktkrav for erhvervene
B241: Akkumulerede besparelser (PJ) | C241: 2020 | D241: 2025 | E241: 2030
B242: Erhvervene i alt | C242: 4.55 | D242: 5.83 | E242: 7.1
B243: - heraf el | C243: 4.31 | D243: 5.51 | E243: 6.72
B244: - heraf øvrig | C244: 0.24 | D244: 0.31 | E244: 0.38
A247: Tabel 59 | C247: Effekt af ecodesign og energimærkning af produkter i husholdninger
B250: Akkumulerede besparelser (PJ) | C250: 2020 | D250: 2025 | E250: 2030
B251: Husholdninger i alt | C251: 3.58 | D251: 4.58 | E251: 5.58
B252: - heraf el til appa + lys | C252: 3.33 | D252: 4.26 | E252: 5.2
B253: - opvarmning | C253: 0.24 | D253: 0.31 | E253: 0.38
A256: Figur 55 | C256: Erhvervslivets samlede endelige energiforbrug
B259: PJ | C259: I alt | D259: Lav | E259: Følsomhed
B260: 2000 | C260: 247.4030885 | D260: 247.4030885
... 548 more rows

Sheet Baggrund 7 - Transport
A1: 7 - Transport
A3: Tabel 61 | C3: Den anvendte vækst i trafikarbejdet i BF17 for vejtransporten
C5: BF2015 | F5: BF2016
C6: 2010-2020 | D6: 2021-2030 | E6: 2031-2035 | F6: 2010-2020 | G6: 2020-2030 | H6: 2031-2035
A7: Personbiler | C7: 0.019 | D7: 0.0164 | E7: 0 % | F7: 0.0173 | G7: 0.0166 | H7: 0.0148
A8: Varebiler | C8: 0.0152 | D8: 0.0124 | E8: 0 % | F8: 0.0129 | G8: 0.0117 | H8: 0.01
A9: Lastbiler | C9: 0.021 | D9: 0.015 | E9: 0 % | F9: 0.016 | G9: 0.0129 | H9: 0.0097
A10: Busser | C10: 0.0047 | D10: 0.0047 | E10: 0 % | F10: 0.0047 | G10: 0.0047 | H10: 0.0047
A12: Tabel 62 | C12: Årlige reduktion i årskørsel for hver køretøjskategori for vejtransporten
A14: Køretøjskategori | D14: Årlig reduktion i årskørsel
A15: Personbiler | B15: Benzin | C15: Lille (<1,4 l) | D15: 2,2 %
A16: Personbiler | B16: Benzin | C16: Mellem (1,4-2,0) | D16: 2,2 %
A17: Personbiler | B17: Benzin | C17: Stor (>2,0 l) | D17: 2,2 %
A18: Personbiler | B18: Diesel | C18: Lille | D18: 2,2 %
A19: Personbiler | B19: Diesel | C19: Mellem | D19: 2,2 %
A20: Personbiler | B20: Diesel | C20: Stor | D20: 2,2 %
A21: Personbiler | B21: Gas | C21: Alle | D21: 2,2 %
A22: Personbiler | B22: El | C22: Mellem (<1,6 t) | D22: 2,2 % *
A23: Personbiler | B23: El | C23: Stor (>1,6 t) | D23: 2,2 % *
A24: Personbiler | B24: Brint | C24: Alle | D24: 2,2 % *
A25: Varebiler | B25: Benzin | C25: Varebil | D25: 2,3 %
A26: Varebiler | B26: Diesel | C26: Varebil | D26: 4,4 %
A27: Varebiler | B27: Gas | C27: Varebil | D27: 2,3 % *
A28: Varebiler | B28: El | C28: Varebil | D28: 2,3 % *
A29: Anh & sættevognstog | B29: Diesel | C29: Diesel TT/AT 28 - 34t | D29: 9 %
A30: Anh & sættevognstog | B30: Diesel | C30: Diesel TT/AT 34 - 40t | D30: 9 %
A31: Anh & sættevognstog | B31: Diesel | C31: Diesel TT/AT 40 - 50t | D31: 9 %
A32: Anh & sættevognstog | B32: Diesel | C32: Diesel TT/AT 50 - 60t | D32: 9 %
A33: Anh & sættevognstog | B33: Diesel | C33: Diesel TT/AT >60t | D33: 9 %
A34: Sololastbil | B34: Diesel | C34: <12t | D34: 10 %
A35: Sololastbil | B35: Diesel | C35: >12t | D35: 10 %
A36: Anh & sættevognstog | B36: Gas | C36: Diesel TT/AT 28 - 34t | D36: 9 % *
A37: Anh & sættevognstog | B37: Gas | C37: Diesel TT/AT 34 - 40t | D37: 9 % *
A38: Anh & sættevognstog | B38: Gas | C38: Diesel TT/AT 40 - 50t | D38: 9 % *
A39: Anh & sættevognstog | B39: Gas | C39: Diesel TT/AT 50 - 60t | D39: 9 % *
A40: Anh & sættevognstog | B40: Gas | C40: Diesel TT/AT >60t | D40: 9 % *
A41: Sololastbil | B41: Gas | C41: <12t | D41: 10 % *
A42: Sololastbil | B42: Gas | C42: >12t | D42: 10 % *
A43: Rutebus | B43: Diesel | C43: Rutebus | D43: 4 %
A44: Rutebus | B44: Gas | C44: Rutebus | D44: 4 % *
A45: Rutebus | B45: El | C45: Rutebus | D45: 4 % *
A46: Turistbus | B46: Diesel | C46: Turistbus | D46: 4 %
A47: Motorcykel | B47: Benzin | C47: Alle | D47: 2,2 %
A50: Tabel 63 | C50: Andelen af elbiler i bestand og nysalg igennem fremskrivningsperioden
A52: Udvikling i bestand af elbiler og elvarebiler | B52: BF15 | C52: BF17
A53: 2016
A54: Andel af salg | B54: 0.002 | C54: 0.007
A55: Andel af bestand | B55: 0.002 | C55: 0.003
A56: 2020
A57: Andel af salg | B57: 0.004 | C57: 0.037
A58: Andel af bestand | B58: 0.003 | C58: 0.01
A59: 2025
A60: Andel af salg | B60: 0.01 | C60: 0.023
A61: Andel af bestand | B61: 0.004 | C61: 0.016
A62: 2030
A63: Andel af salg | C63: 0.19
A64: Andel af bestand | C64: 0.04
A67: Tabel 64 | C67: Biogassens energiindhold i forhold til dieselen anvendt til tung transport
A69: År | B69: Andel i %
A70: 2020 | B70: 0,2 %
A71: 2025 | B71: 0,5 %
A72: 2030 | B72: 0,8 %
A73: 2035 | B73: 1,1 %
A76: Tabel 65 | C76: Den anvendte iblanding af biobrændstoffer i benzin og diesel
B78: 2016 | C78: 2020 | D78: 2025 | E78: 2030
A79: Krævet iblanding
A80: 1. g. bioætanol | B80: 5 % v/v i benzin (E5) | C80: 5 % v/v i benzin (E5) | D80: 5 % v/v i benzin (E5) | E80: 5 % v/v i benzin (E5)
A81: 1. g. biodiesel | B81: 7 % v/v i diesel (B7) | C81: 7 % v/v i diesel (B7) | D81: 7 % v/v i diesel (B7) | E81: 7 % v/v i diesel (B7)
A82: Avancerede biobrændstoffer | C82: 0,9 % v/v | D82: 0,9 % v/v | E82: 0,9 % v/v
A83: Resultat ift. biobrændstofloven | B83: 0.0536 | C83: 0.0602 | D83: 0.0605 | E83: 0.0603
A84: Rest opfyldes via
A85: Biogas tickets | B85: 0.001
A86: HVO | B86: 0,15 %, svarende til 0,24 PJ biodiesel eller 0,23 % på energibasis HVO i diesel
A87: 2. g. biobrændstoffer (her antaget baseret på animalsk fedt) | B87: 0,07 %, svarende til 0,12 PJ eller 0,12 % 2. g. biodiesel i diesel
A88: Total iblanding (på energibasis)
A89: Bioætanol i benzin | B89: 3,27 % | C89: 3,27 % | D89: 3,27 % | E89: 3,27 %
A90: Biodiesel i diesel | B90: 6,79 % | C90: 0.0656 | D90: 0.0656 | E90: 0.0656
A91: Biogas i naturgas | B91: 100 % | C91: 100 % | D91: 100 % | E91: 100 %
A94: Tabel 66 | C94: Diesel- og elforbruget til jernbanen i 2015
A96: PJ | B96: 2015
A97: Diesel | B97: 3.36
A98: El | B98: 1.43
A99: I alt | B99: 4.78
A102: Tabel 67 | C102: De anvendte brændstoffer i indenrigs- og udenrigslftfarten i 2015
A104: Lufttransport, indenrigs, fordelt på brændstoffer | C104: 2015
B105: Flyvebenzin | C105: 0.04
B106: JP1 | C106: 1.22
B107: Øvrige | C107: 0
A108: Lufttransport, udenrigs, fordelt på brændstoffer
B109: Flyvebenzin | C109: 0
B110: JP1 | C110: 36.97
A113: Tabel 68
A115: % årligt | B115: 2001-05 | C115: 2006-2010 | D115: 2011-15 | E115: 2016-20 | F115: 2021-2025 | G115: 2026-2030
A116: Trafikarbejde | B116: 3,24 % | C116: 1,88 % | D116: 2,76 % | E116: 2,73 % | F116: 2,84 % | G116: 2,90 %
A119: Tabel 69 | C119: Den årlige energieffektiviseing af trafikarbejdet for luftfarten
A121: % årligt | B121: 2011-15 | C121: 2016-20 | D121: 2021-2025 | E121: 2026-2030
A122: Energieffektivisering | B122: 0,69 % | C122: 1,55 % | D122: 2,03 % | E122: 2,37 %
A125: Tabel 70 | C125: Iblandingen af biojet i jetbrændstoffet for luftfarten
B127: 2015 | C127: 2020 | D127: 2025 | E127: 2030
A128: Iblanding af biojet | B128: 0 | C128: 1 % | D128: 3 % | E128: 5 %
A131: Tabel 71 | C131: Forsvarets brændstofforbrug i 2015
A133: PJ | B133: 2015
A134: Gas- og Dieselolie | B134: 0.74
A135: Benzin og LVN | B135: 0
A136: JP1 og JP4 | B136: 0.61
A137: Flyvebenzin | B137: 0
A138: I alt | B138: 1.36
A141: Tabel 72 | C141: Søfartens brændstofforbrug i 2015
A143: PJ | B143: 2015
A144: Fuelolie og Spildolie | B144: 0.04
A145: Diesel | B145: 5.6
A146: I alt | B146: 5.64
A149: Tabel 73 | C149: Vejtransportens samlede energiforbrug i fremskrivningen
A151: PJ | B151: 2015 | C151: 2020 | D151: 2025 | E151: 2030
A152: Vejtransport | B152: 160.1 | C152: 160.4 | D152: 159.4 | E152: 159.5
A153: herunder
A154: Personbiler | B154: 100.8 | C154: 98.5 | D154: 95.9 | E154: 95.2
A155: Varebiler | B155: 28.5 | C155: 29.8 | D155: 30.7 | E155: 30.9
A156: Lastbiler | B156: 22.6 | C156: 24.2 | D156: 25.1 | E156: 25.8
A157: Busser | B157: 7.4 | C157: 7.2 | D157: 7 | E157: 6.9
A158: Motorcykler | B158: 0.8 | C158: 0.8 | D158: 0.8 | E158: 0.8
A161: Tabel 74 | C161: Anvendte elasticiteter for trafikarbejdet
A163: Elasticiteter
A164: Personbiler | B164: 0.44
A165: Varebiler | B165: 0.46
A166: Lastbiler | B166: 0.99
A167: Busser | B167: 0
A170: Tabel 75 | C170: Andelen af elbiler i nysalget og bestand som følge af forskellige prisudviklinger for elbilen
A172: Udvikling i bestand af elbiler og elvarebiler | B172: Middel-forløb | C172: 6 % reduktion | D172: 2 % reduktion
A173: 2016
A174: Andel af salg | B174: 0.007 | C174: 0.007 | D174: 0.007
A175: Andel af bestand | B175: 0.003 | C175: 0.003 | D175: 0.003
A176: 2025
A177: Andel af salg | B177: 0.023 | C177: 0.12 | D177: 0.006
A178: Andel af bestand | B178: 0.016 | C178: 0.026 | D178: 0.011
A179: 2030
A180: Andel af salg | B180: 0.19 | C180: 0.43 | D180: 0.006
A181: Andel af bestand | B181: 0.04 | C181: 0.11 | D181: 0.01
A184: Figur 76 | C184: Den forventede prisudvikling for en VW Golf på el og benzin under antagelse om uændret batteristørrelse
B187: 2015 | C187: 2016 | D187: 2017 | E187: 2018 | F187: 2019 | G187: 2020 | H187: 2021 | I187: 2022 | J187: 2023 | K187: 2024 | L187: 2025 | M187: 2026 | N187: 2027 | O187: 2028 | P187: 2029 | Q187: 2030
A188: 4 pct. | B188: 286500 | C188: 291129 | D188: 299549.44 | E188: 316666.8064 | F188: 316414.8052 | G188: 299435.6947 | H188: 275265.2669 | I188: 252029.2562 | J188: 229645.2859 | K188: 217810.9898 | L188: 209874.5502 | M188: 202255.5682 | N188: 194941.3455 | O188: 187919.6917 | P188: 181178.904 | Q188: 174707.7478
A189: Benzin | B189: 275000 | C189: 275000 | D189: 275000 | E189: 275000 | F189: 275000 | G189: 275000 | H189: 275000 | I189: 275000 | J189: 275000 | K189: 275000 | L189: 275000 | M189: 275000 | N189: 275000 | O189: 275000 | P189: 275000 | Q189: 275000
A190: Benzin - 20 pct. billigere | B190: 220000 | C190: 220000 | D190: 220000 | E190: 220000 | F190: 220000 | G190: 220000 | H190: 220000 | I190: 220000 | J190: 220000 | K190: 220000 | L190: 220000 | M190: 220000 | N190: 220000 | O190: 220000 | P190: 220000 | Q190: 220000
A204: Figur 77 | C204: Andelen af elbiler af det samlede nysalg
A206: Elbilindfasning
B207: 2021 | C207: 2022 | D207: 2023 | E207: 2024 | F207: 2025 | G207: 2026 | H207: 2027 | I207: 2028 | J207: 2029 | K207: 2030
A208: Middelforløb | B208: 0.02 | C208: 0.02 | D208: 0.02 | E208: 0.02 | F208: 0.0225 | G208: 0.0225 | H208: 0.03357103372 | I208: 0.09 | J208: 0.134 | K208: 0.186
A209: Norges elbilsalg | G209: 0.02038419016 | H209: 0.05446379215 | I209: 0.125 | J209: 0.18
A224: Figur 78 | C224: Transportens energiforbrug
B226: 2005 | C226: =B226+1 -> 2006 | D226: =C226+1 -> 2007 | E226: =D226+1 -> 2008 | F226: =E226+1 -> 2009 | G226: =F226+1 -> 2010 | H226: =G226+1 -> 2011 | I226: =H226+1 -> 2012 | J226: =I226+1 -> 2013 | K226: =J226+1 -> 2014 | L226: =K226+1 -> 2015 | M226: =L226+1 -> 2016 | N226: =M226+1 -> 2017 | O226: =N226+1 -> 2018 | P226: =O226+1 -> 2019 | Q226: =P226+1 -> 2020 | R226: =Q226+1 -> 2021 | S226: =R226+1 -> 2022 | T226: =S226+1 -> 2023 | U226: =T226+1 -> 2024 | V226: =U226+1 -> 2025 | W226: =V226+1 -> 2026 | X226: =W226+1 -> 2027 | Y226: =X226+1 -> 2028 | Z226: =Y226+1 -> 2029 | AA226: =Z226+1 -> 2030
A227: Samlet energiforbrug | B227: 215.7881595 | C227: 217.72462 | D227: 224.013494 | E227: 221.5537456 | F227: 208.3506827 | G227: 209.7313191 | H227: 210.2255703 | I227: 207.2570622 | J227: 205.2649525 | K227: 207.2668983 | L227: 211.6534712 | M227: 212.7854938 | N227: 212.9339361 | O227: 213.7967211 | P227: 214.2547278 | Q227: 214.4759997 | R227: 214.4346548 | S227: 214.4901698 | T227: 214.9837954 | U227: 215.180678 | V227: 215.3066535 | W227: 215.6401607 | X227: 216.0607191 | Y227: 216.4152281 | Z227: 216.6273578 | AA227: 216.5776883
A248: Figur 79 | C248: Transportens samlede energiforbrug i fremskrivningen fordelt på drivmidler og transportmidler
C250: 2015 | D250: 2016 | E250: 2017 | F250: 2018 | G250: 2019 | H250: 2020 | I250: 2021 | J250: 2022 | K250: 2023 | L250: 2024 | M250: 2025 | N250: 2026 | O250: 2027 | P250: 2028 | Q250: 2029 | R250: 2030
A251: Benzin | C251: 57.97038667 | D251: 56.35125977 | E251: 54.88420691 | F251: 53.78723569 | G251: 52.75141583 | H251: 51.8190446 | I251: 51.06376978 | J251: 50.52922976 | K251: 50.20091676 | L251: 50.05895676 | M251: 50.06074351 | N251: 50.17822178 | O251: 50.35788778 | P251: 50.50436018 | Q251: 50.54092594 | R251: 50.44158793
A252: Diesel | C252: 102.9538733 | D252: 104.90637 | E252: 105.954128 | F252: 107.311746 | G252: 108.1677994 | H252: 108.9406511 | I252: 109.2043748 | J252: 109.3807437 | K252: 109.4417673 | L252: 109.0967565 | M252: 108.7997284 | N252: 108.7073971 | O252: 107.1918176 | P252: 107.0057967 | Q252: 106.6876271 | R252: 106.161323
A253: El | C253: 1.4292 | D253: 1.542651846 | E253: 1.638166678 | F253: 1.704025705 | G253: 1.829246606 | H253: 1.97174506 | I253: 2.078792446 | J253: 2.145108404 | K253: 2.558275846 | L253: 2.889728379 | M253: 2.953793578 | N253: 3.018102252 | O253: 4.526505194 | P253: 4.678552082 | Q253: 4.939006099 | R253: 5.297498661
A254: Biobrændsler | C254: 8.774738795 | D254: 8.849864114 | E254: 8.901863515 | F254: 8.965347766 | G254: 8.994246673 | H254: 9.156638127 | I254: 9.324226223 | J254: 9.495841411 | K254: 9.669059875 | L254: 9.844698361 | M254: 10.02531023 | N254: 10.20734819 | O254: 10.39417542 | P254: 10.57459969 | Q254: 10.74393254 | R254: 10.89597523
A255: Biogas | C255: 0 | D255: 0 | E255: 0 | F255: 0 | G255: 0 | H255: 0 | I255: 0 | J255: 0 | K255: 0 | L255: 0 | M255: 0 | N255: 0 | O255: 0 | P255: 0 | Q255: 0 | R255: 0
A256: Naturgas | C256: 0.07634418393 | D256: 0.07670401924 | E256: 0.07509278915 | F256: 0.07319490436 | G256: 0.07653146763 | H256: 0.08821437555 | I256: 0.104968467 | J256: 0.1219074295 | K256: 0.1377574245 | L256: 0.1559976578 | M256: 0.1741805127 | N256: 0.1901623294 | O256: 0.2059805845 | P256: 0.2229246739 | Q256: 0.2429719484 | R256: 0.2647289403
A257: Brint | C257: 0 | D257: 0.001614829614 | E257: 0.001954349484 | F257: 0.002529547066 | G257: 0.003209193723 | H257: 0.00386180644 | I257: 0.004607891674 | J257: 0.005447026808 | K257: 0.00625408151 | L257: 0.007020520628 | M257: 0.007749651584 | N257: 0.008542429004 | O257: 0.009409731913 | P257: 0.01018692237 | Q257: 0.01092063916 | R257: 0.01214331261
A258: JP1 og JP4 | C258: 40.36340565 | D258: 40.97087762 | E258: 41.39186898 | F258: 41.8654775 | G258: 42.34459954 | H258: 42.40809727 | I258: 42.56644806 | J258: 42.72488304 | K258: 42.88338617 | L258: 43.04193918 | M258: 43.20052168 | N258: 43.24696877 | O258: 43.29286098 | P258: 43.33817554 | Q258: 43.38288864 | R258: 43.42697572
A259: Flyvebenzin | C259: 0.04633602 | D259: 0.04696492725 | E259: 0.04746822622 | F259: 0.04797738436 | G259: 0.04849246985 | H259: 0.0485607338 | I259: 0.04828049955 | J259: 0.04782242174 | K259: 0.04719130551 | L259: 0.04639401877 | M259: 0.04543936851 | N259: 0.04423117028 | O259: 0.04289513004 | P259: 0.04144569514 | Q259: 0.03989826225 | R259: 0.03826890223
A260: Fuelolie og Spildolie | C260: 0.0391866 | D260: 0.0391866 | E260: 0.0391866 | F260: 0.0391866 | G260: 0.0391866 | H260: 0.0391866 | I260: 0.0391866 | J260: 0.0391866 | K260: 0.0391866 | L260: 0.0391866 | M260: 0.0391866 | N260: 0.0391866 | O260: 0.0391866 | P260: 0.0391866 | Q260: 0.0391866 | R260: 0.0391866
A263: PJ | C263: 2015 | D263: 2016 | E263: 2017 | F263: 2018 | G263: 2019 | H263: 2020 | I263: 2021 | J263: 2022 | K263: 2023 | L263: 2024 | M263: 2025 | N263: 2026 | O263: 2027 | P263: 2028 | Q263: 2029 | R263: 2030
A264: Personbiler | C264: 100.8109699 | D264: 100.5363026 | E264: 99.9276553 | F264: 99.72351961 | G264: 99.17092308 | H264: 98.46103356 | I264: 97.72921917 | J264: 97.11409667 | K264: 96.60271886 | L264: 96.19526936 | M264: 95.90910861 | N264: 95.73191406 | O264: 95.65621347 | P264: 95.578168 | Q264: 95.44388935 | R264: 95.19044227
A265: Varebiler | C265: 28.50296185 | D265: 28.80533223 | E265: 29.0573791 | F265: 29.34017824 | G265: 29.57665431 | H265: 29.77437002 | I265: 29.9539977 | J265: 30.13934879 | K265: 30.31742537 | L265: 30.48788431 | M265: 30.64845424 | N265: 30.8006347 | O265: 30.93610455 | P265: 31.01071123 | Q265: 31.0009662 | R265: 30.89256214
A266: Lastbiler | C266: 22.59800612 | D266: 22.9936049 | E266: 23.32981121 | F266: 23.68282972 | G266: 23.98531107 | H266: 24.2369538 | I266: 24.43816735 | J266: 24.62457206 | K266: 24.79949067 | L266: 24.96493501 | M266: 25.12369715 | N266: 25.27655972 | O266: 25.42605213 | P266: 25.57297558 | Q266: 25.71871394 | R266: 25.81650849
A267: Busser | C267: 7.392032136 | D267: 7.294641588 | E267: 7.312883734 | F267: 7.265769487 | G267: 7.213269186 | H267: 7.165304711 | I267: 7.120211978 | J267: 7.080869513 | K267: 7.043351466 | L267: 7.009896057 | M267: 6.980495414 | N267: 6.953349994 | O267: 6.930546246 | P267: 6.906317242 | Q267: 6.880246059 | R267: 6.856908447
A268: Motorcykler mv. | C268: 0.7751617246 | D268: 0.7740556858 | E268: 0.7730657531 | F268: 0.7720770513 | G268: 0.7711267357 | H268: 0.7702139699 | I268: 0.7693379197 | J268: 0.7684977854 | K268: 0.7676927691 | L268: 0.7669221057 | M268: 0.766185032 | N268: 0.7654808163 | O268: 0.7648087287 | P268: 0.7641680693 | Q268: 0.7635581399 | R268: 0.762978271
A269: Banetransport | C269: 4.784703471 | D269: 4.790507431 | E269: 4.53107744 | F269: 4.53616583 | G269: 4.581625146 | H269: 4.627084462 | I269: 4.651309884 | J269: 4.656398274 | K269: 5.010129 | L269: 4.973538082 | M269: 4.754568089 | N269: 4.759677604 | O269: 4.764861661 | P269: 4.769971342 | Q269: 4.775081022 | R269: 4.780190702
A270: Indenrigsluftfart | C270: 1.263479708 | D270: 1.278319909 | E270: 1.293199942 | F270: 1.308253201 | G270: 1.323481703 | H270: 1.338887487 | I270: 1.349408554 | J270: 1.360012305 | K270: 1.370699388 | L270: 1.38147046 | M270: 1.39232618 | N270: 1.399577852 | O270: 1.406867298 | P270: 1.414194713 | Q270: 1.421560295 | R270: 1.428964243
A271: Søfart | C271: 5.639706667 | D271: 5.639706667 | E271: 5.639706667 | F271: 5.639706667 | G271: 5.639706667 | H271: 5.639706667 | I271: 5.639706667 | J271: 5.639706667 | K271: 5.639706667 | L271: 5.639706667 | M271: 5.639706667 | N271: 5.639706667 | O271: 5.639706667 | P271: 5.639706667 | Q271: 5.639706667 | R271: 5.639706667
A272: Forsvaret | C272: 1.355353353 | D272: 1.693366642 | E272: 1.635719075 | F272: 1.635719075 | G272: 1.635719075 | H272: 1.635719075 | I272: 1.635719075 | J272: 1.635719075 | K272: 1.635719075 | L272: 1.635719075 | M272: 1.635719075 | N272: 1.635719075 | O272: 1.635719075 | P272: 1.635719075 | Q272: 1.635719075 | R272: 1.635719075
A273: Udenrigsluftfart | C273: 38.53109627 | D273: 38.97965609 | E273: 39.43343781 | F273: 39.89250223 | G273: 40.35691085 | H273: 40.82672588 | I273: 41.1475765 | J273: 41.47094863 | K273: 41.79686209 | L273: 42.12533685 | M273: 42.45639304 | N273: 42.67754017 | O273: 42.89983921 | P273: 43.12329617 | Q273: 43.34791706 | R273: 43.57370797
A276: Figur 80 | C276: Andelen af elpersonbiler i salg og bestand i fremskrivningen
B278: Andel af salg | C278: Andel af bestand
A279: 2015 | C279: 0.002880557718
A280: 2016 | C280: 0.003438227658
A281: 2017 | C281: 0.004402310263
A282: 2018 | C282: 0.005796121142
A283: 2019 | C283: 0.007840124261
A284: 2020 | C284: 0.01035822779
A285: 2021 | B285: 0.02046414187 | C285: 0.01153937493
A286: 2022 | B286: 0.02025113216 | C286: 0.0126619609
A287: 2023 | B287: 0.01983716476 | C287: 0.01371185384
A288: 2024 | B288: 0.01933259667 | C288: 0.01468334255
A289: 2025 | B289: 0.02170826501 | C289: 0.01575314053
A290: 2026 | B290: 0.0208471064 | C290: 0.01670131844
A291: 2027 | B291: 0.03111863405 | C291: 0.01827157565
A292: 2028 | B292: 0.07890120865 | C292: 0.02316774121
A293: 2029 | B293: 0.1163619839 | C293: 0.03047559603
A294: 2030 | B294: 0.1581558535 | C294: 0.04049331344
A297: Figur 81 | C297: Andelen af fossile drivmidler i transportens energiforbrug i fremskrivningen
B299: 2016 | C299: =B299+1 -> 2017 | D299: 2018 | E299: 2019 | F299: 2020 | G299: 2021 | H299: 2022 | I299: 2023 | J299: 2024 | K299: 2025 | L299: =K299+1 -> 2026 | M299: =L299+1 -> 2027 | N299: =M299+1 -> 2028 | O299: =N299+1 -> 2029 | P299: =O299+1 -> 2030
A300: Fossile drivmidler i transporten | B300: 0.9510942428 | C300: 0.950402307 | D300: 0.949966906 | E300: 0.9493263527 | F300: 0.9478683125 | G300: 0.9464858654 | H300: 0.9452986572 | I300: 0.9426065244 | J300: 0.9402923275 | K300: 0.9391808996 | L300: 0.938123729 | M300: 0.9303888272 | N300: 0.9289571548 | O300: 0.9270315064 | P300: 0.9246432903
A317: Figur 82 | C317: Effekten af variation i den økonomiske vækst på transportens samlede energiforbrug i fremskrivningen
A319: PJ | C319: 2015 | D319: 2016 | E319: 2017 | F319: 2018 | G319: 2019 | H319: 2020 | I319: 2021 | J319: 2022 | K319: 2023 | L319: 2024 | M319: 2025 | N319: 2026 | O319: 2027 | P319: 2028 | Q319: 2029 | R319: 2030
A320: Middelforløb | C320: 211.6534712 | D320: 212.7854937 | E320: 212.933936 | F320: 213.7967211 | G320: 214.2547278 | H320: 214.4759996 | I320: 214.4346548 | J320: 214.4901698 | K320: 214.9837954 | L320: 215.180678 | M320: 215.3066535 | N320: 215.6401607 | O320: 216.060719 | P320: 216.4152281 | Q320: 216.6273578 | R320: 216.5776883
A321: Høj vækst | C321: 211.6534712 | D321: 212.9664198 | E321: 213.4637563 | F321: 214.3585905 | G321: 214.9786672 | H321: 215.4196627 | I321: 215.5660186 | J321: 215.8242083 | K321: 216.5120558 | L321: 216.9190983 | M321: 217.245438 | N321: 217.7964379 | O321: 218.4235787 | P321: 219.0025625 | Q321: 219.4267291 | R321: 219.6048317
A322: Lav vækst | C322: 211.6534712 | D322: 212.6045677 | E322: 212.382886 | F322: 213.2361844 | G322: 213.5156223 | H322: 213.5374429 | I322: 213.3117692 | J322: 213.1676935 | K322: 213.4716174 | L322: 213.4626608 | M322: 213.3940337 | N322: 213.5157241 | O322: 213.7367495 | P322: 213.8738529 | Q322: 213.8823429 | R322: 213.6133636
... 45 more rows

Sheet Baggrund 8 - Ikke-energiformål
A1: 8 - Ikke-energiformål
A3: Tabel 76 | C3: Fremskrivning af bestanden af kvæg
C6: 2015 | D6: 2020 | E6: 2025 | F6: 2030
B7: Gns. mælkeydelse, kg leveret/ko | C7: 9246 | D7: 9793 | E7: 10400 | F7: 11007
B8: Mælkeproduktion, 1000 tons | C8: 5270 | D8: 5657 | E8: 6155 | F8: 6737
B9: Oksekødsproduktion, 1000 tons | C9: 122 | D9: 129 | E9: 131 | F9: 134
B10: Besætning ultimo året (1000 dyr)
B11: Antal malkekvæg | C11: 570 | D11: 578 | E11: 592 | F11: 612
B12: Antal ammekvæg | C12: 94 | D12: 95 | E12: 93 | F12: 90
B13: Antal kalve under 1 år | C13: 530 | D13: 508 | E13: 489 | F13: 471
B14: Antal kvier o. 1 år | C14: 325 | D14: 330 | E14: 335 | F14: 344
B15: Tyre og stude o. 1 år | C15: 46 | D15: 47 | E15: 48 | F15: 49
A18: Tabel 77 | C18: Fremskrivning af bestanden af svin
C21: 2015 | D21: 2020 | E21: 2025 | F21: 2030
B22: Producerede grise pr. årsso | C22: 29.3 | D22: 31.6 | E22: 34.5 | F22: 37.7
B23: Svinekød produktion, 1000 tons | C23: 1608 | D23: 1681 | E23: 1665 | F23: 1674
B24: Antal producerede grise (1000 dyr)* | C24: 29848 | D24: 30608 | E24: 31124 | F24: 31398
B25: Antal eksporterede levende grise (1000 dyr) | C25: 10991 | D25: 11677 | E25: 12390 | F25: 13035
B26: Antal slagtede grise (1000 dyr) | C26: 19996 | D26: 18942 | E26: 18379 | F26: 18126
B27: Besætning ultimo året (1000 dyr)
B28: Antal søer (1000) | C28: 1019 | D28: 967 | E28: 902 | F28: 833
B29: Antal svin i alt | C29: 12702 | D29: 11631 | E29: 11688 | F29: 11465
A32: Tabel 78 | C32: Forventet nitrogen udskillelse pr. dyr
C35: 2015 | D35: 2016 | E35: 2020 | F35: 2025 | G35: 2030 | H35: 2035
B36: Svin (kg N per produceret dyr per år)
B37: Søer | C37: 24.24 | D37: 24.17 | E37: 23.93 | F37: 23.67 | G37: 23.52 | H37: 23.52
B38: Smågrise | C38: 0.48 | D38: 0.47 | E38: 0.44 | F38: 0.44 | G38: 0.43 | H38: 0.43
B39: Slagte svin | C39: 2.9 | D39: 2.88 | E39: 2.83 | F39: 2.82 | G39: 2.79 | H39: 2.79
B40: Kvæg (kg N pr. dyr pr. år)
B41: Malkekvæg | C41: 147 | D41: 148 | E41: 151 | F41: 157 | G41: 162 | H41: 162
A44: Tabel 79 | C44: Fordeling af miljøteknologier, svin
D46: 2015 | E46: 2020 | F46: 2025 | G46: 2030
B47: Søer | C47: Samlet produktion | D47: 1031667 | E47: 967391 | F47: 902117 | G47: 833004
C48: Kemisk luftvasker | D48: 1 | E48: 1 | F48: 1 | G48: 2
C49: Gyllekøling | D49: 12 | E49: 20 | F49: 30 | G49: 41
C50: Biologisk luftvasker | D50: 3 | E50: 6 | F50: 8 | G50: 11
C51: Gylleforsuring | D51: 1 | E51: 1 | F51: 2 | G51: 3
B52: Slagtesvin | C52: Samlet produktion | D52: 19861372 | E52: 18931150 | F52: 18733750 | G52: 18363320
C53: Kemisk luftvasker | D53: <1 | E53: 1 | F53: 3 | G53: 4
C54: Gyllekøling | D54: 1 | E54: 5 | F54: 9 | G54: 13
C55: Biologisk luftvasker | D55: <1 | E55: 2 | F55: 3 | G55: 5
C56: Gylleforsuring | D56: 1 | E56: 2 | F56: 4 | G56: 5
B57: Smågrise | C57: Samlet produktion | D57: 31505372 | E57: 30607850 | F57: 31123640 | G57: 31397870
C58: Kemisk luftvasker | D58: <1 | E58: 0 | F58: 0 | G58: 1
C59: Gyllekøling | D59: 2 | E59: 8 | F59: 13 | G59: 19
C60: Biologisk luftvasker | D60: 1 | E60: 3 | F60: 5 | G60: 7
C61: Gylleforsuring | D61: 1 | E61: 3 | F61: 5 | G61: 7
A63: Tabel 81 | C63: Fordeling af miljøteknologier, kvæg
D66: 2015 | E66: 2020 | F66: 2025 | G66: 2030
B67: Malkekvæg | C67: Samlet produktion | D67: 561000 | E67: 577700 | F67: 591900 | G67: 612100
C68: Gylleforsuring | D68: 5 | E68: 7 | F68: 10 | G68: 12
D69: 2015 | E69: 2020 | F69: 2025 | G69: 2030
B70: Kvier | C70: Samlet produktion | D70: 492100 | E70: 498100 | F70: 504000 | G70: 510000
C71: Gylleforsuring | D71: 2 | E71: 4 | F71: 5 | G71: 6
A74: Tabel 82 | C74: Fremskrivningsresuktater for anvendelse af dyrket areal
B76: 1000 ha. | C76: 2015 | D76: 2020 | E76: 2025 | F76: 2030
B77: Hvede | C77: 704 | D77: 657 | E77: 662 | F77: 665
B78: Byg | C78: 513 | D78: 621 | E78: 529 | F78: 457
B79: Andet korn | C79: 190 | D79: 85 | E79: 107 | F79: 116
B80: Raps | C80: 152 | D80: 155 | E80: 168 | F80: 182
B81: Proteinafgrøder | C81: 8 | D81: 8 | E81: 8 | F81: 8
B82: Kartofler | C82: 38 | D82: 38 | E82: 38 | F82: 38
B83: Sukkerroer | C83: 39 | D83: 38 | E83: 38 | F83: 38
B84: Andre afgrøder | C84: 118 | D84: 118 | E84: 118 | F84: 118
B85: Helsæd, majs | C85: 146 | D85: 157 | E85: 175 | F85: 200
B86: Græs og kløver i omdrift | C86: 446 | D86: 441 | E86: 435 | F86: 428
B87: Vedvarende græsarealer | C87: 190 | D87: 176 | E87: 163 | F87: 151
B88: Dyrket areal i alt | C88: 2545 | D88: 2495 | E88: 2441 | F88: 2401
A91: Figur 91 | C91: Fremskrivningsresuktater for anvendelse af dyrket areal
B94: Mio t. CO2e | C94: Energi | D94: Transport | E94: Energi total | F94: Non-energi | G94: Øvrig | H94: Non-energi total
B95: 1990 | C95: 48.00137254 | D95: 11.87884762 | E95: 59.88022016 | F95: 12.55234454 | G95: 4.106728334 | H95: 16.65907287
B96: 1991 | C96: 50.28667858 | D96: 12.51782431 | E96: 62.80450288 | F96: 12.40798011 | G96: 4.239512144 | H96: 16.64749225
B97: 1992 | C97: 48.86759768 | D97: 12.5634729 | E97: 61.43107058 | F97: 12.22090342 | G97: 4.27294851 | H97: 16.49385193
B98: 1993 | C98: 49.11562253 | D98: 12.76073345 | E98: 61.87635598 | F98: 12.17814989 | G98: 4.341108952 | H98: 16.51925884
B99: 1994 | C99: 47.7995303 | D99: 13.23821276 | E99: 61.03774306 | F99: 12.02274918 | G99: 4.384733758 | H99: 16.40748294
B100: 1995 | C100: 47.67871516 | D100: 13.36061942 | E100: 61.03933458 | F100: 12.01245449 | G100: 4.476284683 | H100: 16.48873917
B101: 1996 | C101: 48.48816897 | D101: 13.54115218 | E101: 62.02932114 | F101: 11.62700288 | G101: 4.583531213 | H101: 16.21053409
B102: 1997 | C102: 45.93740909 | D102: 13.6564019 | E102: 59.59381099 | F102: 11.62470909 | G102: 4.590163335 | H102: 16.21487242
B103: 1998 | C103: 44.12524762 | D103: 13.60976383 | E103: 57.73501145 | F103: 11.63032993 | G103: 4.648669438 | H103: 16.27899937
B104: 1999 | C104: 43.48912525 | D104: 13.54959341 | E104: 57.03871866 | F104: 11.2590697 | G104: 4.957774126 | H104: 16.21684383
B105: 2000 | C105: 41.86116009 | D105: 13.20991196 | E105: 55.07107205 | F105: 11.16379515 | G105: 5.144314541 | H105: 16.30810969
B106: 2001 | C106: 42.54081118 | D106: 13.16513629 | E106: 55.70594747 | F106: 11.17531988 | G106: 5.063019697 | H106: 16.23833958
B107: 2002 | C107: 40.79610933 | D107: 13.22043441 | E107: 54.01654374 | F107: 11.21778234 | G107: 5.045234988 | H107: 16.26301733
B108: 2003 | C108: 40.31870147 | D108: 13.66947249 | E108: 53.98817396 | F108: 10.96991564 | G108: 5.070814476 | H108: 16.04073012
B109: 2004 | C109: 38.8851529 | D109: 14.12198258 | E109: 53.00713547 | F109: 10.92397643 | G109: 4.598280644 | H109: 15.52225707
B110: 2005 | C110: 38.42199931 | D110: 14.23185804 | E110: 52.65385735 | F110: 10.73343539 | G110: 4.064477861 | H110: 14.79791325
B111: 2006 | C111: 39.34671152 | D111: 14.41660714 | E111: 53.76331866 | F111: 10.4586322 | G111: 4.1797485 | H111: 14.6383807
B112: 2007 | C112: 38.67871317 | D112: 15.04703835 | E112: 53.72575151 | F112: 10.68377078 | G112: 4.199068432 | H112: 14.88283921
B113: 2008 | C113: 37.75865219 | D113: 14.64200072 | E113: 52.40065291 | F113: 10.64619499 | G113: 3.876469811 | H113: 14.5226648
B114: 2009 | C114: 35.49788124 | D114: 13.92425669 | E114: 49.42213793 | F114: 10.36833494 | G114: 3.351995976 | H114: 13.72033092
B115: 2010 | C115: 34.95765144 | D115: 13.79611739 | E115: 48.75376883 | F115: 10.30455507 | G115: 3.224395933 | H115: 13.528951
B116: 2011 | C116: 31.85636576 | D116: 13.49556146 | E116: 45.35192722 | F116: 10.30488522 | G116: 3.362350035 | H116: 13.66723526
B117: 2012 | C117: 31.03318318 | D117: 12.75826224 | E117: 43.79144543 | F117: 10.24926845 | G117: 3.272995386 | H117: 13.52226384
B118: 2013 | C118: 29.56868722 | D118: 12.56358415 | E118: 42.13227138 | F118: 10.2579273 | G118: 3.255650508 | H118: 13.51357781
B119: 2014 | C119: 26.19727973 | D119: 12.71362631 | E119: 38.91090604 | F119: 10.35173228 | G119: 3.246129841 | H119: 13.59786212
B120: 2015 | C120: 25.60996191 | D120: 12.87663511 | E120: 38.48659702 | F120: 10.27035325 | G120: 3.144215774 | H120: 13.41456903
B121: 2016 | C121: 24.51750136 | D121: 13.1509587 | E121: 37.66846005 | F121: 10.41262182 | G121: 2.864413959 | H121: 13.27703578
B122: 2017 | C122: 19.56669297 | D122: 13.11913284 | E122: 32.68582581 | F122: 10.56250937 | G122: 2.723139532 | H122: 13.2856489
B123: 2018 | C123: 18.91769319 | D123: 13.13572259 | E123: 32.05341578 | F123: 10.5624876 | G123: 2.638227797 | H123: 13.2007154
B124: 2019 | C124: 18.58687579 | D124: 13.12089948 | E124: 31.70777528 | F124: 10.57025105 | G124: 2.581272131 | H124: 13.15152318
B125: 2020 | C125: 18.62946484 | D125: 13.1078328 | E125: 31.73729765 | F125: 10.561676 | G125: 2.477263119 | H125: 13.03893912
B126: 2021 | C126: 19.23131518 | D126: 13.06885237 | E126: 32.30016755 | F126: 10.57080721 | G126: 2.488471105 | H126: 13.05927831
B127: 2022 | C127: 19.9315778 | D127: 13.04073339 | E127: 32.97231119 | F127: 10.5876113 | G127: 2.466464073 | H127: 13.05407537
B128: 2023 | C128: 20.85883497 | D128: 13.02087002 | E128: 33.87970499 | F128: 10.59367966 | G128: 2.434960393 | H128: 13.02864005
B129: 2024 | C129: 21.38256662 | D129: 12.98343918 | E129: 34.3660058 | F129: 10.61131161 | G129: 2.412299021 | H129: 13.02361063
B130: 2025 | C130: 22.71329812 | D130: 12.96094343 | E130: 35.67424155 | F130: 10.62569104 | G130: 2.408527587 | H130: 13.03421862
B131: 2026 | C131: 23.13139294 | D131: 12.96451039 | E131: 36.09590333 | F131: 10.63787206 | G131: 2.39683174 | H131: 13.0347038
B132: 2027 | C132: 23.67905894 | D132: 12.86605844 | E132: 36.54511737 | F132: 10.65179405 | G132: 2.396814875 | H132: 13.04860892
B133: 2028 | C133: 24.5567998 | D133: 12.86406908 | E133: 37.42086887 | F133: 10.66731249 | G133: 2.393891754 | H133: 13.06120425
B134: 2029 | C134: 25.0482385 | D134: 12.84477391 | E134: 37.89301242 | F134: 10.68514432 | G134: 2.388114528 | H134: 13.07325885
B135: 2030 | C135: 25.01156711 | D135: 12.80040139 | E135: 37.8119685 | F135: 10.70001798 | G135: 2.395562868 | H135: 13.09558085
A138: Tabel 83 | C138: Andel af samlede udledninger, fordelt på gasarter
B141: Andel af de samlede udledninger | C141: 1990 | D141: 2015 | E141: 2020 | F141: 2030
B142: Energirelateret CO2 | C142: 0.77 | D142: 0.73 | E142: 0.69 | F142: 0.73
B143: Metan | C143: 0.03 | D143: 0.03 | E143: 0.04 | F143: 0.04
B144: Lattergas | C144: 0.1 | D144: 0.13 | E144: 0.14 | F144: 0.12
B145: F-gasser | C145: 0.1 | D145: 0.1 | E145: 0.12 | F145: 0.11
B146: Ikke-energirelateret CO2 | C146: 0 | D146: 0.01 | E146: 0.01 | F146: 0
A149: Figur 92 | C149: Samlede udledninger for ikke-energirelateret aktivitet, fordelt på gasarter
B152: Mio. t. CO2e | C152: Metan | D152: Lattergas | E152: F-gasser | F152: Ikke-energi CO2
B153: 1990 | C153: 7.624356106 | D153: 7.803226246 | E153: 0.042408 | F153: 1.914074126
B154: 1991 | C154: 7.813920838 | D154: 7.660132173 | E154: 0.0605796 | F154: 1.999678098
B155: 1992 | C155: 7.892390728 | D155: 7.387179957 | E155: 0.0887393 | F155: 2.023795932
B156: 1993 | C156: 8.087276295 | D156: 7.198878175 | E156: 0.198800295 | F156: 1.975935484
B157: 1994 | C157: 7.977370428 | D157: 7.124854449 | E157: 0.262847148 | F157: 2.076368167
B158: 1995 | C158: 8.051454611 | D158: 7.067191764 | E158: 0.344486727 | F158: 2.198656987
B159: 1996 | C159: 8.165052298 | D159: 6.747086909 | E159: 0.4401092284 | F159: 2.194473897
B160: 1997 | C160: 8.054882355 | D160: 6.769573351 | E160: 0.4512454388 | F160: 2.317653088
B161: 1998 | C161: 8.110648496 | D161: 6.837805457 | E161: 0.5436203328 | F161: 2.143737653
B162: 1999 | C162: 8.01615952 | D162: 6.914735394 | E162: 0.6596507119 | F162: 2.135878657
B163: 2000 | C163: 7.907269936 | D163: 6.862220444 | E163: 0.7821744964 | F163: 2.147104876
B164: 2001 | C164: 8.145921607 | D164: 6.659983051 | E164: 0.7916928635 | F164: 2.074270145
B165: 2002 | C165: 8.073647001 | D165: 6.622328107 | E165: 0.8314840063 | F165: 2.122475779
B166: 2003 | C166: 8.079663563 | D166: 6.503681602 | E166: 0.8661557084 | F166: 1.977197364
B167: 2004 | C167: 7.904839106 | D167: 6.064790331 | E167: 0.9265738176 | F167: 2.026401625
B168: 2005 | C168: 7.671327341 | D168: 5.417160654 | E168: 0.9713023903 | F168: 2.034592359
B169: 2006 | C169: 7.575701442 | D169: 5.301044458 | E169: 1.012432853 | F169: 2.02613865
B170: 2007 | C170: 7.560168339 | D170: 5.478177007 | E170: 1.038652983 | F170: 2.025269807
B171: 2008 | C171: 7.429354463 | D171: 5.445086316 | E171: 1.040682787 | F171: 1.765609329
B172: 2009 | C172: 7.284815262 | D172: 5.197347809 | E172: 1.005341865 | F172: 1.268629564
B173: 2010 | C173: 7.34733795 | D173: 5.117021804 | E173: 1.004846813 | F173: 1.182224008
B174: 2011 | C174: 7.185258034 | D174: 5.127633558 | E174: 0.9715365928 | F174: 1.364059399
B175: 2012 | C175: 7.057417724 | D175: 5.006910886 | E175: 0.9252104889 | F175: 1.384832985
B176: 2013 | C176: 6.950549295 | D176: 5.016410198 | E176: 0.9223759023 | F176: 1.45064843
B177: 2014 | C177: 6.94681024 | D177: 5.092969138 | E177: 0.8427041542 | F177: 1.468968269
B178: 2015 | C178: 6.848507132 | D178: 5.153390737 | E178: 0.7419570754 | F178: 1.424665713
B179: 2016 | C179: 6.724206516 | D179: 5.22663356 | E179: 0.6471873666 | F179: 1.478331757
B180: 2017 | C180: 6.587421546 | D180: 5.373371935 | E180: 0.5829407838 | F180: 1.493196461
B181: 2018 | C181: 6.449230359 | D181: 5.40365252 | E181: 0.5442795077 | F181: 1.537561238
B182: 2019 | C182: 6.341677437 | D182: 5.410037665 | E182: 0.532911423 | F182: 1.585373556
B183: 2020 | C183: 6.223328224 | D183: 5.399434794 | E183: 0.4722489037 | F183: 1.634018989
B184: 2021 | C184: 6.224941923 | D184: 5.418178254 | E184: 0.432370035 | F184: 1.684891605
B185: 2022 | C185: 6.261413752 | D185: 5.433877081 | E185: 0.3618235033 | F185: 1.733616235
B186: 2023 | C186: 6.260435446 | D186: 5.43798776 | E186: 0.3106668715 | F186: 1.752955103
B187: 2024 | C187: 6.268688969 | D187: 5.444490014 | E187: 0.2677709169 | F187: 1.772672982
B188: 2025 | C188: 6.276636448 | D188: 5.45668491 | E188: 0.2347125573 | F188: 1.801033806
B189: 2026 | C189: 6.283804813 | D189: 5.461342009 | E189: 0.207807217 | F189: 1.814951534
B190: 2027 | C190: 6.285531377 | D190: 5.464502477 | E190: 0.1861023782 | F190: 1.835016607
B191: 2028 | C191: 6.29497267 | D191: 5.469814495 | E191: 0.1680382964 | F191: 1.848230669
B192: 2029 | C192: 6.311382367 | D192: 5.474690532 | E192: 0.1524884595 | F192: 1.855800651
B193: 2030 | C193: 6.313623905 | D193: 5.463794625 | E193: 0.1406954723 | F193: 1.872591218
A196: Tabel 84 | C196: Reduktion ift. 1990, fordelt på gasarter
C199: 2015 | D199: 2020 | E199: 2030
B200: Metan | C200: 0.12 | D200: 0.18 | E200: 0.17
B201: Lattergas | C201: 0.33 | D201: 0.31 | E201: 0.3
B202: Ikke-energi CO2 | C202: 0.23 | D202: 0.15 | E202: 0.02
A205: Tabel 85 | C205: Metanudledninger fordelt på sektorer
B208: Metan | C208: 1990 | D208: 2015 | E208: 2020 | F208: 2030
B209: Energi | C209: 0.04 | D209: 0.05 | E209: 0.05 | F209: 0.05
B210: Transport | C210: 0.01 | D210: 0 | E210: 0 | F210: 0
B211: Landbrug | C211: 0.73 | D211: 0.81 | E211: 0.89 | F211: 0.9
B212: Øvrig | C212: 0.22 | D212: 0.14 | E212: 0.06 | F212: 0.05
B213: Total udledninger, Mio. t CO2e | C213: 7.6 | D213: 6.8 | E213: 6.2 | F213: 6.3
A216: Tabel 86 | C216: Lattergasudledninger fordelt på sektorer
B219: Lattergas | C219: 1990 | D219: 2015 | E219: 2020 | F219: 2030
B220: Energi | C220: 0.16 | D220: 0.05 | E220: 0.04 | F220: 0.05
B221: Transport | C221: 0.01 | D221: 0.03 | E221: 0.03 | F221: 0.03
B222: Landbrug | C222: 0.81 | D222: 0.89 | E222: 0.89 | F222: 0.89
B223: Øvrig | C223: 0.01 | D223: 0.03 | E223: 0.04 | F223: 0.04
B224: Total udledninger, Mio. t CO2e | C224: 7.8 | D224: 5.2 | E224: 5.4 | F224: 5.5
A227: Tabel 87 | C227: Totale F-gas udledninger
B230: F-gasser | C230: 1990 | D230: 2015 | E230: 2020 | F230: 2030
B231: Total udledninger, Mio. t CO2e | C231: 0 | D231: 0.7 | E231: 0.5 | F231: 0.1
A234: Tabel 88 | C234: Ikke energirelateret udslip fordelt på sektorer
B237: Ikke-energi CO2 | C237: 1990 | D237: 2015 | E237: 2020 | F237: 2030
B238: Energi | C238: 0.68 | D238: 0.88 | E238: 0.88 | F238: 0.9
B239: Landbrug | C239: 0.32 | D239: 0.12 | E239: 0.12 | F239: 0.1
B240: Total udledninger, Mio. t CO2e | C240: 1.9 | D240: 1.4 | E240: 1.6 | F240: 1.9
A243: Tabel 90 | C243: Udledning og optag fra jorde og skove i 1990
B246: Mio. t CO2e | C246: 1990
B247: Skovrejsning | C247: 0
B248: Afskovning | C248: 0
B249: Skovforvaltning | C249: 0.3
B250: Dyrkede arealer | C250: 3.3
B251: Vedvarende græs | C251: 0.9
A254: Tabel 91 | C254: LULUCF, udledninger og optag
B256: Mio. t CO2e | C256: 2015 | D256: 2016 | E256: 2017 | F256: 2018 | G256: 2019 | H256: 2020 | I256: 2021 | J256: 2022 | K256: 2023 | L256: 2024 | M256: 2025 | N256: 2026 | O256: 2027 | P256: 2028 | Q256: 2029 | R256: 2030
B257: Skovrejsning | C257: -0.6 | D257: -1.2 | E257: -1.1 | F257: -1.1 | G257: -1.1 | H257: -1.1 | I257: -1.9 | J257: -1.9 | K257: -1.9 | L257: -1.9 | M257: -1.9 | N257: -1.9 | O257: -1.9 | P257: -1.9 | Q257: -1.9 | R257: -1.9
B258: Afskovning | C258: 0.3 | D258: 0.2 | E258: 0.2 | F258: 0.1 | G258: 0.1 | H258: 0.1 | I258: 0.1 | J258: 0.1 | K258: 0.1 | L258: 0.1 | M258: 0.1 | N258: 0.1 | O258: 0.1 | P258: 0.1 | Q258: 0.1 | R258: 0.1
B259: Skovforvaltning | C259: 0.7 | D259: -0.2 | E259: 0.4 | F259: 0.3 | G259: 0.3 | H259: 0.3 | I259: 0.3 | J259: 0.1 | K259: 0.5 | L259: 0.5 | M259: 0.5 | N259: 0.5 | O259: 0.5 | P259: 0.5 | Q259: 0.5 | R259: 0.5
... 13 more rows

Sheet Baggrund 9 - Olie og gas
A1: 9 - Olie og gas
A3: Figur 93 | C3: Brændselsforbrug (fuel)
C6: Fuel | D6: Fuel | E6: Fuel
D7: Prognose | E7: Prognose
D8: 2015 | E8: 2016
C10: mia. Nm3 | D10: mia. Nm3 | E10: mia. Nm3
B11: 1990 | C11: 0.221518241
B12: 1991 | C12: 0.227029214
B13: 1992 | C13: 0.263503236
B14: 1993 | C14: 0.264495171
B15: 1994 | C15: 0.299310385
B16: 1995 | C16: 0.314275177
B17: 1996 | C17: 0.374627421
B18: 1997 | C18: 0.48780839
B19: 1998 | C19: 0.538500256
B20: 1999 | C20: 0.5851203148
B21: 2000 | C21: 0.6176086249
B22: 2001 | C22: 0.6040092722
B23: 2002 | C23: 0.6481262392
B24: 2003 | C24: 0.6520706574
B25: 2004 | C25: 0.6787081228
B26: 2005 | C26: 0.6939427792
B27: 2006 | C27: 0.696939129
B28: 2007 | C28: 0.71115453
B29: 2008 | C29: 0.6985892057
B30: 2009 | C30: 0.6579210405
B31: 2010 | C31: 0.6506957434
B32: 2011 | C32: 0.61979517
B33: 2012 | C33: 0.6281846929
B34: 2013 | C34: 0.5973651788
B35: 2014 | C35: 0.58028286
B36: 2015 | C36: 0.605066026
B37: 2016 | D37: 0.6087805773 | E37: 0.589722538
B38: 2017 | D38: 0.6104830156 | E38: 0.5681597023
B39: 2018 | D39: 0.6110754565 | E39: 0.5544378978
B40: 2019 | D40: 0.5816715897 | E40: 0.5544378978
B41: 2020 | D41: 0.5882077665 | E41: 0.3615669389
B42: 2021 | D42: 0.6128414192 | E42: 0.4342223689
B43: 2022 | D43: 0.6374750719 | E43: 0.5256626576
B44: 2023 | D44: 0.6552478223 | E44: 0.5109396342
B45: 2024 | D45: 0.679881475 | E45: 0.5090130589
B46: 2025 | D46: 0.6991320499 | E46: 0.5273463789
B47: 2026 | D47: 0.7216667103 | E47: 0.5501345064
B48: 2027 | D48: 0.7249059925 | E48: 0.5590939944
B49: 2028 | D49: 0.7536584853 | E49: 0.5837819373
B50: 2029 | D50: 0.7871776509 | E50: 0.6007993866
B51: 2030 | D51: 0.8267269907 | E51: 0.534788862
A53: Figur 94 | C53: Flaring
C56: Flaring | D56: Flaring | E56: Flaring
D57: Prognose | E57: Prognose
D58: 2015 | E58: 2016
C60: mia. Nm3 | D60: mia. Nm3 | E60: mia. Nm3
B61: 1990 | C61: 0.108153962
B62: 1991 | C62: 0.222876844
B63: 1992 | C63: 0.23017357
B64: 1993 | C64: 0.198958361
B65: 1994 | C65: 0.196153255
B66: 1995 | C66: 0.151763718
B67: 1996 | C67: 0.167816603
B68: 1997 | C68: 0.243151277
B69: 1998 | C69: 0.176767072
B70: 1999 | C70: 0.3855707069
B71: 2000 | C71: 0.2501078187
B72: 2001 | C72: 0.2702041962
B73: 2002 | C73: 0.2221922816
B74: 2003 | C74: 0.2336503965
B75: 2004 | C75: 0.2616977062
B76: 2005 | C76: 0.1843002845
B77: 2006 | C77: 0.1851724735
B78: 2007 | C78: 0.1689070419
B79: 2008 | C79: 0.1318629317
B80: 2009 | C80: 0.08528966756
B81: 2010 | C81: 0.1191169365
B82: 2011 | C82: 0.08129373356
B83: 2012 | C83: 0.0709784558
B84: 2013 | C84: 0.09707181019
B85: 2014 | C85: 0.084754573
B86: 2015 | C86: 0.090067352
B87: 2016 | D87: 0.07202187487 | E87: 0.0866758522
B88: 2017 | D88: 0.07000901047 | E88: 0.08177520773
B89: 2018 | D89: 0.06855929243 | E89: 0.08079507883
B90: 2019 | D90: 0.06836326665 | E90: 0.08226527218
B91: 2020 | D91: 0.06674677766 | E91: 0.04890843179
B92: 2021 | D92: 0.06674677766 | E92: 0.0609069557
B93: 2022 | D93: 0.06674677766 | E93: 0.0757869329
B94: 2023 | D94: 0.06674677766 | E94: 0.07267161042
B95: 2024 | D95: 0.06674677766 | E95: 0.07237757175
B96: 2025 | D96: 0.06674677766 | E96: 0.0709179234
B97: 2026 | D97: 0.06674677766 | E97: 0.07081991051
B98: 2027 | D98: 0.06282626208 | E98: 0.0684824827
B99: 2028 | D99: 0.06282626208 | E99: 0.06838446981
B100: 2029 | D100: 0.06282626208 | E100: 0.06828645692
B101: 2030 | D101: 0.06282626208 | E101: 0.04614608891
A104: Figur 95 | C104: Fuel prognose
C106: Fuel | D106: Fuel | E106: Fuel | F106: Fuel
C107: Prognose | D107: Prognose | E107: Prognose | F107: Prognose
C108: Felter og | D108: Ny tek- | F108: Nye fund
C109: fund (FF) | D109: nologi (T) | E109: FF+T | F109: ="(E)" -> (E)
C110: mia. Nm3 | D110: mia. Nm3 | E110: mia. Nm3 | F110: mia. Nm3
B111: 1990
B112: 1991
B113: 1992
B114: 1993
B115: 1994
B116: 1995
B117: 1996
B118: 1997
B119: 1998
B120: 1999
B121: 2000
B122: 2001
B123: 2002
B124: 2003
B125: 2004
B126: 2005
B127: 2006
B128: 2007
B129: 2008
B130: 2009
B131: 2010
B132: 2011
B133: 2012
B134: 2013
B135: 2014
B136: 2015
B137: 2016 | C137: 0.589722538 | E137: 0.589722538
B138: 2017 | C138: 0.5681597023 | E138: 0.5681597023
B139: 2018 | C139: 0.5544378978 | E139: 0.5544378978
B140: 2019 | C140: 0.5544378978 | E140: 0.5544378978
B141: 2020 | C141: 0.3615669389 | E141: 0.3615669389
B142: 2021 | C142: 0.4342223689 | E142: 0.4342223689
B143: 2022 | C143: 0.5256626576 | E143: 0.5256626576
B144: 2023 | C144: 0.5109396342 | E144: 0.5109396342
B145: 2024 | C145: 0.5090130589 | E145: 0.5090130589
B146: 2025 | C146: 0.5025979936 | D146: 0.009082436261 | E146: 0.5116804299 | F146: 0.01566594901
B147: 2026 | C147: 0.5006377358 | D147: 0.01816487252 | E147: 0.5188026083 | F147: 0.03133189802
B148: 2027 | C148: 0.4848488386 | D148: 0.02724730878 | E148: 0.5120961474 | F148: 0.04699784703
B149: 2028 | C149: 0.4847883962 | D149: 0.03632974504 | E149: 0.5211181412 | F149: 0.06266379603
B150: 2029 | C150: 0.4872817819 | D150: 0.0454121813 | E150: 0.5326939632 | F150: 0.06810542342
B151: 2030 | C151: 0.3883071827 | D151: 0.05324192635 | E151: 0.4415491091 | F151: 0.09323975288
A153: Figur 96 | C153: Flaring prognose 2016

Sheet Baggrund 10 - Samlet energi
A1: 10 - Det samlede energisystem
A3: Figur 97 | C3: Biogas i naturgasnettet
C5: Iblandings-procent
B6: 2016 | C6: 0.03863730388
B7: 2017 | C7: 0.06767638677
B8: 2018 | C8: 0.09458545035
B9: 2019 | C9: 0.1062661347
B10: 2020 | C10: 0.1077923106
B11: 2021 | C11: 0.1114807147
B12: 2022 | C12: 0.1159153006
B13: 2023 | C13: 0.1151848679
B14: 2024 | C14: 0.1155553936
B15: 2025 | C15: 0.1153931128
B16: 2026 | C16: 0.1154411346
B17: 2027 | C17: 0.1159320187
B18: 2028 | C18: 0.1160123915
B19: 2029 | C19: 0.1162535789
B20: 2030 | C20: 0.1189704794
A23: Tabel 65 | C23: Biogasforbrug fordelt på anvendelser
B26: PJ | C26: El og fjernvarme | D26: Procesvarme | E26: Transport | F26: Opgradering | G26: Total
B27: 2016 | C27: 5.566333733 | D27: 0.5441405213 | E27: 0.01142857143 | F27: 3.2 | G27: 9.321902825
B28: 2017 | C28: 5.805859479 | D28: 0.7041405213 | E28: 0.01714285714 | F28: 5.5 | G28: 12.02714286
B29: 2018 | C29: 6.135859479 | D29: 0.7541405213 | E29: 0.02285714286 | F29: 6.3 | G29: 13.21285714
B30: 2019 | C30: 6.485859479 | D30: 0.8541405213 | E30: 0.02857142857 | F30: 7.1 | G30: 14.46857143
B31: 2020 | C31: 6.595859479 | D31: 0.9041405213 | E31: 0.04857142857 | F31: 7.85 | G31: 15.39857143
B32: 2021 | C32: 6.895859479 | D32: 0.9541405213 | E32: 0.06857142857 | F32: 8.2 | G32: 16.11857143
B33: 2022 | C33: 7.195859479 | D33: 1.004140521 | E33: 0.08857142857 | F33: 8.55 | G33: 16.83857143
B34: 2023 | C34: 7.495859479 | D34: 1.054140521 | E34: 0.1085714286 | F34: 8.9 | G34: 17.55857143
B35: 2024 | C35: 7.495859479 | D35: 1.054140521 | E35: 0.1085714286 | F35: 8.9 | G35: 17.55857143
B36: 2025 | C36: 7.495859479 | D36: 1.054140521 | E36: 0.1085714286 | F36: 8.9 | G36: 17.55857143
B37: 2026 | C37: 7.495859479 | D37: 1.054140521 | E37: 0.1085714286 | F37: 8.9 | G37: 17.55857143
B38: 2027 | C38: 7.495859479 | D38: 1.054140521 | E38: 0.1085714286 | F38: 8.9 | G38: 17.55857143
B39: 2028 | C39: 7.495859479 | D39: 1.054140521 | E39: 0.1085714286 | F39: 8.9 | G39: 17.55857143
B40: 2029 | C40: 7.495859479 | D40: 1.054140521 | E40: 0.1085714286 | F40: 8.9 | G40: 17.55857143
B41: 2030 | C41: 7.495859479 | D41: 1.054140521 | E41: 0.1085714286 | F41: 8.9 | G41: 17.55857143
A44: Tabel 66 | C44: Andele af kvoteomfattede forbrug fordelt på sektorer, i år 2020
C47: Kul | D47: Petrokoks | E47: Fuelolie | F47: Gasolie | G47: Naturgas | H47: Affald
B48: Husholdninger | C48: 0 pct. | D48: 0 pct. | E48: 0 pct. | F48: 0 pct. | G48: 0 pct. | H48: 0 pct.
B49: Offentlig service | C49: 0 pct. | D49: 0 pct. | E49: 0 pct. | F49: 0 pct. | G49: 3 pct. | H49: 0 pct.
B50: Privat service | C50: 0 pct. | D50: 0 pct. | E50: 0 pct. | F50: 0 pct. | G50: 0 pct. | H50: 0 pct.
B51: Bygge og anlæg | C51: 0 pct. | D51: 0 pct. | E51: 0 pct. | F51: 0 pct. | G51: 0 pct. | H51: 0 pct.
B52: Landbrug og fiskeri | C52: 5 pct. | D52: 0 pct. | E52: 51 pct. | F52: 0 pct. | G52: 46 pct. | H52: 0 pct.
B53: Fremstilling | C53: 100 pct. | D53: 99 pct. | E53: 100 pct. | F53: 3 pct. | G53: 55 pct. | H53: 93 pct.
B54: Indenrigsluftfart | C54: 100 pct. | D54: 100 pct. | E54: 100 pct. | F54: 100 pct. | G54: 100 pct. | H54: 100 pct.
B55: Øvrig transport | C55: 0 pct. | D55: 0 pct. | E55: 0 pct. | F55: 0 pct. | G55: 0 pct. | H55: 0 pct.
B56: Decentral kraftvarme | C56: 0 pct. | D56: 0 pct. | E56: 21 pct. | F56: 25 pct. | G56: 43 pct. | H56: 46 pct.
B57: Fjernvarme (ren varme) | C57: 0 pct. | D57: 0 pct. | E57: 0 pct. | F57: 0 pct. | G57: 0 pct. | H57: 0 pct.
A60: Figur 98 | C60: Bruttoenergiforbrug
B62: Se Hovedrapport figur 2
A64: Figur 99 | C64: Bruttoenergiforbrug fordelt på sektorer
B67: PJ | C67: Erhverv | D67: Husholdninger | E67: Transport | F67: El og fjernvarme | G67: Energisektor
B68: 2000 | C68: 130.6422343 | D68: 86.87485436 | E68: 199.9563879 | F68: 357.4294584 | G68: 43.02112748
B69: 2001 | C69: 130.1339124 | D69: 85.91902364 | E69: 199.8906398 | F69: 365.3697545 | G69: 43.97331578
B70: 2002 | C70: 124.564468 | D70: 87.13667786 | E70: 196.1443412 | F70: 359.9399738 | G70: 42.44452345
B71: 2003 | C71: 125.3796727 | D71: 87.69124924 | E71: 200.6343027 | F71: 359.3420831 | G71: 45.5941015
B72: 2004 | C72: 124.4529785 | D72: 87.80342771 | E72: 209.3464577 | F72: 353.76772 | G72: 46.26066588
B73: 2005 | C73: 122.4920348 | D73: 90.8976289 | E73: 214.4382604 | F73: 357.5810914 | G73: 49.55076875
B74: 2006 | C74: 127.9852759 | D74: 93.23089524 | E74: 216.3727497 | F74: 362.7136584 | G74: 45.08133474
B75: 2007 | C75: 123.1863818 | D75: 96.60434939 | E75: 222.7379995 | F75: 365.2556208 | G75: 45.65675076
B76: 2008 | C76: 119.4053761 | D76: 93.12789528 | E76: 220.1933056 | F76: 365.4728447 | G76: 47.8444209
B77: 2009 | C77: 106.7427976 | D77: 88.40504983 | E77: 206.9286827 | F77: 357.5134904 | G77: 41.25742665
B78: 2010 | C78: 106.4355113 | D78: 85.82708851 | E78: 208.2763305 | F78: 371.1583791 | G78: 43.10382062
B79: 2011 | C79: 106.5965341 | D79: 87.83904391 | E79: 208.797026 | F79: 343.4815818 | G79: 42.16512216
B80: 2012 | C80: 98.67786271 | D80: 80.28234135 | E80: 205.8689377 | F80: 344.8949007 | G80: 42.78807243
B81: 2013 | C81: 95.71736793 | D81: 81.40012289 | E81: 203.8686639 | F81: 332.8615007 | G81: 38.29992062
B82: 2014 | C82: 93.70291194 | D82: 81.38541887 | E82: 205.8706092 | F82: 310.2273702 | G82: 36.71195838
B83: 2015 | C83: 93.8509254 | D83: 84.98202017 | E83: 208.6662767 | F83: 305.1988599 | G83: 39.82965205
B84: 2016 | C84: 92.15593464 | D84: 83.87494361 | E84: 211.2412271 | F84: 316.2899415 | G84: 39.14060443
B85: 2017 | C85: 90.98151664 | D85: 82.79219042 | E85: 211.293815 | F85: 300.7165099 | G85: 38.28464561
B86: 2018 | C86: 90.47814409 | D86: 81.68051127 | E86: 212.0901659 | F86: 299.1962123 | G86: 37.74080911
B87: 2019 | C87: 90.65749678 | D87: 80.56883212 | E87: 212.422272 | F87: 302.3497722 | G87: 37.74180524
B88: 2020 | C88: 90.66612231 | D88: 79.45715296 | E88: 212.5003928 | F88: 306.8987823 | G88: 30.11417135
B89: 2021 | C89: 92.88703632 | D89: 78.74226908 | E89: 212.3512545 | F89: 307.097734 | G89: 32.99486017
B90: 2022 | C90: 95.22220262 | D90: 78.02738519 | E90: 212.3396143 | F90: 314.6556293 | G90: 36.61886985
B91: 2023 | C91: 97.13687525 | D91: 77.3125013 | E91: 212.4192654 | F91: 325.9012917 | G91: 36.04279174
B92: 2024 | C92: 98.95586059 | D92: 76.59761742 | E92: 212.2839291 | F92: 333.3531547 | G92: 35.97241932
B93: 2025 | C93: 100.3268828 | D93: 75.88273353 | E93: 212.3451103 | F93: 341.5830544 | G93: 36.70198295
B94: 2026 | C94: 101.4091396 | D94: 75.31998151 | E94: 212.613516 | F94: 344.2655564 | G94: 37.60652513
B95: 2027 | C95: 102.5933649 | D95: 74.75722949 | E95: 211.5248041 | F95: 351.632194 | G95: 37.9644865
B96: 2028 | C96: 103.6852337 | D96: 74.19447747 | E96: 211.7264891 | F96: 358.4766709 | G96: 38.94426852
B97: 2029 | C97: 104.6643126 | D97: 73.63172545 | E97: 211.6774311 | F97: 362.6154358 | G97: 39.62036593
B98: 2030 | C98: 105.828671 | D98: 73.06897343 | E98: 211.2680463 | F98: 365.7991836 | G98: 37.01323161
A101: Figur 100 | C101: Endeligt energiforbrug
B104: PJ | C104: Endeligt energiforbrug | D104: Følsomhed - lav | E104: Følsomhed - høj | F104: Følsomhed - spænd
B105: 2000 | C105: 650.5058039 | D105: 650.5058039 | E105: 650.5058039 | F105: 0 | M105: 0
B106: 2001 | C106: 647.16862 | D106: 647.16862 | E106: 647.16862 | F106: 0 | M106: 0
B107: 2002 | C107: 643.2469901 | D107: 643.2469901 | E107: 643.2469901 | F107: 0 | M107: 0
B108: 2003 | C108: 648.6766079 | D108: 648.6766079 | E108: 648.6766079 | F108: 0 | M108: 0
B109: 2004 | C109: 660.1200625 | D109: 660.1200625 | E109: 660.1200625 | F109: 0 | M109: 0
B110: 2005 | C110: 665.7763901 | D110: 665.7763901 | E110: 665.7763901 | F110: 0 | M110: 0
B111: 2006 | C111: 679.0229331 | D111: 679.0229331 | E111: 679.0229331 | F111: 0 | M111: 0
B112: 2007 | C112: 682.1189756 | D112: 682.1189756 | E112: 682.1189756 | F112: 0 | M112: 0
B113: 2008 | C113: 669.9573657 | D113: 669.9573657 | E113: 669.9573657 | F113: 0 | M113: 0
B114: 2009 | C114: 630.377217 | D114: 630.377217 | E114: 630.377217 | F114: 0 | M114: 0
B115: 2010 | C115: 633.4687358 | D115: 633.4687358 | E115: 633.4687358 | F115: 0 | M115: 0
B116: 2011 | C116: 639.5138746 | D116: 639.5138746 | E116: 639.5138746 | F116: 0 | M116: 0
B117: 2012 | C117: 615.1754601 | D117: 615.1754601 | E117: 615.1754601 | F117: 0 | M117: 0
B118: 2013 | C118: 610.6892654 | D118: 610.6892654 | E118: 610.6892654 | F118: 0 | M118: 0
B119: 2014 | C119: 608.8197961 | D119: 608.8197961 | E119: 608.8197961 | F119: 0 | M119: 0
B120: 2015 | C120: 614.6860424 | D120: 614.6860424 | E120: 614.6860424 | F120: 0 | M120: 1100
B121: 2016 | C121: 612.5258724 | D121: 612.0277617 | E121: 612.7387739 | F121: 0.7110122847 | M121: 0
B122: 2017 | C122: 609.2985365 | D122: 607.6477779 | E122: 609.5236791 | F122: 1.875901161 | M122: 0
B123: 2018 | C123: 610.4243914 | D123: 606.4491549 | E123: 612.6688516 | F123: 6.219696646 | M123: 0
B124: 2019 | C124: 612.9742602 | D124: 606.5846226 | E124: 617.5297451 | F124: 10.94512248 | M124: 0
B125: 2020 | C125: 614.7797969 | D125: 605.8577822 | E125: 621.680975 | F125: 15.82319283 | M125: 0
B126: 2021 | C126: 620.6683132 | D126: 609.3869952 | E126: 630.4124601 | F126: 21.02546487 | M126: 0
B127: 2022 | C127: 626.6355942 | D127: 612.7803383 | E127: 639.4314829 | F127: 26.6511445 | M127: 0
B128: 2023 | C128: 632.1057728 | D128: 615.40227 | E128: 647.9360602 | F128: 32.5337902 | M128: 0
B129: 2024 | C129: 636.2066309 | D129: 617.2061803 | E129: 654.4729137 | F129: 37.26673344 | M129: 0
B130: 2025 | C130: 638.3823756 | D130: 617.6470823 | E130: 659.3528193 | F130: 41.705737 | M130: 0
B131: 2026 | C131: 640.2227662 | D131: 617.52234 | E131: 663.616554 | F131: 46.094214 | M131: 0
B132: 2027 | C132: 642.0245241 | D132: 617.6537754 | E132: 667.8255119 | F132: 50.17173645 | M132: 0
B133: 2028 | C133: 643.3914511 | D133: 617.2296288 | E133: 671.6515923 | F133: 54.42196351 | M133: 0
B134: 2029 | C134: 644.2671143 | D134: 616.2278149 | E134: 675.0706845 | F134: 58.84286962 | M134: 0
B135: 2030 | C135: 645.40338 | D135: 615.8034308 | E135: 678.8813646 | F135: 63.07793375 | M135: 0
A138: Figur 101 | C138: Andel af endeligt energiforbrug, fordelt på sektorer
B141: Sektor | C141: År | D141: Total
B142: Husholdninger | C142: 2010 | D142: 190.5319251
C143: 2020 | D143: 183.9300045
C144: 2030 | D144: 174.6457955
B145: Erhverv | C145: 2010 | D145: 221.1262449
C146: 2020 | D146: 204.9161741
C147: 2030 | D147: 242.7305591
B148: Transport | C148: 2010 | D148: 209.7314505
C149: 2020 | D149: 214.4721378
C150: 2030 | D150: 216.565545
B151: Total | C151: 2010 | D151: 621.3896204
C152: 2020 | D152: 603.3183164
C153: 2030 | D153: 633.9418995
A156: Figur 102 | C156: Endeligt energiforbrug, fordelt på sektorer
B159: År | C159: Produktionserhverv | D159: Serviceerhverv | E159: Husholdninger | F159: Transport
B160: 2000 | C160: 166.8038129 | D160: 80.59927556 | E160: 187.9200967 | F160: 201.2091879
B161: 2001 | C161: 167.4974535 | D161: 79.75174259 | E161: 186.2964617 | F161: 201.1430798
B162: 2002 | C162: 160.4916039 | D162: 82.96709094 | E162: 189.7629986 | F162: 197.4561812
B163: 2003 | C163: 159.6350227 | D163: 84.0946431 | E163: 190.1093222 | F163: 201.9040227
B164: 2004 | C164: 159.6827212 | D164: 84.89649422 | E164: 190.6719235 | F164: 210.6795377
B165: 2005 | C165: 158.149698 | D165: 85.0445488 | E165: 193.478337 | F165: 215.7889804
B166: 2006 | C166: 162.316227 | D166: 87.70206447 | E166: 197.8456881 | F166: 217.7252697
B167: 2007 | C167: 157.3005405 | D167: 86.78507815 | E167: 199.8515265 | F167: 224.0195995
B168: 2008 | C168: 152.3763527 | D168: 86.77911048 | E168: 197.0349792 | F168: 221.5537456
B169: 2009 | C169: 135.6740051 | D169: 84.23751495 | E169: 190.4955951 | F169: 208.3506827
B170: 2010 | C170: 137.232914 | D170: 83.89333092 | E170: 190.5319251 | F170: 209.7314505
B171: 2011 | C171: 138.5383965 | D171: 83.28134122 | E171: 194.1244423 | F171: 210.225866
B172: 2012 | C172: 129.7806148 | D172: 81.98004879 | E172: 183.5917955 | F172: 207.2563777
B173: 2013 | C173: 125.0113784 | D173: 81.75214815 | E173: 186.093361 | F173: 205.2593439
B174: 2014 | C174: 123.2756566 | D174: 80.21016425 | E174: 186.6110178 | F174: 207.2580492
B175: 2015 | C175: 123.6375426 | D175: 79.80492739 | E175: 189.7201348 | F175: 210.0954767
B176: 2016 | C176: 121.569849 | D176: 78.45853068 | E176: 188.2810593 | F176: 212.7838789
B177: 2017 | C177: 120.4591834 | D177: 77.33771938 | E177: 187.1081716 | F177: 212.9319817
B178: 2018 | C178: 120.1426923 | D178: 79.18587671 | E178: 185.8401503 | F178: 213.7941916
B179: 2019 | C179: 120.9653183 | D179: 81.36280515 | E179: 184.9331376 | F179: 214.2515186
B180: 2020 | C180: 121.4096824 | D180: 83.5064917 | E180: 183.9300045 | F180: 214.4721378
B181: 2021 | C181: 124.299893 | D181: 87.11650236 | E181: 183.3603905 | F181: 214.4300469
B182: 2022 | C182: 127.3402995 | D182: 90.67477043 | E182: 182.6743211 | F182: 214.4847227
B183: 2023 | C183: 129.7596099 | D183: 94.04649798 | E183: 181.8606432 | F183: 214.9775413
B184: 2024 | C184: 132.1108897 | D184: 96.40426833 | E184: 181.0563349 | F184: 215.1736575
B185: 2025 | C185: 133.6734561 | D185: 97.97850243 | E185: 179.9700328 | F185: 215.2989038
B186: 2026 | C186: 134.8903505 | D186: 99.25584927 | E186: 178.9834678 | F186: 215.6316182
B187: 2027 | C187: 136.2906094 | D187: 100.2983806 | E187: 177.9227444 | F187: 216.0513093
B188: 2028 | C188: 137.5659881 | D188: 101.1331276 | E188: 176.8258138 | F188: 216.4050412
B189: 2029 | C189: 138.7119987 | D189: 101.7796932 | E189: 175.6975048 | F189: 216.6164372
B190: 2030 | C190: 140.0792353 | D190: 102.6513238 | E190: 174.6457955 | F190: 216.565545
A193: Figur 103 | C193: Endeligt energiforbrug, fordelt på sektorer og energivarer
B196: Sektor | C196: År | D196: Fossile brændsler | E196: VE | F196: El | G196: Fjernvarme
B197: Husholdninger | C197: 2010 | D197: 0.2401725133 | E197: 0.2069055042 | F197: 0.1928169255 | G197: 0.360105057
C198: 2020 | D198: 0.1490155669 | E198: 0.2801167627 | F198: 0.2010309933 | G198: 0.3698366772
C199: 2030 | D199: 0.1103667048 | E199: 0.3050004764 | F199: 0.2323784636 | G199: 0.3522543552
B200: Erhverv | C200: 2010 | D200: 0.4228442678 | E200: 0.0588359348 | F200: 0.3459578479 | G200: 0.1723619495
C201: 2020 | D201: 0.3695684287 | E201: 0.07403159031 | F201: 0.3902305716 | G201: 0.1661694094
C202: 2030 | D202: 0.362211279 | E202: 0.07490790657 | F202: 0.4036490461 | G202: 0.1592317683
B203: Transport | C203: 2010 | D203: 0.987655099 | E203: 0.005406885794 | F203: 0.006938015242 | G203: 0
C204: 2020 | D204: 0.9478683125 | E204: 0.04293820864 | F204: 0.009193478834 | G204: 0
C205: 2030 | D205: 0.9246432903 | E205: 0.05089529936 | F205: 0.02446141034 | G205: 0
B206: Total | C206: 2010 | D206: 0.5574680064 | E206: 0.08620399439 | F206: 0.1845754355 | G206: 0.1717525638
C207: 2020 | D207: 0.5079082093 | E207: 0.1258062204 | F207: 0.1970965062 | G207: 0.1691890641
C208: 2030 | D208: 0.484966691 | E208: 0.1300934 | F208: 0.2269283337 | G208: 0.1580115753
A214: Figur 104 | C214: Elforbrug fordelt på anvendelser
B217: TWh | C217: Klassisk elforbrug | D217: Elvarme, elpatroner og varmepumper | E217: Jernbane | F217: Elbiler | G217: Nye datacentre
B218: 2000 | C218: 32.80579324 | D218: 2.119150858 | E218: 0.3708097767 | F218: 0 | G218: 0
B219: 2001 | C219: 33.17541934 | D219: 2.026169297 | E219: 0.3707032222 | F219: 0 | G219: 0
B220: 2002 | C220: 33.0576331 | D220: 1.926329313 | E220: 0.3882847202 | F220: 0 | G220: 0
B221: 2003 | C221: 32.86997752 | D221: 2.000837279 | E221: 0.3758178398 | F221: 0 | G221: 0
B222: 2004 | C222: 33.32227725 | D222: 1.865702749 | E222: 0.3945714377 | F222: 0 | G222: 0
B223: 2005 | C223: 33.62968859 | D223: 1.801156397 | E223: 0.3997926098 | F223: 0 | G223: 0
B224: 2006 | C224: 34.1897764 | D224: 1.759807318 | E224: 0.4003253825 | F224: 0 | G224: 0
B225: 2007 | C225: 34.64315655 | D225: 1.499127572 | E225: 0.3793341394 | F225: 0 | G225: 0
B226: 2008 | C226: 34.49288084 | D226: 1.507518741 | E226: 0.4026695822 | F226: 0 | G226: 0
B227: 2009 | C227: 32.84602045 | D227: 1.541435721 | E227: 0.4208904075 | F227: 0 | G227: 0
B228: 2010 | C228: 33.32951694 | D228: 1.707672983 | E228: 0.4306934245 | F228: 0 | G228: 0
B229: 2011 | C229: 32.84477169 | D229: 1.665725586 | E229: 0.4229149436 | F229: 0 | G229: 0
B230: 2012 | C230: 32.19985636 | D230: 1.752927291 | E230: 0.4106611722 | F230: 0 | G230: 0
B231: 2013 | C231: 31.97862316 | D231: 1.786341631 | E231: 0.411620163 | F231: 0 | G231: 0
B232: 2014 | C232: 31.69573347 | D232: 1.747383254 | E232: 0.4106611722 | F232: 0 | G232: 0
B233: 2015 | C233: 31.59242717 | D233: 1.860225504 | E233: 0.4230214981 | F233: 0 | G233: 0
B234: 2016 | C234: 31.20198718 | D234: 1.839301052 | E234: 0.4300273581 | F234: 0.02657416386 | G234: 0
B235: 2017 | C235: 31.09799596 | D235: 1.981368693 | E235: 0.4515069486 | F235: 0.03336551328 | G235: 0
B236: 2018 | C236: 31.00499907 | D236: 2.077582615 | E236: 0.4585128085 | F236: 0.04585292506 | G236: 0.749856
B237: 2019 | C237: 31.21086209 | D237: 2.141541106 | E237: 0.4774678497 | F237: 0.06396136943 | G237: 1.499712
B238: 2020 | C238: 31.29076922 | D238: 2.031040934 | E238: 0.4964228908 | F238: 0.08718370664 | G238: 2.249568
B239: 2021 | C239: 31.87035653 | D239: 2.145203346 | E239: 0.5090930217 | F239: 0.1061979765 | G239: 2.843204
... 272 more rows

Sheet Tabeller
A1: Tabeller med nøgletal
A3: Bruttoenergiforbrug
A4: PJ | B4: Total | C4: Kul | D4: Olie | E4: Naturgas | F4: Affald (fossilt) | G4: VE
A5: 2017 | B5: 735 | C5: 63 | D5: 281 | E5: 110 | F5: 17 | G5: 263
A6: 2018 | B6: 732 | C6: 65 | D6: 280 | E6: 99 | F6: 17 | G6: 270
A7: 2019 | B7: 734 | C7: 64 | D7: 280 | E7: 96 | F7: 17 | G7: 277
A8: 2020 | B8: 730 | C8: 72 | D8: 278 | E8: 88 | F8: 17 | G8: 275
A9: 2021 | B9: 735 | C9: 77 | D9: 279 | E9: 88 | F9: 17 | G9: 274
A10: 2022 | B10: 747 | C10: 81 | D10: 279 | E10: 92 | F10: 17 | G10: 279
A11: 2023 | B11: 759 | C11: 90 | D11: 280 | E11: 92 | F11: 17 | G11: 281
A12: 2024 | B12: 768 | C12: 95 | D12: 280 | E12: 92 | F12: 17 | G12: 283
A13: 2025 | B13: 777 | C13: 109 | D13: 280 | E13: 92 | F13: 17 | G13: 279
A14: 2026 | B14: 782 | C14: 113 | D14: 281 | E14: 92 | F14: 17 | G14: 279
A15: 2027 | B15: 789 | C15: 118 | D15: 280 | E15: 93 | F15: 17 | G15: 281
A16: 2028 | B16: 798 | C16: 126 | D16: 281 | E16: 94 | F16: 17 | G16: 279
A17: 2029 | B17: 803 | C17: 130 | D17: 281 | E17: 95 | F17: 17 | G17: 279
A18: 2030 | B18: 804 | C18: 133 | D18: 281 | E18: 92 | F18: 17 | G18: 281
A21: VE i bruttoenergiforbrug
A22: PJ | B22: VE Total | C22: Affald (VE-del) | D22: Fast biomasse | E22: Bio-brændsler | F22: Biogas | G22: Vind | H22: Solceller | I22: Andet*
A23: 2017 | B23: 263 | C23: 21 | D23: 151 | E23: 10 | F23: 12 | G23: 53 | H23: 4 | I23: 13
A24: 2018 | B24: 270 | C24: 21 | D24: 152 | E24: 9 | F24: 13 | G24: 56 | H24: 4 | I24: 14
A25: 2019 | B25: 277 | C25: 21 | D25: 152 | E25: 10 | F25: 14 | G25: 60 | H25: 5 | I25: 15
A26: 2020 | B26: 275 | C26: 21 | D26: 146 | E26: 10 | F26: 15 | G26: 62 | H26: 5 | I26: 16
A27: 2021 | B27: 274 | C27: 21 | D27: 132 | E27: 10 | F27: 16 | G27: 72 | H27: 6 | I27: 17
A28: 2022 | B28: 279 | C28: 21 | D28: 133 | E28: 10 | F28: 17 | G28: 74 | H28: 6 | I28: 18
A29: 2023 | B29: 281 | C29: 21 | D29: 135 | E29: 10 | F29: 17 | G29: 72 | H29: 6 | I29: 19
A30: 2024 | B30: 283 | C30: 21 | D30: 137 | E30: 10 | F30: 17 | G30: 72 | H30: 7 | I30: 19
A31: 2025 | B31: 279 | C31: 21 | D31: 130 | E31: 11 | F31: 17 | G31: 73 | H31: 7 | I31: 20
A32: 2026 | B32: 279 | C32: 21 | D32: 130 | E32: 11 | F32: 17 | G32: 72 | H32: 8 | I32: 20
A33: 2027 | B33: 281 | C33: 21 | D33: 132 | E33: 11 | F33: 17 | G33: 70 | H33: 9 | I33: 21
A34: 2028 | B34: 279 | C34: 21 | D34: 134 | E34: 11 | F34: 17 | G34: 65 | H34: 10 | I34: 21
A35: 2029 | B35: 279 | C35: 21 | D35: 135 | E35: 11 | F35: 17 | G35: 62 | H35: 11 | I35: 22
A36: 2030 | B36: 281 | C36: 21 | D36: 136 | E36: 11 | F36: 17 | G36: 62 | H36: 12 | I36: 23
A37: *Herunder solvarme og omgivelsesvarme forbrugt i varmepumper
A40: Endeligt energiforbrug
A41: PJ | B41: I alt | C41: Ikke-energi-formål | D41: Transport | E41: Produktions-erhverv | F41: Service-virksom-heder | G41: Hushold-ninger
A42: 2017 | B42: 609 | C42: 11 | D42: 213 | E42: 120 | F42: 77 | G42: 188
A43: 2018 | B43: 610 | C43: 11 | D43: 214 | E43: 120 | F43: 79 | G43: 187
A44: 2019 | B44: 613 | C44: 11 | D44: 214 | E44: 121 | F44: 81 | G44: 186
A45: 2020 | B45: 615 | C45: 11 | D45: 214 | E45: 121 | F45: 84 | G45: 185
A46: 2021 | B46: 621 | C46: 11 | D46: 214 | E46: 124 | F46: 87 | G46: 184
A47: 2022 | B47: 627 | C47: 11 | D47: 214 | E47: 127 | F47: 91 | G47: 184
A48: 2023 | B48: 632 | C48: 11 | D48: 215 | E48: 130 | F48: 94 | G48: 183
A49: 2024 | B49: 636 | C49: 11 | D49: 215 | E49: 132 | F49: 96 | G49: 182
A50: 2025 | B50: 638 | C50: 11 | D50: 215 | E50: 134 | F50: 98 | G50: 181
A51: 2026 | B51: 640 | C51: 11 | D51: 216 | E51: 135 | F51: 99 | G51: 180
A52: 2027 | B52: 642 | C52: 11 | D52: 216 | E52: 136 | F52: 100 | G52: 179
A53: 2028 | B53: 643 | C53: 11 | D53: 216 | E53: 138 | F53: 101 | G53: 178
A54: 2029 | B54: 644 | C54: 11 | D54: 217 | E54: 139 | F54: 102 | G54: 177
A55: 2030 | B55: 645 | C55: 11 | D55: 217 | E55: 140 | F55: 103 | G55: 176
A58: VE-andel
A59: Pct. | B59: Udvidet endeligt energiforbrug (EU-metode)
A60: 2017 | B60: 38
A61: 2018 | B61: 39
A62: 2019 | B62: 40
A63: 2020 | B63: 40
A64: 2021 | B64: 40
A65: 2022 | B65: 41
A66: 2023 | B66: 40
A67: 2024 | B67: 40
A68: 2025 | B68: 40
A69: 2026 | B69: 40
A70: 2027 | B70: 40
A71: 2028 | B71: 39
A72: 2029 | B72: 39
A73: 2030 | B73: 39
A76: Gennemsnitlige CO2-udledninger fra el og fjernvarme
A77: CO2 kg/MWh | B77: El | C77: Fjern-varme
A78: 2017 | B78: 208 | C78: 80
A79: 2018 | B79: 192 | C79: 73
A80: 2019 | B80: 183 | C80: 69
A81: 2020 | B81: 197 | C81: 65
A82: 2021 | B82: 181 | C82: 72
A83: 2022 | B83: 187 | C83: 72
A84: 2023 | B84: 211 | C84: 72
A85: 2024 | B85: 224 | C85: 72
A86: 2025 | B86: 236 | C86: 71
A87: 2026 | B87: 243 | C87: 74
A88: 2027 | B88: 257 | C88: 74
A89: 2028 | B89: 282 | C89: 74
A90: 2029 | B90: 297 | C90: 74
A91: 2030 | B91: 303 | C91: 73
A92: Resultater er for dansk produktion ab værk
A95: Klimagasudledninger
A96: Mio ton CO2e. | B96: Energi | C96: Transport | D96: Landbrug | E96: Øvrige | F96: I alt
A97: 2017 | B97: 19.6 | C97: 13.1 | D97: 10.6 | E97: 2.7 | F97: 46
A98: 2018 | B98: 18.9 | C98: 13.1 | D98: 10.6 | E98: 2.6 | F98: 45.3
A99: 2019 | B99: 18.6 | C99: 13.1 | D99: 10.6 | E99: 2.6 | F99: 44.9
A100: 2020 | B100: 18.6 | C100: 13.1 | D100: 10.6 | E100: 2.5 | F100: 44.8
A101: 2021 | B101: 19.2 | C101: 13.1 | D101: 10.6 | E101: 2.5 | F101: 45.4
A102: 2022 | B102: 19.9 | C102: 13 | D102: 10.6 | E102: 2.5 | F102: 46
A103: 2023 | B103: 20.9 | C103: 13 | D103: 10.6 | E103: 2.4 | F103: 46.9
A104: 2024 | B104: 21.4 | C104: 13 | D104: 10.6 | E104: 2.4 | F104: 47.4
A105: 2025 | B105: 22.7 | C105: 13 | D105: 10.6 | E105: 2.4 | F105: 48.7
A106: 2026 | B106: 23.1 | C106: 13 | D106: 10.6 | E106: 2.4 | F106: 49.1
A107: 2027 | B107: 23.7 | C107: 12.9 | D107: 10.7 | E107: 2.4 | F107: 49.6
A108: 2028 | B108: 24.6 | C108: 12.9 | D108: 10.7 | E108: 2.4 | F108: 50.5
A109: 2029 | B109: 25 | C109: 12.8 | D109: 10.7 | E109: 2.4 | F109: 51
A110: 2030 | B110: 25 | C110: 12.8 | D110: 10.7 | E110: 2.4 | F110: 50.9
A111: "Energi" omfatter energirelaterede udledninger (også landbrugets) bortset fra transport.
A112: "Landbrug" omfatter landbrugets ikke-enerigrelaterede udledninger
A115: Klimagasudledninger fordelt på kvote og ikke-kvote
A116: Mio ton CO2e. | B116: Kvote | C116: Ikke-kvote | D116: I alt
A117: 2017 | B117: 13.6 | C117: 32.4 | D117: 46
A118: 2018 | B118: 13.4 | C118: 31.8 | D118: 45.3
A119: 2019 | B119: 13.3 | C119: 31.5 | D119: 44.9
A120: 2020 | B120: 13.6 | C120: 31.2 | D120: 44.8
A121: 2021 | B121: 14.3 | C121: 31.1 | D121: 45.4
A122: 2022 | B122: 15 | C122: 31 | D122: 46
A123: 2023 | B123: 16 | C123: 30.9 | D123: 46.9
A124: 2024 | B124: 16.5 | C124: 30.8 | D124: 47.4
A125: 2025 | B125: 17.9 | C125: 30.8 | D125: 48.7
A126: 2026 | B126: 18.4 | C126: 30.8 | D126: 49.1
A127: 2027 | B127: 18.9 | C127: 30.7 | D127: 49.6
A128: 2028 | B128: 19.8 | C128: 30.6 | D128: 50.5
A129: 2029 | B129: 20.3 | C129: 30.6 | D129: 51
A130: 2030 | B130: 20.4 | C130: 30.5 | D130: 50.9
